Workbook

Sheet Overview
G1: =IF(C34<0.95, "TGIAF 2014 World Cup Simulator", "Paul the Octopus predicts:") -> TGIAF 2014 World Cup Simulator
B7: A | D7: Round of 16 | S7: Round of 16 | U7: B
B8: ='Group Stage'!AE3 -> BRA | U8: ='Group Stage'!AE10 -> CHI
B9: ='Group Stage'!AE4 -> MEX | D9: ='Knockout Rounds'!A3 -> Brazil | G9: Quarter-finals | P9: Quarter-finals | S9: ='Knockout Rounds'!A7 -> Chile | U9: ='Group Stage'!AE11 -> AUS
B10: ='Group Stage'!AE5 -> CAM | D10: 28 June, Belo Horizonte | S10: 29 June, Fortaleza | U10: ='Group Stage'!AE12 -> NED
B11: ='Group Stage'!AE6 -> CRO | D11: ='Knockout Rounds'!E3 -> Australia | G11: ='Knockout Rounds'!A14 -> Brazil | J11: Semi-finals | P11: ='Knockout Rounds'!A16 -> Mexico | S11: ='Knockout Rounds'!E7 -> Mexico | U11: ='Group Stage'!AE13 -> ESP
G12: 4 July, Fortaleza | P12: 5 July, Salvador
B13: C | G13: ='Knockout Rounds'!E14 -> Colombia | J13: ='Knockout Rounds'!A21 -> Brazil | M13: ='Knockout Rounds'!A22 -> Mexico | P13: ='Knockout Rounds'!E16 -> England | U13: D
B14: ='Group Stage'!AE17 -> COL | J14: 8 July, Belo Horizonte | M14: 9 July, São Paulo | U14: ='Group Stage'!AE24 -> ENG
B15: ='Group Stage'!AE18 -> IVO | D15: ='Knockout Rounds'!A4 -> Colombia | J15: ='Knockout Rounds'!E21 -> Iran | M15: ='Knockout Rounds'!E22 -> Germany | S15: ='Knockout Rounds'!A8 -> England | U15: ='Group Stage'!AE25 -> URU
B16: ='Group Stage'!AE19 -> GRE | D16: 28 June, Rio de Janeiro | S16: 29 June, Recife | U16: ='Group Stage'!AE26 -> ITA
B17: ='Group Stage'!AE20 -> JAP | D17: ='Knockout Rounds'!E4 -> Uruguay | G17: ='Knockout Rounds'!A15 -> Iran | P17: ='Knockout Rounds'!A17 -> Argentina | S17: ='Knockout Rounds'!E8 -> Ivory Coast | U17: ='Group Stage'!AE27 -> COS
G18: 4 July, Rio de Janeiro | J18: Third-place play-off | P18: 5 July, Brasília
B19: E | G19: ='Knockout Rounds'!E15 -> Portugal | P19: ='Knockout Rounds'!E17 -> Germany | U19: F
B20: ='Group Stage'!AE31 -> ECU | J20: ='Knockout Rounds'!A26 -> Iran | M20: ='Knockout Rounds'!E26 -> Germany | U20: ='Group Stage'!AE38 -> ARG
B21: ='Group Stage'!AE32 -> SWI | D21: ='Knockout Rounds'!A5 -> Ecuador | J21: 12 July, Brasília | S21: ='Knockout Rounds'!A9 -> Argentina | U21: ='Group Stage'!AE39 -> IRN
B22: ='Group Stage'!AE33 -> FRA | D22: 30 June, Brasília | S22: 1 July, São Paulo | U22: ='Group Stage'!AE40 -> NIG
B23: ='Group Stage'!AE34 -> HON | D23: ='Knockout Rounds'!E5 -> Iran | J23: Final | S23: ='Knockout Rounds'!E9 -> Switzerland | U23: ='Group Stage'!AE41 -> BOS
B25: G | J25: ='Knockout Rounds'!A30 -> Brazil | M25: ='Knockout Rounds'!E30 -> Mexico | U25: H
B26: ='Group Stage'!AE45 -> POR | J26: 13 July, Rio de Janeiro | U26: ='Group Stage'!AE52 -> SKO
B27: ='Group Stage'!AE46 -> GER | D27: ='Knockout Rounds'!A6 -> Portugal | S27: ='Knockout Rounds'!A10 -> South Korea | U27: ='Group Stage'!AE53 -> BEL
B28: ='Group Stage'!AE47 -> USA | D28: 30 June, Porto Alegre | J28: ='Knockout Rounds'!Q30 -> Brazil | S28: 1 July, Salvador | U28: ='Group Stage'!AE54 -> RUS
B29: ='Group Stage'!AE48 -> GHA | D29: ='Knockout Rounds'!E6 -> Belgium | S29: ='Knockout Rounds'!E10 -> Germany | U29: ='Group Stage'!AE55 -> ALG
J30: =IF(J28='Knockout Rounds'!A30, 'Knockout Rounds'!E30, 'Knockout Rounds'!A30) -> Mexico
J31: ='Knockout Rounds'!Q26 -> Germany
A34: =RAND() -> 0.003169207255 | B34: =RAND() -> 0.9031477997 | C34: =RAND() -> 0.3257701633 | D34: =IF(G11=D9, D11, D9) -> Australia | G34: =IF(J13=G11, G13, G11) -> Colombia | K34: =IF(Third=J20, M20, J20) -> Iran | P34: =IF(M13=P11, P13, P11) -> England | S34: =IF(P11=S9, S11, S9) -> Chile | T34: =RAND() -> 0.2123918791 | U34: =RAND() -> 0.605958308
D35: =IF(G13=D15, D17, D15) -> Uruguay | G35: =IF(J20=G17, G19, G17) -> Portugal | P35: =IF(M15=P17, P19, P17) -> Argentina | S35: =IF(P13=S15, S17, S15) -> Ivory Coast
D36: =IF(G17=D21, D23, D21) -> Ecuador | S36: =IF(P17=S21, S23, S21) -> Switzerland
D37: =IF(G19=D27, D29, D27) -> Belgium | S37: =IF(P19=S27, S29, S27) -> South Korea

Sheet Group Stage
A1: Team 1 | B1: 1W | C1: D | D1: 2W | E1: Team 2 | L1: C1 | M1: C2 | N1: C3 | P1: Random | Q1: Result
A2: Brazil | B2: 0.3 | C2: 3.6 | D2: 9 | E2: Croatia | F2: =1/B2 -> 3.333333333 | G2: =1/C2 -> 0.2777777778 | H2: 0.1111111111 | I2: =F2/($F2+$G2+$H2) -> 0.8955223881 | J2: =G2/($F2+$G2+$H2) -> 0.07462686567 | K2: =H2/($F2+$G2+$H2) -> 0.02985074627 | L2: =I2 -> 0.8955223881 | M2: =I2+J2 -> 0.9701492537 | N2: =I2+J2+K2 -> 1 | P2: =RAND() -> 0.7194544598 | Q2: =IF(P2<L2, A2, IF(P2<M2, "Draw", E2)) -> Brazil | S2: Group A | T2: M1 | U2: M2 | V2: M3 | W2: Ran | X2: Tot | Y2: Pos | Z2: Group A
A3: Mexico | B3: 1.15 | C3: 2 | D3: 2.5 | E3: Cameroon | F3: =1/B3 -> 0.8695652174 | G3: =1/C3 -> 0.5 | H3: =1/D3 -> 0.4 | I3: =F3/($F3+$G3+$H3) -> 0.4914004914 | J3: =G3/($F3+$G3+$H3) -> 0.2825552826 | K3: =H3/($F3+$G3+$H3) -> 0.226044226 | L3: =I3 -> 0.4914004914 | M3: =I3+J3 -> 0.773955774 | N3: =I3+J3+K3 -> 1 | P3: =RAND() -> 0.1987604595 | Q3: =IF(P3<L3, A3, IF(P3<M3, "Draw", E3)) -> Mexico | S3: Brazil | T3: =IF($Q2=$S3, 3, IF($Q2="Draw", 1, 0)) -> 3 | U3: =IF($Q4=$S3, 3, IF($Q4="Draw", 1, 0)) -> 3 | V3: =IF($Q6=$S3, 3, IF($Q6="Draw", 1, 0)) -> 3 | W3: =RAND()/10 -> 0.03486994716 | X3: =SUM(T3:W3) -> 9.034869947 | Y3: =VLOOKUP(S3, AH3:AI6, 2, FALSE) -> 1 | Z3: Brazil | AA3: BRA | AC3: 1 | AD3: =VLOOKUP(AC3,Y3:Z6,2, FALSE) -> Brazil | AE3: =VLOOKUP(AD3,Z$3:AA$6,2, FALSE) -> BRA | AG3: =LARGE(X3:X6, 1) -> 9.034869947 | AH3: =VLOOKUP(AG3, X3:Z6, 3, FALSE) -> Brazil | AI3: 1
A4: Brazil | B4: 0.364 | C4: 3.333 | D4: 6 | E4: Mexico | F4: 2.747252747 | G4: 0.300030003 | H4: 0.1666666667 | I4: 0.8547902879 | J4: 0.09335243468 | K4: 0.05185727746 | L4: 0.8547902879 | M4: 0.9481427225 | N4: 1 | P4: 0.6301097545 | Q4: Brazil | S4: Croatia | T4: =IF($Q2=$S4, 3, IF($Q2="Draw", 1, 0)) -> 0 | U4: =IF($Q5=$S4, 3, IF($Q5="Draw", 1, 0)) -> 0 | V4: =IF($Q7=$S4, 3, IF($Q7="Draw", 1, 0)) -> 1 | W4: =RAND()/10 -> 0.04931443013 | X4: =SUM(T4:W4) -> 1.04931443 | Y4: =VLOOKUP(S4, AH3:AI6, 2, FALSE) -> 4 | Z4: Croatia | AA4: CRO | AC4: 2 | AD4: =VLOOKUP(AC4,Y3:Z6,2, FALSE) -> Mexico | AE4: =VLOOKUP(AD4,Z$3:AA$6,2, FALSE) -> MEX | AG4: =LARGE(X3:X6, 2) -> 4.002070922 | AH4: =VLOOKUP(AG4, X3:Z6, 3, FALSE) -> Mexico | AI4: 2
A5: Cameroon | B5: 2.4 | C5: 2 | D5: 1.05 | E5: Croatia | F5: 0.4166666667 | G5: 0.5 | H5: 0.9523809524 | I5: 0.2229299363 | J5: 0.2675159236 | K5: 0.5095541401 | L5: 0.2229299363 | M5: 0.4904458599 | N5: 1 | P5: 0.0111022914 | Q5: Cameroon | S5: Mexico | T5: =IF($Q3=$S5, 3, IF($Q3="Draw", 1, 0)) -> 3 | U5: =IF($Q4=$S5, 3, IF($Q4="Draw", 1, 0)) -> 0 | V5: =IF($Q7=$S5, 3, IF($Q7="Draw", 1, 0)) -> 1 | W5: 0.002070921771 | X5: 4.002070922 | Y5: =VLOOKUP(S5, AH3:AI6, 2, FALSE) -> 2 | Z5: Mexico | AA5: MEX | AC5: 3 | AD5: =VLOOKUP(AC5,Y3:Z6,2, FALSE) -> Cameroon | AE5: =VLOOKUP(AD5,Z$3:AA$6,2, FALSE) -> CAM | AG5: =LARGE(X3:X6, 3) -> 3.093183705 | AH5: =VLOOKUP(AG5, X3:Z6, 3, FALSE) -> Cameroon | AI5: 3
A6: Cameroon | B6: 12 | C6: 4 | D6: 0.2 | E6: Brazil | F6: 0.08333333333 | G6: 0.25 | H6: 5 | I6: 0.015625 | J6: 0.046875 | K6: 0.9375 | L6: 0.015625 | M6: 0.0625 | N6: 1 | P6: 0.8751181261 | Q6: Brazil | S6: Cameroon | T6: =IF($Q3=$S6, 3, IF($Q3="Draw", 1, 0)) -> 0 | U6: =IF($Q5=$S6, 3, IF($Q5="Draw", 1, 0)) -> 3 | V6: =IF($Q6=$S6, 3, IF($Q6="Draw", 1, 0)) -> 0 | W6: 0.09318370543 | X6: 3.093183705 | Y6: =VLOOKUP(S6, AH3:AI6, 2, FALSE) -> 3 | Z6: Cameroon | AA6: CAM | AC6: 4 | AD6: =VLOOKUP(AC6,Y3:Z6,2, FALSE) -> Croatia | AE6: =VLOOKUP(AD6,Z$3:AA$6,2, FALSE) -> CRO | AG6: =LARGE(X3:X6, 4) -> 1.04931443 | AH6: =VLOOKUP(AG6, X3:Z6, 3, FALSE) -> Croatia | AI6: 4
A7: Croatia | B7: 1.5 | C7: 2.3 | D7: 1.45 | E7: Mexico | F7: 0.6666666667 | G7: 0.4347826087 | H7: 0.6896551724 | I7: 0.3722098214 | J7: 0.2427455357 | K7: 0.3850446429 | L7: 0.3722098214 | M7: 0.6149553571 | N7: 1 | P7: 0.3913975464 | Q7: Draw
A9: Spain | B9: 1 | C9: 2.1 | D9: 3 | E9: Netherlands | F9: 1 | G9: 0.4761904762 | H9: 0.3333333333 | I9: 0.5526315789 | J9: 0.2631578947 | K9: 0.1842105263 | L9: 0.5526315789 | M9: 0.8157894737 | N9: 1 | P9: 0.2450696729 | Q9: =IF(P9<L9, A9, IF(P9<M9, "Draw", E9)) -> Spain | S9: Group B | T9: M1 | U9: M2 | V9: M3 | W9: Ran | X9: Tot | Y9: Pos | Z9: Group B
A10: Chile | B10: 0.5 | C10: 2.75 | D10: 5.5 | E10: Australia | F10: 2 | G10: 0.3636363636 | H10: 0.1818181818 | I10: 0.7857142857 | J10: 0.1428571429 | K10: 0.07142857143 | L10: 0.7857142857 | M10: 0.9285714286 | N10: 1 | P10: 0.5125052234 | Q10: Chile | S10: Spain | T10: =IF($Q9=$S10, 3, IF($Q9="Draw", 1, 0)) -> 3 | U10: =IF($Q12=$S10, 3, IF($Q12="Draw", 1, 0)) -> 0 | V10: =IF($Q13=$S10, 3, IF($Q13="Draw", 1, 0)) -> 0 | W10: =RAND()/10 -> 0.004665615571 | X10: =SUM(T10:W10) -> 3.004665616 | Y10: =VLOOKUP(S10, AH10:AI13, 2, FALSE) -> 4 | Z10: Spain | AA10: ESP | AC10: 1 | AD10: =VLOOKUP(AC10,Y10:Z13,2, FALSE) -> Chile | AE10: =VLOOKUP(AD10,Z$10:AA$13,2, FALSE) -> CHI | AG10: =LARGE(X10:X13, 1) -> 9.092917807 | AH10: =VLOOKUP(AG10, X10:Z13, 3, FALSE) -> Chile | AI10: 1
A11: Australia | B11: 5.5 | C11: 3.5 | D11: 0.364 | E11: Netherlands | F11: 0.1818181818 | G11: 0.2857142857 | H11: 2.747252747 | I11: 0.05655686762 | J11: 0.08887507769 | K11: 0.8545680547 | L11: 0.05655686762 | M11: 0.1454319453 | N11: 1 | P11: 0.6061951259 | Q11: Netherlands | S11: Netherlands | T11: =IF($Q9=$S11, 3, IF($Q9="Draw", 1, 0)) -> 0 | U11: =IF($Q11=$S11, 3, IF($Q11="Draw", 1, 0)) -> 3 | V11: =IF($Q14=$S11, 3, IF($Q14="Draw", 1, 0)) -> 0 | W11: =RAND()/10 -> 0.06772582821 | X11: =SUM(T11:W11) -> 3.067725828 | Y11: =VLOOKUP(S11, AH10:AI13, 2, FALSE) -> 3 | Z11: Netherlands | AA11: NED | AC11: 2 | AD11: =VLOOKUP(AC11,Y10:Z13,2, FALSE) -> Australia | AE11: =VLOOKUP(AD11,Z$10:AA$13,2, FALSE) -> AUS | AG11: =LARGE(X10:X13, 2) -> 3.070743723 | AH11: =VLOOKUP(AG11, X10:Z13, 3, FALSE) -> Australia | AI11: 2
A12: Spain | B12: 0.7 | C12: 2.4 | D12: 3.333 | E12: Chile | F12: 1.428571429 | G12: 0.4166666667 | H12: 0.300030003 | I12: 0.6659174346 | J12: 0.1942259184 | K12: 0.1398566469 | L12: 0.6659174346 | M12: 0.8601433531 | N12: 1 | P12: 0.9068890953 | Q12: Chile | S12: Chile | T12: =IF($Q10=$S12, 3, IF($Q10="Draw", 1, 0)) -> 3 | U12: =IF($Q12=$S12, 3, IF($Q12="Draw", 1, 0)) -> 3 | V12: =IF($Q14=$S12, 3, IF($Q14="Draw", 1, 0)) -> 3 | W12: 0.09291780741 | X12: 9.092917807 | Y12: =VLOOKUP(S12, AH10:AI13, 2, FALSE) -> 1 | Z12: Chile | AA12: CHI | AC12: 3 | AD12: =VLOOKUP(AC12,Y10:Z13,2, FALSE) -> Netherlands | AE12: NED | AG12: =LARGE(X10:X13, 3) -> 3.067725828 | AH12: =VLOOKUP(AG12, X10:Z13, 3, FALSE) -> Netherlands | AI12: 3
A13: Australia | B13: 8 | C13: 4 | D13: 0.25 | E13: Spain | F13: 0.125 | G13: 0.25 | H13: 4 | I13: 0.02857142857 | J13: 0.05714285714 | K13: 0.9142857143 | L13: 0.02857142857 | M13: 0.08571428571 | N13: 1 | P13: 0.01038110695 | Q13: Australia | S13: Australia | T13: =IF($Q10=$S13, 3, IF($Q10="Draw", 1, 0)) -> 0 | U13: =IF($Q11=$S13, 3, IF($Q11="Draw", 1, 0)) -> 0 | V13: =IF($Q13=$S13, 3, IF($Q13="Draw", 1, 0)) -> 3 | W13: 0.07074372276 | X13: 3.070743723 | Y13: =VLOOKUP(S13, AH10:AI13, 2, FALSE) -> 2 | Z13: Australia | AA13: AUS | AC13: 4 | AD13: =VLOOKUP(AC13,Y10:Z13,2, FALSE) -> Spain | AE13: ESP | AG13: =LARGE(X10:X13, 4) -> 3.004665616 | AH13: =VLOOKUP(AG13, X10:Z13, 3, FALSE) -> Spain | AI13: 4
A14: Netherlands | B14: 1.2 | C14: 2.3 | D14: 1.9 | E14: Chile | F14: 0.8333333333 | G14: 0.4347826087 | H14: 0.5263157895 | I14: 0.4643995749 | J14: 0.2422954304 | K14: 0.2933049947 | L14: 0.4643995749 | M14: 0.7066950053 | N14: 1 | P14: 0.9291820788 | Q14: Chile
A16: Colombia | B16: 0.7 | C16: 2.4 | D16: 4 | E16: Greece | F16: 1.428571429 | G16: 0.4166666667 | H16: 0.25 | I16: 0.6818181818 | J16: 0.1988636364 | K16: 0.1193181818 | L16: 0.6818181818 | M16: 0.8806818182 | N16: 1 | P16: 0.2647987578 | Q16: Colombia | S16: Group C | T16: M1 | U16: M2 | V16: M3 | W16: Ran | X16: Tot | Y16: Pos | Z16: Group C
A17: Ivory Coast | B17: 1.5 | C17: 2 | D17: 1.625 | E17: Japan | F17: 0.6666666667 | G17: 0.5 | H17: 0.6153846154 | I17: 0.3741007194 | J17: 0.2805755396 | K17: 0.345323741 | L17: 0.3741007194 | M17: 0.654676259 | N17: 1 | P17: 0.07106397278 | Q17: Ivory Coast | S17: Colombia | T17: =IF($Q16=$S17, 3, IF($Q16="Draw", 1, 0)) -> 3 | U17: =IF($Q18=$S17, 3, IF($Q18="Draw", 1, 0)) -> 3 | V17: =IF($Q20=$S17, 3, IF($Q20="Draw", 1, 0)) -> 3 | W17: =RAND()/10 -> 0.09649640853 | X17: =SUM(T17:W17) -> 9.096496409 | Y17: =VLOOKUP(S17, AH17:AI20, 2, FALSE) -> 1 | Z17: Colombia | AA17: COL | AC17: 1 | AD17: =VLOOKUP(AC17,Y17:Z20,2, FALSE) -> Colombia | AE17: =VLOOKUP(AD17,Z$17:AA$20,2, FALSE) -> COL | AG17: =LARGE(X17:X20, 1) -> 9.096496409 | AH17: =VLOOKUP(AG17, X17:Z20, 3, FALSE) -> Colombia | AI17: 1
A18: Colombia | B18: 1 | C18: 2.25 | D18: 2.4 | E18: Ivory Coast | F18: 1 | G18: 0.4444444444 | H18: 0.4166666667 | I18: 0.5373134328 | J18: 0.2388059701 | K18: 0.223880597 | L18: 0.5373134328 | M18: 0.776119403 | N18: 1 | P18: 0.4975473164 | Q18: Colombia | S18: Greece | T18: =IF($Q16=$S18, 3, IF($Q16="Draw", 1, 0)) -> 0 | U18: =IF($Q19=$S18, 3, IF($Q19="Draw", 1, 0)) -> 3 | V18: =IF($Q21=$S18, 3, IF($Q21="Draw", 1, 0)) -> 0 | W18: =RAND()/10 -> 0.06226560521 | X18: =SUM(T18:W18) -> 3.062265605 | Y18: =VLOOKUP(S18, AH17:AI20, 2, FALSE) -> 3 | Z18: Greece | AA18: GRE | AC18: 2 | AD18: =VLOOKUP(AC18,Y17:Z20,2, FALSE) -> Ivory Coast | AE18: =VLOOKUP(AD18,Z$17:AA$20,2, FALSE) -> IVO | AG18: =LARGE(X17:X20, 2) -> 6.066086048 | AH18: =VLOOKUP(AG18, X17:Z20, 3, FALSE) -> Ivory Coast | AI18: 2
A19: Japan | B19: 1.3 | C19: 2 | D19: 1.9 | E19: Greece | F19: 0.7692307692 | G19: 0.5 | H19: 0.5263157895 | I19: 0.428410372 | J19: 0.2784667418 | K19: 0.2931228861 | L19: 0.428410372 | M19: 0.7068771139 | N19: 1 | P19: 0.8906680102 | Q19: Greece | S19: Ivory Coast | T19: =IF($Q17=$S19, 3, IF($Q17="Draw", 1, 0)) -> 3 | U19: =IF($Q18=$S19, 3, IF($Q18="Draw", 1, 0)) -> 0 | V19: =IF($Q21=$S19, 3, IF($Q21="Draw", 1, 0)) -> 3 | W19: 0.06608604809 | X19: 6.066086048 | Y19: =VLOOKUP(S19, AH17:AI20, 2, FALSE) -> 2 | Z19: Ivory Coast | AA19: IVO | AC19: 3 | AD19: =VLOOKUP(AC19,Y17:Z20,2, FALSE) -> Greece | AE19: =VLOOKUP(AD19,Z$17:AA$20,2, FALSE) -> GRE | AG19: =LARGE(X17:X20, 3) -> 3.062265605 | AH19: =VLOOKUP(AG19, X17:Z20, 3, FALSE) -> Greece | AI19: 3
A20: Japan | B20: 2.75 | C20: 2.5 | D20: 0.833 | E20: Colombia | F20: 0.3636363636 | G20: 0.4 | H20: 1.200480192 | I20: 0.1851399107 | J20: 0.2036539017 | K20: 0.6112061876 | L20: 0.1851399107 | M20: 0.3887938124 | N20: 1 | P20: 0.3964780392 | Q20: Colombia | S20: Japan | T20: =IF($Q17=$S20, 3, IF($Q17="Draw", 1, 0)) -> 0 | U20: =IF($Q19=$S20, 3, IF($Q19="Draw", 1, 0)) -> 0 | V20: =IF($Q20=$S20, 3, IF($Q20="Draw", 1, 0)) -> 0 | W20: 0.03728694401 | X20: 0.03728694401 | Y20: =VLOOKUP(S20, AH17:AI20, 2, FALSE) -> 4 | Z20: Japan | AA20: JAP | AC20: 4 | AD20: =VLOOKUP(AC20,Y17:Z20,2, FALSE) -> Japan | AE20: JAP | AG20: =LARGE(X17:X20, 4) -> 0.03728694401 | AH20: =VLOOKUP(AG20, X17:Z20, 3, FALSE) -> Japan | AI20: 4
A21: Greece | B21: 1.8 | C21: 2.25 | D21: 1.25 | E21: Ivory Coast | F21: 0.5555555556 | G21: 0.4444444444 | H21: 0.8 | I21: 0.3086419753 | J21: 0.2469135802 | K21: 0.4444444444 | L21: 0.3086419753 | M21: 0.5555555556 | N21: 1 | P21: 0.8158391723 | Q21: Ivory Coast
A23: Uruguay | B23: 0.33 | C23: 3.2 | D23: 9 | E23: Costa Rica | F23: 3.03030303 | G23: 0.3125 | H23: 0.1111111111 | I23: 0.8773533175 | J23: 0.09047706087 | K23: 0.03216962164 | L23: 0.8773533175 | M23: 0.9678303784 | N23: 1 | P23: 0.09796735438 | Q23: Uruguay | S23: Group D | T23: M1 | U23: M2 | V23: M3 | W23: Ran | X23: Tot | Y23: Pos | Z23: Group D
A24: England | B24: 2 | C24: 1.8 | D24: 1.5 | E24: Italy | F24: 0.5 | G24: 0.5555555556 | H24: 0.6666666667 | I24: 0.2903225806 | J24: 0.3225806452 | K24: 0.3870967742 | L24: 0.2903225806 | M24: 0.6129032258 | N24: 1 | P24: 0.5481410774 | Q24: Draw | S24: Uruguay | T24: =IF($Q23=$S24, 3, IF($Q23="Draw", 1, 0)) -> 3 | U24: =IF($Q25=$S24, 3, IF($Q25="Draw", 1, 0)) -> 0 | V24: =IF($Q27=$S24, 3, IF($Q27="Draw", 1, 0)) -> 3 | W24: =RAND()/10 -> 0.0583159096 | X24: =SUM(T24:W24) -> 6.05831591 | Y24: =VLOOKUP(S24, AH24:AI27, 2, FALSE) -> 2 | Z24: Uruguay | AA24: URU | AC24: 1 | AD24: =VLOOKUP(AC24,Y24:Z27,2, FALSE) -> England | AE24: =VLOOKUP(AD24,Z$24:AA$27,2, FALSE) -> ENG | AG24: =LARGE(X24:X27, 1) -> 7.062613101 | AH24: =VLOOKUP(AG24, X24:Z27, 3, FALSE) -> England | AI24: 1
A25: Uruguay | B25: 1.6 | C25: 2.1 | D25: 1.625 | E25: England | F25: 0.625 | G25: 0.4761904762 | H25: 0.6153846154 | I25: 0.3640970926 | J25: 0.2774073086 | K25: 0.3584955988 | L25: 0.3640970926 | M25: 0.6415044012 | N25: 1 | P25: 0.9394927096 | Q25: England | S25: Costa Rica | T25: =IF($Q23=$S25, 3, IF($Q23="Draw", 1, 0)) -> 0 | U25: =IF($Q26=$S25, 3, IF($Q26="Draw", 1, 0)) -> 1 | V25: =IF($Q28=$S25, 3, IF($Q28="Draw", 1, 0)) -> 0 | W25: =RAND()/10 -> 0.01416993012 | X25: =SUM(T25:W25) -> 1.01416993 | Y25: =VLOOKUP(S25, AH24:AI27, 2, FALSE) -> 4 | Z25: Costa Rica | AA25: COS | AC25: 2 | AD25: =VLOOKUP(AC25,Y24:Z27,2, FALSE) -> Uruguay | AE25: =VLOOKUP(AD25,Z$24:AA$27,2, FALSE) -> URU | AG25: =LARGE(X24:X27, 2) -> 6.05831591 | AH25: =VLOOKUP(AG25, X24:Z27, 3, FALSE) -> Uruguay | AI25: 2
A26: Italy | B26: 0.333 | C26: 3.5 | D26: 6.5 | E26: Costa Rica | F26: 3.003003003 | G26: 0.2857142857 | H26: 0.1538461538 | I26: 0.8723159509 | J26: 0.0829946319 | K26: 0.04468941718 | L26: 0.8723159509 | M26: 0.9553105828 | N26: 1 | P26: 0.8963642184 | Q26: Draw | S26: England | T26: =IF($Q24=$S26, 3, IF($Q24="Draw", 1, 0)) -> 1 | U26: =IF($Q25=$S26, 3, IF($Q25="Draw", 1, 0)) -> 3 | V26: =IF($Q28=$S26, 3, IF($Q28="Draw", 1, 0)) -> 3 | W26: 0.06261310107 | X26: 7.062613101 | Y26: =VLOOKUP(S26, AH24:AI27, 2, FALSE) -> 1 | Z26: England | AA26: ENG | AC26: 3 | AD26: =VLOOKUP(AC26,Y24:Z27,2, FALSE) -> Italy | AE26: =VLOOKUP(AD26,Z$24:AA$27,2, FALSE) -> ITA | AG26: =LARGE(X24:X27, 3) -> 2.043212937 | AH26: =VLOOKUP(AG26, X24:Z27, 3, FALSE) -> Italy | AI26: 3
A27: Italy | B27: 1.375 | C27: 2.25 | D27: 1.625 | E27: Uruguay | F27: 0.7272727273 | G27: 0.4444444444 | H27: 0.6153846154 | I27: 0.4069565217 | J27: 0.2486956522 | K27: 0.3443478261 | L27: 0.4069565217 | M27: 0.6556521739 | N27: 1 | P27: 0.7341436908 | Q27: Uruguay | S27: Italy | T27: =IF($Q24=$S27, 3, IF($Q24="Draw", 1, 0)) -> 1 | U27: =IF($Q26=$S27, 3, IF($Q26="Draw", 1, 0)) -> 1 | V27: =IF($Q27=$S27, 3, IF($Q27="Draw", 1, 0)) -> 0 | W27: 0.04321293718 | X27: 2.043212937 | Y27: =VLOOKUP(S27, AH24:AI27, 2, FALSE) -> 3 | Z27: Italy | AA27: ITA | AC27: 4 | AD27: =VLOOKUP(AC27,Y24:Z27,2, FALSE) -> Costa Rica | AE27: =VLOOKUP(AD27,Z$24:AA$27,2, FALSE) -> COS | AG27: =LARGE(X24:X27, 4) -> 1.01416993 | AH27: =VLOOKUP(AG27, X24:Z27, 3, FALSE) -> Costa Rica | AI27: 4
A28: Costa Rica | B28: 5 | C28: 2.75 | D28: 0.533 | E28: England | F28: 0.2 | G28: 0.3636363636 | H28: 1.876172608 | I28: 0.08197363086 | J28: 0.1490429652 | K28: 0.7689834039 | L28: 0.08197363086 | M28: 0.2310165961 | N28: 1 | P28: 0.8266447598 | Q28: England
A30: Switzerland | B30: 1.3 | C30: 2 | D30: 2.1 | E30: Ecuador | F30: 0.7692307692 | G30: 0.5 | H30: 0.4761904762 | I30: 0.4407135362 | J30: 0.2864637985 | K30: 0.2728226653 | L30: 0.4407135362 | M30: 0.7271773347 | N30: 1 | P30: 0.9404886025 | Q30: Ecuador | S30: Group E | T30: M1 | U30: M2 | V30: M3 | W30: Ran | X30: Tot | Y30: Pos | Z30: Group E
A31: France | B31: 0.3 | C31: 3.5 | D31: 7.5 | E31: Honduras | F31: 3.333333333 | G31: 0.2857142857 | H31: 0.1333333333 | I31: 0.8883248731 | J31: 0.07614213198 | K31: 0.03553299492 | L31: 0.8883248731 | M31: 0.9644670051 | N31: 1 | P31: 0.6712638494 | Q31: France | S31: Switzerland | T31: =IF($Q30=$S31, 3, IF($Q30="Draw", 1, 0)) -> 0 | U31: =IF($Q32=$S31, 3, IF($Q32="Draw", 1, 0)) -> 3 | V31: =IF($Q34=$S31, 3, IF($Q34="Draw", 1, 0)) -> 3 | W31: =RAND()/10 -> 0.02388693461 | X31: =SUM(T31:W31) -> 6.023886935 | Y31: =VLOOKUP(S31, AH31:AI34, 2, FALSE) -> 2 | Z31: Switzerland | AA31: SWI | AC31: 1 | AD31: =VLOOKUP(AC31,Y31:Z34,2, FALSE) -> Ecuador | AE31: =VLOOKUP(AD31,Z$31:AA$34,2, FALSE) -> ECU | AG31: =LARGE(X31:X34, 1) -> 9.098680883 | AH31: =VLOOKUP(AG31, X31:Z34, 3, FALSE) -> Ecuador | AI31: 1
A32: Switzerland | B32: 3 | C32: 2.1 | D32: 0.833 | E32: France | F32: 0.3333333333 | G32: 0.4761904762 | H32: 1.200480192 | I32: 0.1658371491 | J32: 0.236910213 | K32: 0.5972526379 | L32: 0.1658371491 | M32: 0.4027473621 | N32: 1 | P32: 0.1100918105 | Q32: Switzerland | S32: Ecuador | T32: =IF($Q30=$S32, 3, IF($Q30="Draw", 1, 0)) -> 3 | U32: =IF($Q33=$S32, 3, IF($Q33="Draw", 1, 0)) -> 3 | V32: =IF($Q35=$S32, 3, IF($Q35="Draw", 1, 0)) -> 3 | W32: =RAND()/10 -> 0.09868088311 | X32: =SUM(T32:W32) -> 9.098680883 | Y32: =VLOOKUP(S32, AH31:AI34, 2, FALSE) -> 1 | Z32: Ecuador | AA32: ECU | AC32: 2 | AD32: =VLOOKUP(AC32,Y31:Z34,2, FALSE) -> Switzerland | AE32: =VLOOKUP(AD32,Z$31:AA$34,2, FALSE) -> SWI | AG32: =LARGE(X31:X34, 2) -> 6.023886935 | AH32: =VLOOKUP(AG32, X31:Z34, 3, FALSE) -> Switzerland | AI32: 2
A33: Honduras | B33: 4 | C33: 2.3 | D33: 0.667 | E33: Ecuador | F33: 0.25 | G33: 0.4347826087 | H33: 1.499250375 | I33: 0.1144671357 | J33: 0.1990732796 | K33: 0.6864595847 | L33: 0.1144671357 | M33: 0.3135404153 | N33: 1 | P33: 0.6423786006 | Q33: Ecuador | S33: France | T33: =IF($Q31=$S33, 3, IF($Q31="Draw", 1, 0)) -> 3 | U33: =IF($Q32=$S33, 3, IF($Q32="Draw", 1, 0)) -> 0 | V33: =IF($Q35=$S33, 3, IF($Q35="Draw", 1, 0)) -> 0 | W33: 0.02352642346 | X33: 3.023526423 | Y33: =VLOOKUP(S33, AH31:AI34, 2, FALSE) -> 3 | Z33: France | AA33: FRA | AC33: 3 | AD33: =VLOOKUP(AC33,Y31:Z34,2, FALSE) -> France | AE33: FRA | AG33: =LARGE(X31:X34, 3) -> 3.023526423 | AH33: =VLOOKUP(AG33, X31:Z34, 3, FALSE) -> France | AI33: 3
A34: Honduras | B34: 4.5 | C34: 2.5 | D34: 0.571 | E34: Switzerland | F34: 0.2222222222 | G34: 0.4 | H34: 1.751313485 | I34: 0.0936249754 | J34: 0.1685249557 | K34: 0.7378500689 | L34: 0.0936249754 | M34: 0.2621499311 | N34: 1 | P34: 0.8329138393 | Q34: Switzerland | S34: Honduras | T34: =IF($Q31=$S34, 3, IF($Q31="Draw", 1, 0)) -> 0 | U34: =IF($Q33=$S34, 3, IF($Q33="Draw", 1, 0)) -> 0 | V34: =IF($Q34=$S34, 3, IF($Q34="Draw", 1, 0)) -> 0 | W34: 0.02037933846 | X34: 0.02037933846 | Y34: =VLOOKUP(S34, AH31:AI34, 2, FALSE) -> 4 | Z34: Honduras | AA34: HON | AC34: 4 | AD34: =VLOOKUP(AC34,Y31:Z34,2, FALSE) -> Honduras | AE34: HON | AG34: =LARGE(X31:X34, 4) -> 0.02037933846 | AH34: =VLOOKUP(AG34, X31:Z34, 3, FALSE) -> Honduras | AI34: 4
A35: Ecuador | B35: 2.1 | C35: 2.3 | D35: 1.05 | E35: France | F35: 0.4761904762 | G35: 0.4347826087 | H35: 0.9523809524 | I35: 0.2555555556 | J35: 0.2333333333 | K35: 0.5111111111 | L35: 0.2555555556 | M35: 0.4888888889 | N35: 1 | P35: 0.06214972603 | Q35: Ecuador
A37: Argentina | B37: 0.364 | C37: 3.333 | D37: 6 | E37: Bosnia & Herzegovina | F37: 2.747252747 | G37: 0.300030003 | H37: 0.1666666667 | I37: 0.8547902879 | J37: 0.09335243468 | K37: 0.05185727746 | L37: 0.8547902879 | M37: 0.9481427225 | N37: 1 | P37: 0.7849605877 | Q37: Argentina | S37: Group F | T37: M1 | U37: M2 | V37: M3 | W37: Ran | X37: Tot | Y37: Pos | Z37: Group F
A38: Iran | B38: 2.6 | C38: 2 | D38: 1 | E38: Nigeria | F38: 0.3846153846 | G38: 0.5 | H38: 1 | I38: 0.2040816327 | J38: 0.2653061224 | K38: 0.5306122449 | L38: 0.2040816327 | M38: 0.4693877551 | N38: 1 | P38: 0.01248878801 | Q38: Iran | S38: Argentina | T38: =IF($Q37=$S38, 3, IF($Q37="Draw", 1, 0)) -> 3 | U38: =IF($Q39=$S38, 3, IF($Q39="Draw", 1, 0)) -> 3 | V38: =IF($Q41=$S38, 3, IF($Q41="Draw", 1, 0)) -> 0 | W38: =RAND()/10 -> 0.06738073821 | X38: =SUM(T38:W38) -> 6.067380738 | Y38: =VLOOKUP(S38, AH38:AI41, 2, FALSE) -> 1 | Z38: Argentina | AA38: ARG | AC38: 1 | AD38: =VLOOKUP(AC38,Y38:Z41,2, FALSE) -> Argentina | AE38: =VLOOKUP(AD38,Z$38:AA$41,2, FALSE) -> ARG | AG38: =LARGE(X38:X41, 1) -> 6.067380738 | AH38: =VLOOKUP(AG38, X38:Z41, 3, FALSE) -> Argentina | AI38: 1
A39: Argentina | B39: 0.167 | C39: 5 | D39: 12 | E39: Iran | F39: 5.988023952 | G39: 0.2 | H39: 0.08333333333 | I39: 0.9548210506 | J39: 0.03189102309 | K39: 0.01328792629 | L39: 0.9548210506 | M39: 0.9867120737 | N39: 1 | P39: 0.2474993071 | Q39: Argentina | S39: Bosnia & Herzegovina | T39: =IF($Q37=$S39, 3, IF($Q37="Draw", 1, 0)) -> 0 | U39: =IF($Q40=$S39, 3, IF($Q40="Draw", 1, 0)) -> 1 | V39: =IF($Q42=$S39, 3, IF($Q42="Draw", 1, 0)) -> 1 | W39: =RAND()/10 -> 0.08199849132 | X39: =SUM(T39:W39) -> 2.081998491 | Y39: =VLOOKUP(S39, AH38:AI41, 2, FALSE) -> 4 | Z39: Bosnia & Herzegovina | AA39: BOS | AC39: 2 | AD39: =VLOOKUP(AC39,Y38:Z41,2, FALSE) -> Iran | AE39: =VLOOKUP(AD39,Z$38:AA$41,2, FALSE) -> IRN | AG39: =LARGE(X38:X41, 2) -> 4.099868575 | AH39: =VLOOKUP(AG39, X38:Z41, 3, FALSE) -> Iran | AI39: 2
A40: Nigeria | B40: 1.625 | C40: 2 | D40: 1.5 | E40: Bosnia & Herzegovina | F40: 0.6153846154 | G40: 0.5 | H40: 0.6666666667 | I40: 0.345323741 | J40: 0.2805755396 | K40: 0.3741007194 | L40: 0.345323741 | M40: 0.6258992806 | N40: 1 | P40: 0.4224573192 | Q40: Draw | S40: Iran | T40: =IF($Q38=$S40, 3, IF($Q38="Draw", 1, 0)) -> 3 | U40: =IF($Q39=$S40, 3, IF($Q39="Draw", 1, 0)) -> 0 | V40: =IF($Q42=$S40, 3, IF($Q42="Draw", 1, 0)) -> 1 | W40: 0.09986857543 | X40: 4.099868575 | Y40: =VLOOKUP(S40, AH38:AI41, 2, FALSE) -> 2 | Z40: Iran | AA40: IRN | AC40: 3 | AD40: =VLOOKUP(AC40,Y38:Z41,2, FALSE) -> Nigeria | AE40: NIG | AG40: =LARGE(X38:X41, 3) -> 4.044565349 | AH40: =VLOOKUP(AG40, X38:Z41, 3, FALSE) -> Nigeria | AI40: 3
A41: Nigeria | B41: 6.5 | C41: 3.2 | D41: 0.364 | E41: Argentina | F41: 0.1538461538 | G41: 0.3125 | H41: 2.747252747 | I41: 0.04787347724 | J41: 0.09724300064 | K41: 0.8548835221 | L41: 0.04787347724 | M41: 0.1451164779 | N41: 1 | P41: 0.0094589892 | Q41: Nigeria | S41: Nigeria | T41: =IF($Q38=$S41, 3, IF($Q38="Draw", 1, 0)) -> 0 | U41: =IF($Q40=$S41, 3, IF($Q40="Draw", 1, 0)) -> 1 | V41: =IF($Q41=$S41, 3, IF($Q41="Draw", 1, 0)) -> 3 | W41: 0.04456534932 | X41: 4.044565349 | Y41: =VLOOKUP(S41, AH38:AI41, 2, FALSE) -> 3 | Z41: Nigeria | AA41: NIG | AC41: 4 | AD41: =VLOOKUP(AC41,Y38:Z41,2, FALSE) -> Bosnia & Herzegovina | AE41: BOS | AG41: =LARGE(X38:X41, 4) -> 2.081998491 | AH41: =VLOOKUP(AG41, X38:Z41, 3, FALSE) -> Bosnia & Herzegovina | AI41: 4
A42: Bosnia & Herzegovina | B42: 0.667 | C42: 2.4 | D42: 3.5 | E42: Iran | F42: 1.499250375 | G42: 0.4166666667 | H42: 0.2857142857 | I42: 0.6809724936 | J42: 0.1892536055 | K42: 0.1297739009 | L42: 0.6809724936 | M42: 0.8702260991 | N42: 1 | P42: 0.7114851751 | Q42: Draw
A44: Germany | B44: 0.833 | C44: 2.25 | D44: 3 | E44: Portugal | F44: 1.200480192 | G44: 0.4444444444 | H44: 0.3333333333 | I44: 0.6068370305 | J44: 0.224664554 | K44: 0.1684984155 | L44: 0.6068370305 | M44: 0.8315015845 | N44: 1 | P44: 0.5427964737 | Q44: Germany | S44: Group G | T44: M1 | U44: M2 | V44: M3 | W44: Ran | X44: Tot | Y44: Pos | Z44: Group G
A45: Ghana | B45: 1.4 | C45: 2.2 | D45: 1.7 | E45: USA | F45: 0.7142857143 | G45: 0.4545454545 | H45: 0.5882352941 | I45: 0.4065217391 | J45: 0.2586956522 | K45: 0.3347826087 | L45: 0.4065217391 | M45: 0.6652173913 | N45: 1 | P45: 0.8153892923 | Q45: USA | S45: Germany | T45: =IF($Q44=$S45, 3, IF($Q44="Draw", 1, 0)) -> 3 | U45: =IF($Q46=$S45, 3, IF($Q46="Draw", 1, 0)) -> 3 | V45: =IF($Q48=$S45, 3, IF($Q48="Draw", 1, 0)) -> 0 | W45: =RAND()/10 -> 0.04038376561 | X45: =SUM(T45:W45) -> 6.040383766 | Y45: =VLOOKUP(S45, AH45:AI48, 2, FALSE) -> 2 | Z45: Germany | AA45: GER | AC45: 1 | AD45: =VLOOKUP(AC45,Y45:Z48,2, FALSE) -> Portugal | AE45: =VLOOKUP(AD45,Z$45:AA$48,2, FALSE) -> POR | AG45: =LARGE(X45:X48, 1) -> 6.069247876 | AH45: =VLOOKUP(AG45, X45:Z48, 3, FALSE) -> Portugal | AI45: 1
A46: Germany | B46: 0.364 | C46: 3.333 | D46: 6 | E46: Ghana | F46: 2.747252747 | G46: 0.300030003 | H46: 0.1666666667 | I46: 0.8547902879 | J46: 0.09335243468 | K46: 0.05185727746 | L46: 0.8547902879 | M46: 0.9481427225 | N46: 1 | P46: 0.3459015657 | Q46: Germany | S46: Portugal | T46: =IF($Q44=$S46, 3, IF($Q44="Draw", 1, 0)) -> 0 | U46: =IF($Q47=$S46, 3, IF($Q47="Draw", 1, 0)) -> 3 | V46: =IF($Q49=$S46, 3, IF($Q49="Draw", 1, 0)) -> 3 | W46: =RAND()/10 -> 0.06924787596 | X46: =SUM(T46:W46) -> 6.069247876 | Y46: =VLOOKUP(S46, AH45:AI48, 2, FALSE) -> 1 | Z46: Portugal | AA46: POR | AC46: 2 | AD46: =VLOOKUP(AC46,Y45:Z48,2, FALSE) -> Germany | AE46: =VLOOKUP(AD46,Z$45:AA$48,2, FALSE) -> GER | AG46: =LARGE(X45:X48, 2) -> 6.040383766 | AH46: =VLOOKUP(AG46, X45:Z48, 3, FALSE) -> Germany | AI46: 2
A47: USA | B47: 4 | C47: 2.3 | D47: 0.667 | E47: Portugal | F47: 0.25 | G47: 0.4347826087 | H47: 1.499250375 | I47: 0.1144671357 | J47: 0.1990732796 | K47: 0.6864595847 | L47: 0.1144671357 | M47: 0.3135404153 | N47: 1 | P47: 0.5408520508 | Q47: Portugal | S47: Ghana | T47: =IF($Q45=$S47, 3, IF($Q45="Draw", 1, 0)) -> 0 | U47: =IF($Q46=$S47, 3, IF($Q46="Draw", 1, 0)) -> 0 | V47: =IF($Q49=$S47, 3, IF($Q49="Draw", 1, 0)) -> 0 | W47: 0.0100617617 | X47: 0.0100617617 | Y47: =VLOOKUP(S47, AH45:AI48, 2, FALSE) -> 4 | Z47: Ghana | AA47: GHA | AC47: 3 | AD47: =VLOOKUP(AC47,Y45:Z48,2, FALSE) -> USA | AE47: USA | AG47: =LARGE(X45:X48, 3) -> 6.006986123 | AH47: =VLOOKUP(AG47, X45:Z48, 3, FALSE) -> USA | AI47: 3
A48: USA | B48: 6 | C48: 3 | D48: 0.4 | E48: Germany | F48: 0.1666666667 | G48: 0.3333333333 | H48: 2.5 | I48: 0.05555555556 | J48: 0.1111111111 | K48: 0.8333333333 | L48: 0.05555555556 | M48: 0.1666666667 | N48: 1 | P48: 0.04706263311 | Q48: USA | S48: USA | T48: =IF($Q45=$S48, 3, IF($Q45="Draw", 1, 0)) -> 3 | U48: =IF($Q47=$S48, 3, IF($Q47="Draw", 1, 0)) -> 0 | V48: =IF($Q48=$S48, 3, IF($Q48="Draw", 1, 0)) -> 3 | W48: 0.006986122729 | X48: 6.006986123 | Y48: =VLOOKUP(S48, AH45:AI48, 2, FALSE) -> 3 | Z48: USA | AA48: USA | AC48: 4 | AD48: =VLOOKUP(AC48,Y45:Z48,2, FALSE) -> Ghana | AE48: GHA | AG48: =LARGE(X45:X48, 4) -> 0.0100617617 | AH48: =VLOOKUP(AG48, X45:Z48, 3, FALSE) -> Ghana | AI48: 4
A49: Portugal | B49: 0.75 | C49: 2.5 | D49: 3 | E49: Ghana | F49: 1.333333333 | G49: 0.4 | H49: 0.3333333333 | I49: 0.6451612903 | J49: 0.1935483871 | K49: 0.1612903226 | L49: 0.6451612903 | M49: 0.8387096774 | N49: 1 | P49: 0.5790993846 | Q49: Portugal
A51: Belgium | B51: 0.4 | C51: 3 | D51: 5.5 | E51: Algeria | F51: 2.5 | G51: 0.3333333333 | H51: 0.1818181818 | I51: 0.8291457286 | J51: 0.1105527638 | K51: 0.06030150754 | L51: 0.8291457286 | M51: 0.9396984925 | N51: 1 | P51: 0.5164495502 | Q51: Belgium | S51: Group H | T51: M1 | U51: M2 | V51: M3 | W51: Ran | X51: Tot | Y51: Pos | Z51: Group H
A52: Russia | B52: 1 | C52: 2.1 | D52: 2.5 | E52: South Korea | F52: 1 | G52: 0.4761904762 | H52: 0.4 | I52: 0.5329949239 | J52: 0.2538071066 | K52: 0.2131979695 | L52: 0.5329949239 | M52: 0.7868020305 | N52: 1 | P52: 0.5876445165 | Q52: Draw | S52: Belgium | T52: =IF($Q51=$S52, 3, IF($Q51="Draw", 1, 0)) -> 3 | U52: =IF($Q53=$S52, 3, IF($Q53="Draw", 1, 0)) -> 1 | V52: =IF($Q55=$S52, 3, IF($Q55="Draw", 1, 0)) -> 1 | W52: =RAND()/10 -> 0.0475409278 | X52: =SUM(T52:W52) -> 5.047540928 | Y52: =VLOOKUP(S52, AH52:AI55, 2, FALSE) -> 2 | Z52: Belgium | AA52: BEL | AC52: 1 | AD52: =VLOOKUP(AC52,Y52:Z55,2, FALSE) -> South Korea | AE52: =VLOOKUP(AD52,Z$52:AA$55,2, FALSE) -> SKO | AG52: =LARGE(X52:X55, 1) -> 5.048266872 | AH52: =VLOOKUP(AG52, X52:Z55, 3, FALSE) -> South Korea | AI52: 1
A53: Belgium | B53: 1.05 | C53: 2.2 | D53: 2.2 | E53: Russia | F53: 0.9523809524 | G53: 0.4545454545 | H53: 0.4545454545 | I53: 0.511627907 | J53: 0.2441860465 | K53: 0.2441860465 | L53: 0.511627907 | M53: 0.7558139535 | N53: 1 | P53: 0.6052540908 | Q53: Draw | S53: Algeria | T53: =IF($Q51=$S53, 3, IF($Q51="Draw", 1, 0)) -> 0 | U53: =IF($Q54=$S53, 3, IF($Q54="Draw", 1, 0)) -> 0 | V53: =IF($Q56=$S53, 3, IF($Q56="Draw", 1, 0)) -> 1 | W53: =RAND()/10 -> 0.08276973001 | X53: =SUM(T53:W53) -> 1.08276973 | Y53: =VLOOKUP(S53, AH52:AI55, 2, FALSE) -> 4 | Z53: Algeria | AA53: ALG | AC53: 2 | AD53: =VLOOKUP(AC53,Y52:Z55,2, FALSE) -> Belgium | AE53: =VLOOKUP(AD53,Z$52:AA$55,2, FALSE) -> BEL | AG53: =LARGE(X52:X55, 2) -> 5.047540928 | AH53: =VLOOKUP(AG53, X52:Z55, 3, FALSE) -> Belgium | AI53: 2
A54: South Korea | B54: 1.15 | C54: 2 | D54: 2.3 | E54: Algeria | F54: 0.8695652174 | G54: 0.5 | H54: 0.4347826087 | I54: 0.4819277108 | J54: 0.2771084337 | K54: 0.2409638554 | L54: 0.4819277108 | M54: 0.7590361446 | N54: 1 | P54: 0.4314322681 | Q54: South Korea | S54: Russia | T54: =IF($Q52=$S54, 3, IF($Q52="Draw", 1, 0)) -> 1 | U54: =IF($Q53=$S54, 3, IF($Q53="Draw", 1, 0)) -> 1 | V54: =IF($Q56=$S54, 3, IF($Q56="Draw", 1, 0)) -> 1 | W54: 0.08085784229 | X54: 3.080857842 | Y54: =VLOOKUP(S54, AH52:AI55, 2, FALSE) -> 3 | Z54: Russia | AA54: RUS | AC54: 3 | AD54: =VLOOKUP(AC54,Y52:Z55,2, FALSE) -> Russia | AE54: RUS | AG54: =LARGE(X52:X55, 3) -> 3.080857842 | AH54: =VLOOKUP(AG54, X52:Z55, 3, FALSE) -> Russia | AI54: 3
A55: South Korea | B55: 4 | C55: 2.5 | D55: 0.615 | E55: Belgium | F55: 0.25 | G55: 0.4 | H55: 1.62601626 | I55: 0.109841043 | J55: 0.1757456689 | K55: 0.7144132881 | L55: 0.109841043 | M55: 0.2855867119 | N55: 1 | P55: 0.2079298404 | Q55: Draw | S55: South Korea | T55: =IF($Q52=$S55, 3, IF($Q52="Draw", 1, 0)) -> 1 | U55: =IF($Q54=$S55, 3, IF($Q54="Draw", 1, 0)) -> 3 | V55: =IF($Q55=$S55, 3, IF($Q55="Draw", 1, 0)) -> 1 | W55: 0.04826687206 | X55: 5.048266872 | Y55: =VLOOKUP(S55, AH52:AI55, 2, FALSE) -> 1 | Z55: South Korea | AA55: SKO | AC55: 4 | AD55: =VLOOKUP(AC55,Y52:Z55,2, FALSE) -> Algeria | AE55: ALG | AG55: =LARGE(X52:X55, 4) -> 1.08276973 | AH55: =VLOOKUP(AG55, X52:Z55, 3, FALSE) -> Algeria | AI55: 4
A56: Algeria | B56: 4 | C56: 2.5 | D56: 0.615 | E56: Russia | F56: 0.25 | G56: 0.4 | H56: 1.62601626 | I56: 0.109841043 | J56: 0.1757456689 | K56: 0.7144132881 | L56: 0.109841043 | M56: 0.2855867119 | N56: 1 | P56: 0.1624581614 | Q56: Draw

Sheet Knockout Rounds
A1: Round of 16 | T1: 1T | U1: 2T | V1: 1T/2T | W1: 2T/1T | X1: 1WC | Y1: 1WE | Z1: 2WC | AA1: 2WE | AB1: 1DC | AC1: 1DE | AD1: 2DC | AE1: 2DE | AF1: 1DO | AG1: 2DO
A2: Team 1 | B2: 1W | C2: D | D2: 2W | E2: Team 2 | L2: C1 | M2: C2 | N2: C3 | P2: Rand | Q2: Result | R2: Rand2
A3: ='Group Stage'!AD3 -> Brazil | B3: =X3*(V3^Y3) -> 0.2020348582 | C3: =AVERAGE(AF3:AG3) -> 4.217847106 | D3: =Z3*(W3^AA3) -> 12 | E3: ='Group Stage'!AD11 -> Australia | F3: =1/B3 -> 4.949640913 | G3: =1/C3 -> 0.2370877784 | H3: 0.08333333333 | I3: =F3/($F3+$G3+$H3) -> 0.9391997456 | J3: =G3/($F3+$G3+$H3) -> 0.04498766377 | K3: =H3/($F3+$G3+$H3) -> 0.01581259062 | L3: =I3 -> 0.9391997456 | M3: =I3+J3 -> 0.9841874094 | N3: =I3+J3+K3 -> 1 | P3: =RAND() -> 0.2889432707 | Q3: =IF(P3<L3, A3, IF(P3<M3, IF(R3<0.5, A3, E3), E3)) -> Brazil | R3: =RAND() -> 0.7496102445 | T3: =VLOOKUP(A3, KOCoeffs!$A$2:$B$33, 2, FALSE) -> 2.9 | U3: =VLOOKUP(E3, KOCoeffs!$A$2:$B$33, 2, FALSE) -> 850 | V3: =T3/U3 -> 0.003411764706 | W3: =U3/T3 -> 293.1034483 | X3: =VLOOKUP(V3, KOCoeffs!$J$14:$K$17, 2) -> 1.65 | Y3: =VLOOKUP(V3, KOCoeffs!$J$14:$L$17, 3) -> 0.3697 | Z3: =VLOOKUP(W3, KOCoeffs!$J$14:$K$17, 2) -> 12 | AA3: =VLOOKUP(W3, KOCoeffs!$J$14:$L$17, 3) -> 0 | AB3: =VLOOKUP(V3, KOCoeffs!$J$14:$M$17, 4) -> 1.87 | AC3: =VLOOKUP(V3, KOCoeffs!$J$14:$N$17, 5) -> -0.131 | AD3: =VLOOKUP(W3, KOCoeffs!$J$14:$M$17, 4) -> 4.5 | AE3: =VLOOKUP(W3, KOCoeffs!$J$14:$N$17, 5) -> 0 | AF3: =AB3*(V3^AC3) -> 3.935694212 | AG3: =AD3*(W3^AE3) -> 4.5
A4: ='Group Stage'!AD17 -> Colombia | B4: =X4*(V4^Y4) -> 1.565965114 | C4: =AVERAGE(AF4:AG4) -> 1.965132049 | D4: =Z4*(W4^AA4) -> 1.631754233 | E4: ='Group Stage'!AD25 -> Uruguay | F4: =1/B4 -> 0.6385838301 | G4: 0.5088716561 | H4: 0.6128373867 | I4: =F4/($F4+$G4+$H4) -> 0.3627713546 | J4: 0.2890835178 | K4: 0.3481451275 | L4: =I4 -> 0.3627713546 | M4: =I4+J4 -> 0.6518548725 | N4: =I4+J4+K4 -> 1 | P4: =RAND() -> 0.3763831459 | Q4: =IF(P4<L4, A4, IF(P4<M4, IF(R4<0.5, A4, E4), E4)) -> Colombia | R4: 0.03850729922 | T4: =VLOOKUP(A4, KOCoeffs!$A$2:$B$33, 2, FALSE) -> 27 | U4: =VLOOKUP(E4, KOCoeffs!$A$2:$B$33, 2, FALSE) -> 26.2 | V4: =T4/U4 -> 1.030534351 | W4: =U4/T4 -> 0.9703703704 | X4: =VLOOKUP(V4, KOCoeffs!$J$14:$K$17, 2) -> 1.55 | Y4: =VLOOKUP(V4, KOCoeffs!$J$14:$L$17, 3) -> 0.3407 | Z4: =VLOOKUP(W4, KOCoeffs!$J$14:$K$17, 2) -> 1.65 | AA4: =VLOOKUP(W4, KOCoeffs!$J$14:$L$17, 3) -> 0.3697 | AB4: =VLOOKUP(V4, KOCoeffs!$J$14:$M$17, 4) -> 2.05 | AC4: =VLOOKUP(V4, KOCoeffs!$J$14:$N$17, 5) -> 0.0467 | AD4: =VLOOKUP(W4, KOCoeffs!$J$14:$M$17, 4) -> 1.87 | AE4: =VLOOKUP(W4, KOCoeffs!$J$14:$N$17, 5) -> -0.131 | AF4: =AB4*(V4^AC4) -> 2.052881488 | AG4: =AD4*(W4^AE4) -> 1.877382609
A5: ='Group Stage'!AD31 -> Ecuador | B5: 0.7043425806 | C5: 2.446214015 | D5: 3.840873428 | E5: ='Group Stage'!AD39 -> Iran | F5: 1.41976366 | G5: 0.4087949762 | H5: 0.260357447 | I5: 0.6796652443 | J5: 0.195697175 | K5: 0.1246375808 | L5: 0.6796652443 | M5: 0.8753624192 | N5: 1 | P5: 0.7024566417 | Q5: Iran | R5: 0.6174175424 | T5: =VLOOKUP(A5, KOCoeffs!$A$2:$B$33, 2, FALSE) -> 145 | U5: =VLOOKUP(E5, KOCoeffs!$A$2:$B$33, 2, FALSE) -> 1450 | V5: 0.1 | W5: 10 | X5: =VLOOKUP(V5, KOCoeffs!$J$14:$K$17, 2) -> 1.65 | Y5: =VLOOKUP(V5, KOCoeffs!$J$14:$L$17, 3) -> 0.3697 | Z5: =VLOOKUP(W5, KOCoeffs!$J$14:$K$17, 2) -> 2 | AA5: =VLOOKUP(W5, KOCoeffs!$J$14:$L$17, 3) -> 0.2834 | AB5: =VLOOKUP(V5, KOCoeffs!$J$14:$M$17, 4) -> 1.87 | AC5: =VLOOKUP(V5, KOCoeffs!$J$14:$N$17, 5) -> -0.131 | AD5: =VLOOKUP(W5, KOCoeffs!$J$14:$M$17, 4) -> 1.58 | AE5: =VLOOKUP(W5, KOCoeffs!$J$14:$N$17, 5) -> 0.175 | AF5: 2.528375693 | AG5: 2.364052337
A6: ='Group Stage'!AD45 -> Portugal | B6: 1.862446673 | C6: 2.054533447 | D6: 1.351896311 | E6: ='Group Stage'!AD53 -> Belgium | F6: 0.5369281251 | G6: 0.4867285083 | H6: 0.7397017004 | I6: 0.3044917841 | J6: 0.276023596 | K6: 0.4194846199 | L6: 0.3044917841 | M6: 0.5805153801 | N6: 1 | P6: 0.02242660555 | Q6: Portugal | R6: 0.701755964 | T6: =VLOOKUP(A6, KOCoeffs!$A$2:$B$33, 2, FALSE) -> 28.8 | U6: =VLOOKUP(E6, KOCoeffs!$A$2:$B$33, 2, FALSE) -> 16.8 | V6: 1.714285714 | W6: 0.5833333333 | X6: =VLOOKUP(V6, KOCoeffs!$J$14:$K$17, 2) -> 1.55 | Y6: =VLOOKUP(V6, KOCoeffs!$J$14:$L$17, 3) -> 0.3407 | Z6: =VLOOKUP(W6, KOCoeffs!$J$14:$K$17, 2) -> 1.65 | AA6: =VLOOKUP(W6, KOCoeffs!$J$14:$L$17, 3) -> 0.3697 | AB6: =VLOOKUP(V6, KOCoeffs!$J$14:$M$17, 4) -> 2.05 | AC6: =VLOOKUP(V6, KOCoeffs!$J$14:$N$17, 5) -> 0.0467 | AD6: =VLOOKUP(W6, KOCoeffs!$J$14:$M$17, 4) -> 1.87 | AE6: =VLOOKUP(W6, KOCoeffs!$J$14:$N$17, 5) -> -0.131 | AF6: 2.102255739 | AG6: 2.006811156
A7: ='Group Stage'!AD10 -> Chile | B7: 1.044076892 | C7: 2.185607077 | D7: 2.363157678 | E7: ='Group Stage'!AD4 -> Mexico | F7: 0.9577838637 | G7: 0.4575387821 | H7: 0.4231626223 | I7: 0.5209635782 | J7: 0.248867255 | K7: 0.2301691668 | L7: 0.5209635782 | M7: 0.7698308332 | N7: 1 | P7: 0.9841827513 | Q7: Mexico | R7: 0.02698268557 | T7: =VLOOKUP(A7, KOCoeffs!$A$2:$B$33, 2, FALSE) -> 40.6 | U7: =VLOOKUP(E7, KOCoeffs!$A$2:$B$33, 2, FALSE) -> 140 | V7: 0.29 | W7: 3.448275862 | X7: =VLOOKUP(V7, KOCoeffs!$J$14:$K$17, 2) -> 1.65 | Y7: =VLOOKUP(V7, KOCoeffs!$J$14:$L$17, 3) -> 0.3697 | Z7: =VLOOKUP(W7, KOCoeffs!$J$14:$K$17, 2) -> 1.55 | AA7: =VLOOKUP(W7, KOCoeffs!$J$14:$L$17, 3) -> 0.3407 | AB7: =VLOOKUP(V7, KOCoeffs!$J$14:$M$17, 4) -> 1.87 | AC7: =VLOOKUP(V7, KOCoeffs!$J$14:$N$17, 5) -> -0.131 | AD7: =VLOOKUP(W7, KOCoeffs!$J$14:$M$17, 4) -> 2.05 | AE7: =VLOOKUP(W7, KOCoeffs!$J$14:$N$17, 5) -> 0.0467 | AF7: 2.199213885 | AG7: 2.172000268
A8: ='Group Stage'!AD24 -> England | B8: 0.944967403 | C8: 2.238932293 | D8: 2.590661021 | E8: ='Group Stage'!AD18 -> Ivory Coast | F8: 1.058237561 | G8: 0.4466414654 | H8: 0.3860018705 | I8: 0.5596532086 | J8: 0.236208143 | K8: 0.2041386483 | L8: 0.5596532086 | M8: 0.7958613517 | N8: 1 | P8: 0.4349361772 | Q8: England | R8: 0.4667689155 | T8: =VLOOKUP(A8, KOCoeffs!$A$2:$B$33, 2, FALSE) -> 31 | U8: =VLOOKUP(E8, KOCoeffs!$A$2:$B$33, 2, FALSE) -> 140 | V8: 0.2214285714 | W8: 4.516129032 | X8: =VLOOKUP(V8, KOCoeffs!$J$14:$K$17, 2) -> 1.65 | Y8: =VLOOKUP(V8, KOCoeffs!$J$14:$L$17, 3) -> 0.3697 | Z8: =VLOOKUP(W8, KOCoeffs!$J$14:$K$17, 2) -> 1.55 | AA8: =VLOOKUP(W8, KOCoeffs!$J$14:$L$17, 3) -> 0.3407 | AB8: =VLOOKUP(V8, KOCoeffs!$J$14:$M$17, 4) -> 1.87 | AC8: =VLOOKUP(V8, KOCoeffs!$J$14:$N$17, 5) -> -0.131 | AD8: =VLOOKUP(W8, KOCoeffs!$J$14:$M$17, 4) -> 2.05 | AE8: =VLOOKUP(W8, KOCoeffs!$J$14:$N$17, 5) -> 0.0467 | AF8: 2.278326687 | AG8: 2.199537898
A9: ='Group Stage'!AD38 -> Argentina | B9: 0.5149237539 | C9: 2.783545898 | D9: 4.883313618 | E9: ='Group Stage'!AD32 -> Switzerland | F9: =1/B9 -> 1.942035092 | G9: =1/C9 -> 0.3592540006 | H9: =1/D9 -> 0.2047789837 | I9: =F9/($F9+$G9+$H9) -> 0.7749330956 | J9: =G9/($F9+$G9+$H9) -> 0.1433536479 | K9: =H9/($F9+$G9+$H9) -> 0.08171325657 | L9: =I9 -> 0.7749330956 | M9: =I9+J9 -> 0.9182867434 | N9: =I9+J9+K9 -> 1 | P9: 0.7526560937 | Q9: Argentina | R9: 0.1881937202 | T9: =VLOOKUP(A9, KOCoeffs!$A$2:$B$33, 2, FALSE) -> 4.5 | U9: =VLOOKUP(E9, KOCoeffs!$A$2:$B$33, 2, FALSE) -> 105 | V9: 0.04285714286 | W9: 23.33333333 | X9: =VLOOKUP(V9, KOCoeffs!$J$14:$K$17, 2) -> 1.65 | Y9: =VLOOKUP(V9, KOCoeffs!$J$14:$L$17, 3) -> 0.3697 | Z9: =VLOOKUP(W9, KOCoeffs!$J$14:$K$17, 2) -> 2 | AA9: =VLOOKUP(W9, KOCoeffs!$J$14:$L$17, 3) -> 0.2834 | AB9: =VLOOKUP(V9, KOCoeffs!$J$14:$M$17, 4) -> 1.87 | AC9: =VLOOKUP(V9, KOCoeffs!$J$14:$N$17, 5) -> -0.131 | AD9: =VLOOKUP(W9, KOCoeffs!$J$14:$M$17, 4) -> 1.58 | AE9: =VLOOKUP(W9, KOCoeffs!$J$14:$N$17, 5) -> 0.175 | AF9: 2.825182877 | AG9: 2.74190892
A10: ='Group Stage'!AD52 -> South Korea | B10: 6.798644893 | C10: 3.327811443 | D10: 0.3344057952 | E10: ='Group Stage'!AD46 -> Germany | F10: 0.1470881353 | G10: 0.3004977947 | H10: 2.990378798 | I10: 0.04278349167 | J10: 0.0874057236 | K10: 0.8698107847 | L10: 0.04278349167 | M10: 0.1301892153 | N10: 1 | P10: 0.1709219808 | Q10: Germany | R10: 0.4249741569 | T10: =VLOOKUP(A10, KOCoeffs!$A$2:$B$33, 2, FALSE) -> 390 | U10: =VLOOKUP(E10, KOCoeffs!$A$2:$B$33, 2, FALSE) -> 5.2 | V10: 75 | W10: 0.01333333333 | X10: =VLOOKUP(V10, KOCoeffs!$J$14:$K$17, 2) -> 2 | Y10: =VLOOKUP(V10, KOCoeffs!$J$14:$L$17, 3) -> 0.2834 | Z10: =VLOOKUP(W10, KOCoeffs!$J$14:$K$17, 2) -> 1.65 | AA10: =VLOOKUP(W10, KOCoeffs!$J$14:$L$17, 3) -> 0.3697 | AB10: =VLOOKUP(V10, KOCoeffs!$J$14:$M$17, 4) -> 1.58 | AC10: =VLOOKUP(V10, KOCoeffs!$J$14:$N$17, 5) -> 0.175 | AD10: =VLOOKUP(W10, KOCoeffs!$J$14:$M$17, 4) -> 1.87 | AE10: =VLOOKUP(W10, KOCoeffs!$J$14:$N$17, 5) -> -0.131 | AF10: 3.363510657 | AG10: 3.292112229
A13: Quarter-finals
A14: =Q3 -> Brazil | B14: =X14*(V14^Y14) -> 0.7231981399 | C14: =AVERAGE(AF14:AG14) -> 2.389969511 | D14: =Z14*(W14^AA14) -> 3.314807667 | E14: =Q4 -> Colombia | F14: =1/B14 -> 1.382746919 | G14: =1/C14 -> 0.4184153795 | H14: =1/D14 -> 0.3016766281 | I14: =F14/($F14+$G14+$H14) -> 0.6575619757 | J14: =G14/($F14+$G14+$H14) -> 0.1989764286 | K14: =H14/($F14+$G14+$H14) -> 0.1434615958 | L14: =I14 -> 0.6575619757 | M14: =I14+J14 -> 0.8565384042 | N14: =I14+J14+K14 -> 1 | P14: =RAND() -> 0.4381058385 | Q14: Brazil | R14: =RAND() -> 0.3645768089 | T14: =VLOOKUP(A14, KOCoeffs!$A$2:$B$33, 2, FALSE) -> 2.9 | U14: =VLOOKUP(E14, KOCoeffs!$A$2:$B$33, 2, FALSE) -> 27 | V14: 0.1074074074 | W14: 9.310344828 | X14: =VLOOKUP(V14, KOCoeffs!$J$14:$K$17, 2) -> 1.65 | Y14: =VLOOKUP(V14, KOCoeffs!$J$14:$L$17, 3) -> 0.3697 | Z14: =VLOOKUP(W14, KOCoeffs!$J$14:$K$17, 2) -> 1.55 | AA14: =VLOOKUP(W14, KOCoeffs!$J$14:$L$17, 3) -> 0.3407 | AB14: =VLOOKUP(V14, KOCoeffs!$J$14:$M$17, 4) -> 1.87 | AC14: =VLOOKUP(V14, KOCoeffs!$J$14:$N$17, 5) -> -0.131 | AD14: =VLOOKUP(W14, KOCoeffs!$J$14:$M$17, 4) -> 2.05 | AE14: =VLOOKUP(W14, KOCoeffs!$J$14:$N$17, 5) -> 0.0467 | AF14: 2.504817691 | AG14: 2.275121331
A15: =Q5 -> Iran | B15: =X15*(V15^Y15) -> 6.072532621 | C15: =AVERAGE(AF15:AG15) -> 3.130779162 | D15: =Z15*(W15^AA15) -> 0.3874927636 | E15: =Q6 -> Portugal | F15: =1/B15 -> 0.1646759371 | G15: 0.3194093062 | H15: 2.580693355 | I15: =F15/($F15+$G15+$H15) -> 0.05373175642 | J15: =G15/($F15+$G15+$H15) -> 0.1042193738 | K15: 0.8420488698 | L15: =I15 -> 0.05373175642 | M15: =I15+J15 -> 0.1579511302 | N15: =I15+J15+K15 -> 1 | P15: =RAND() -> 0.09252427713 | Q15: Iran | R15: 0.4863350443 | T15: =VLOOKUP(A15, KOCoeffs!$A$2:$B$33, 2, FALSE) -> 1450 | U15: =VLOOKUP(E15, KOCoeffs!$A$2:$B$33, 2, FALSE) -> 28.8 | V15: 50.34722222 | W15: 0.01986206897 | X15: =VLOOKUP(V15, KOCoeffs!$J$14:$K$17, 2) -> 2 | Y15: =VLOOKUP(V15, KOCoeffs!$J$14:$L$17, 3) -> 0.2834 | Z15: =VLOOKUP(W15, KOCoeffs!$J$14:$K$17, 2) -> 1.65 | AA15: =VLOOKUP(W15, KOCoeffs!$J$14:$L$17, 3) -> 0.3697 | AB15: =VLOOKUP(V15, KOCoeffs!$J$14:$M$17, 4) -> 1.58 | AC15: =VLOOKUP(V15, KOCoeffs!$J$14:$N$17, 5) -> 0.175 | AD15: =VLOOKUP(W15, KOCoeffs!$J$14:$M$17, 4) -> 1.87 | AE15: =VLOOKUP(W15, KOCoeffs!$J$14:$N$17, 5) -> -0.131 | AF15: 3.136915369 | AG15: 3.124642956
A16: =Q7 -> Mexico | B16: 2.590661021 | C16: 2.238932293 | D16: 0.944967403 | E16: =Q8 -> England | F16: 0.3860018705 | G16: 0.4466414654 | H16: 1.058237561 | I16: 0.2041386483 | J16: 0.236208143 | K16: 0.5596532086 | L16: 0.2041386483 | M16: 0.4403467914 | N16: 1 | P16: 0.3808366122 | Q16: Mexico | R16: 0.193779569 | T16: =VLOOKUP(A16, KOCoeffs!$A$2:$B$33, 2, FALSE) -> 140 | U16: =VLOOKUP(E16, KOCoeffs!$A$2:$B$33, 2, FALSE) -> 31 | V16: 4.516129032 | W16: 0.2214285714 | X16: =VLOOKUP(V16, KOCoeffs!$J$14:$K$17, 2) -> 1.55 | Y16: =VLOOKUP(V16, KOCoeffs!$J$14:$L$17, 3) -> 0.3407 | Z16: =VLOOKUP(W16, KOCoeffs!$J$14:$K$17, 2) -> 1.65 | AA16: =VLOOKUP(W16, KOCoeffs!$J$14:$L$17, 3) -> 0.3697 | AB16: =VLOOKUP(V16, KOCoeffs!$J$14:$M$17, 4) -> 2.05 | AC16: =VLOOKUP(V16, KOCoeffs!$J$14:$N$17, 5) -> 0.0467 | AD16: =VLOOKUP(W16, KOCoeffs!$J$14:$M$17, 4) -> 1.87 | AE16: =VLOOKUP(W16, KOCoeffs!$J$14:$N$17, 5) -> -0.131 | AF16: 2.199537898 | AG16: 2.278326687
A17: =Q9 -> Argentina | B17: 1.564120379 | C17: 1.98482196 | D17: 1.628262924 | E17: =Q10 -> Germany | F17: 0.6393369805 | G17: 0.5038235267 | H17: 0.6141514282 | I17: 0.3638153066 | J17: 0.286701249 | K17: 0.3494834445 | L17: 0.3638153066 | M17: 0.6505165555 | N17: 1 | P17: 0.6520390187 | Q17: Germany | R17: 0.8495937352 | T17: =VLOOKUP(A17, KOCoeffs!$A$2:$B$33, 2, FALSE) -> 4.5 | U17: =VLOOKUP(E17, KOCoeffs!$A$2:$B$33, 2, FALSE) -> 5.2 | V17: 0.8653846154 | W17: 1.155555556 | X17: =VLOOKUP(V17, KOCoeffs!$J$14:$K$17, 2) -> 1.65 | Y17: =VLOOKUP(V17, KOCoeffs!$J$14:$L$17, 3) -> 0.3697 | Z17: =VLOOKUP(W17, KOCoeffs!$J$14:$K$17, 2) -> 1.55 | AA17: =VLOOKUP(W17, KOCoeffs!$J$14:$L$17, 3) -> 0.3407 | AB17: =VLOOKUP(V17, KOCoeffs!$J$14:$M$17, 4) -> 1.87 | AC17: =VLOOKUP(V17, KOCoeffs!$J$14:$N$17, 5) -> -0.131 | AD17: =VLOOKUP(W17, KOCoeffs!$J$14:$M$17, 4) -> 2.05 | AE17: =VLOOKUP(W17, KOCoeffs!$J$14:$N$17, 5) -> 0.0467 | AF17: 1.905755603 | AG17: 2.063888318
A20: Semi-finals
A21: =Q14 -> Brazil | B21: =X21*(V21^Y21) -> 0.1658344419 | C21: =AVERAGE(AF21:AG21) -> 4.360457843 | D21: =Z21*(W21^AA21) -> 12 | E21: =Q15 -> Iran | F21: =1/B21 -> 6.030110442 | G21: =1/C21 -> 0.2293337159 | H21: =1/D21 -> 0.08333333333 | I21: =F21/($F21+$G21+$H21) -> 0.9507050264 | J21: =G21/($F21+$G21+$H21) -> 0.03615667051 | K21: =H21/($F21+$G21+$H21) -> 0.01313830312 | L21: =I21 -> 0.9507050264 | M21: =I21+J21 -> 0.9868616969 | N21: =I21+J21+K21 -> 1 | P21: =RAND() -> 0.1156020214 | Q21: =IF(P21<L21, A21, IF(P21<M21, IF(R21<0.5, A21, E21), E21)) -> Brazil | R21: =RAND() -> 0.7251022937 | T21: =VLOOKUP(A21, KOCoeffs!$A$2:$B$33, 2, FALSE) -> 2.9 | U21: =VLOOKUP(E21, KOCoeffs!$A$2:$B$33, 2, FALSE) -> 1450 | V21: 0.002 | W21: 500 | X21: =VLOOKUP(V21, KOCoeffs!$J$14:$K$17, 2) -> 1.65 | Y21: =VLOOKUP(V21, KOCoeffs!$J$14:$L$17, 3) -> 0.3697 | Z21: =VLOOKUP(W21, KOCoeffs!$J$14:$K$17, 2) -> 12 | AA21: =VLOOKUP(W21, KOCoeffs!$J$14:$L$17, 3) -> 0 | AB21: =VLOOKUP(V21, KOCoeffs!$J$14:$M$17, 4) -> 1.87 | AC21: =VLOOKUP(V21, KOCoeffs!$J$14:$N$17, 5) -> -0.131 | AD21: =VLOOKUP(W21, KOCoeffs!$J$14:$M$17, 4) -> 4.5 | AE21: =VLOOKUP(W21, KOCoeffs!$J$14:$N$17, 5) -> 0 | AF21: 4.220915686 | AG21: 4.5
A22: =Q16 -> Mexico | B22: =X22*(V22^Y22) -> 5.085425933 | C22: =AVERAGE(AF22:AG22) -> 2.845042227 | D22: =Z22*(W22^AA22) -> 0.4883900929 | E22: =Q17 -> Germany | F22: =1/B22 -> 0.1966403627 | G22: 0.3514886319 | H22: 2.047543582 | I22: =F22/($F22+$G22+$H22) -> 0.07575699821 | J22: =G22/($F22+$G22+$H22) -> 0.1354133164 | K22: 0.7888296854 | L22: =I22 -> 0.07575699821 | M22: =I22+J22 -> 0.2111703146 | N22: =I22+J22+K22 -> 1 | P22: =RAND() -> 0.1676498152 | Q22: =IF(P22<L22, A22, IF(P22<M22, IF(R22<0.5, A22, E22), E22)) -> Mexico | R22: 0.300287215 | T22: =VLOOKUP(A22, KOCoeffs!$A$2:$B$33, 2, FALSE) -> 140 | U22: =VLOOKUP(E22, KOCoeffs!$A$2:$B$33, 2, FALSE) -> 5.2 | V22: 26.92307692 | W22: 0.03714285714 | X22: =VLOOKUP(V22, KOCoeffs!$J$14:$K$17, 2) -> 2 | Y22: =VLOOKUP(V22, KOCoeffs!$J$14:$L$17, 3) -> 0.2834 | Z22: =VLOOKUP(W22, KOCoeffs!$J$14:$K$17, 2) -> 1.65 | AA22: =VLOOKUP(W22, KOCoeffs!$J$14:$L$17, 3) -> 0.3697 | AB22: =VLOOKUP(V22, KOCoeffs!$J$14:$M$17, 4) -> 1.58 | AC22: =VLOOKUP(V22, KOCoeffs!$J$14:$N$17, 5) -> 0.175 | AD22: =VLOOKUP(W22, KOCoeffs!$J$14:$M$17, 4) -> 1.87 | AE22: =VLOOKUP(W22, KOCoeffs!$J$14:$N$17, 5) -> -0.131 | AF22: 2.811440573 | AG22: 2.87864388
A25: Third-placed play-off
A26: =IF(P21<L21, E21, IF(P21<M21, IF(R21<0.5, E21, A21), A21)) -> Iran | B26: =X26*(V26^Y26) -> 12 | C26: =AVERAGE(AF26:AG26) -> 4.2050343 | D26: =Z26*(W26^AA26) -> 0.2057939627 | E26: =IF(P22<L22, E22, IF(P22<M22, IF(R22<0.5, E22, A22), A22)) -> Germany | F26: =1/B26 -> 0.08333333333 | G26: =1/C26 -> 0.2378101886 | H26: =1/D26 -> 4.85922904 | I26: =F26/($F26+$G26+$H26) -> 0.0160863591 | J26: =G26/($F26+$G26+$H26) -> 0.04590600112 | K26: =H26/($F26+$G26+$H26) -> 0.9380076398 | L26: =I26 -> 0.0160863591 | M26: =I26+J26 -> 0.06199236022 | N26: =I26+J26+K26 -> 1 | P26: =RAND() -> 0.257551741 | Q26: =IF(P26<L26, A26, IF(P26<M26, IF(R26<0.5, A26, E26), E26)) -> Germany | R26: =RAND() -> 0.006535026799 | T26: =VLOOKUP(A26, KOCoeffs!$A$2:$B$33, 2, FALSE) -> 1450 | U26: =VLOOKUP(E26, KOCoeffs!$A$2:$B$33, 2, FALSE) -> 5.2 | V26: =T26/U26 -> 278.8461538 | W26: =U26/T26 -> 0.003586206897 | X26: =VLOOKUP(V26, KOCoeffs!$J$14:$K$17, 2) -> 12 | Y26: =VLOOKUP(V26, KOCoeffs!$J$14:$L$17, 3) -> 0 | Z26: =VLOOKUP(W26, KOCoeffs!$J$14:$K$17, 2) -> 1.65 | AA26: =VLOOKUP(W26, KOCoeffs!$J$14:$L$17, 3) -> 0.3697 | AB26: =VLOOKUP(V26, KOCoeffs!$J$14:$M$17, 4) -> 4.5 | AC26: =VLOOKUP(V26, KOCoeffs!$J$14:$N$17, 5) -> 0 | AD26: =VLOOKUP(W26, KOCoeffs!$J$14:$M$17, 4) -> 1.87 | AE26: =VLOOKUP(W26, KOCoeffs!$J$14:$N$17, 5) -> -0.131 | AF26: =AB26*(V26^AC26) -> 4.5 | AG26: =AD26*(W26^AE26) -> 3.910068599
A29: Final
A30: =Q21 -> Brazil | B30: =X30*(V30^Y30) -> 0.3935581852 | C30: =AVERAGE(AF30:AG30) -> 3.110715373 | D30: =Z30*(W30^AA30) -> 6.000660943 | E30: =Q22 -> Mexico | F30: =1/B30 -> 2.540920346 | G30: =1/C30 -> 0.3214694628 | H30: =1/D30 -> 0.1666483092 | I30: =F30/($F30+$G30+$H30) -> 0.8388538694 | J30: =G30/($F30+$G30+$H30) -> 0.1061292233 | K30: =H30/($F30+$G30+$H30) -> 0.05501690725 | L30: =I30 -> 0.8388538694 | M30: =I30+J30 -> 0.9449830928 | N30: =I30+J30+K30 -> 1 | P30: =RAND() -> 0.2640353069 | Q30: Brazil | R30: =RAND() -> 0.06987270541 | T30: =VLOOKUP(A30, KOCoeffs!$A$2:$B$33, 2, FALSE) -> 2.9 | U30: =VLOOKUP(E30, KOCoeffs!$A$2:$B$33, 2, FALSE) -> 140 | V30: 0.02071428571 | W30: 48.27586207 | X30: =VLOOKUP(V30, KOCoeffs!$J$14:$K$17, 2) -> 1.65 | Y30: =VLOOKUP(V30, KOCoeffs!$J$14:$L$17, 3) -> 0.3697 | Z30: =VLOOKUP(W30, KOCoeffs!$J$14:$K$17, 2) -> 2 | AA30: =VLOOKUP(W30, KOCoeffs!$J$14:$L$17, 3) -> 0.2834 | AB30: =VLOOKUP(V30, KOCoeffs!$J$14:$M$17, 4) -> 1.87 | AC30: =VLOOKUP(V30, KOCoeffs!$J$14:$N$17, 5) -> -0.131 | AD30: =VLOOKUP(W30, KOCoeffs!$J$14:$M$17, 4) -> 1.58 | AE30: =VLOOKUP(W30, KOCoeffs!$J$14:$N$17, 5) -> 0.175 | AF30: 3.10749359 | AG30: 3.113937156

Sheet OddsCreation (hidden)
E1: T1C | F1: T2C | G1: T1/T2 | H1: W | I1: D
A2: Brazil | B2: 0.3 | C2: 3.6 | D2: Croatia | E2: =VLOOKUP(A2, KOCoeffs!A$2:B$33, 2, FALSE) -> 2.9 | F2: =VLOOKUP(D2, KOCoeffs!A$2:B$33, 2, FALSE) -> 165 | G2: =E2/F2 -> 0.01757575758 | H2: =B2 -> 0.3 | I2: =C2 -> 3.6
A3: Mexico | B3: 1.15 | C3: 2 | D3: Cameroon | E3: =VLOOKUP(A3, KOCoeffs!A$2:B$33, 2, FALSE) -> 140 | F3: =VLOOKUP(D3, KOCoeffs!A$2:B$33, 2, FALSE) -> 800 | G3: =E3/F3 -> 0.175 | H3: =B3 -> 1.15 | I3: =C3 -> 2
A4: Brazil | B4: 0.364 | C4: 3.333 | D4: Mexico | E4: =VLOOKUP(A4, KOCoeffs!A$2:B$33, 2, FALSE) -> 2.9 | F4: =VLOOKUP(D4, KOCoeffs!A$2:B$33, 2, FALSE) -> 140 | G4: 0.02071428571 | H4: 0.364 | I4: 3.333
A5: Cameroon | B5: 2.4 | C5: 2 | D5: Croatia | E5: =VLOOKUP(A5, KOCoeffs!A$2:B$33, 2, FALSE) -> 800 | F5: =VLOOKUP(D5, KOCoeffs!A$2:B$33, 2, FALSE) -> 165 | G5: 4.848484848 | H5: 2.4 | I5: 2
A6: Cameroon | B6: 12 | C6: 4 | D6: Brazil | E6: =VLOOKUP(A6, KOCoeffs!A$2:B$33, 2, FALSE) -> 800 | F6: =VLOOKUP(D6, KOCoeffs!A$2:B$33, 2, FALSE) -> 2.9 | G6: 275.862069 | H6: 12 | I6: 4 | L6: Croatia | M6: 3.6 | N6: Brazil
A7: Croatia | B7: 1.5 | C7: 2.3 | D7: Mexico | E7: =VLOOKUP(A7, KOCoeffs!A$2:B$33, 2, FALSE) -> 165 | F7: =VLOOKUP(D7, KOCoeffs!A$2:B$33, 2, FALSE) -> 140 | G7: 1.178571429 | H7: 1.5 | I7: 2.3 | L7: Iran | M7: 5 | N7: Argentina
A8: Spain | B8: 1 | C8: 2.1 | D8: Netherlands | E8: =VLOOKUP(A8, KOCoeffs!A$2:B$33, 2, FALSE) -> 6 | F8: =VLOOKUP(D8, KOCoeffs!A$2:B$33, 2, FALSE) -> 28.4 | G8: 0.2112676056 | H8: 1 | I8: 2.1 | L8: Cameroon | M8: 4 | N8: Brazil
A9: Chile | B9: 0.5 | C9: 2.75 | D9: Australia | E9: =VLOOKUP(A9, KOCoeffs!A$2:B$33, 2, FALSE) -> 40.6 | F9: =VLOOKUP(D9, KOCoeffs!A$2:B$33, 2, FALSE) -> 850 | G9: 0.04776470588 | H9: 0.5 | I9: 2.75 | L9: Australia | M9: 4 | N9: Spain
A10: Australia | B10: 5.5 | C10: 3.5 | D10: Netherlands | E10: =VLOOKUP(A10, KOCoeffs!A$2:B$33, 2, FALSE) -> 850 | F10: =VLOOKUP(D10, KOCoeffs!A$2:B$33, 2, FALSE) -> 28.4 | G10: 29.92957746 | H10: 5.5 | I10: 3.5 | L10: Honduras | M10: 3.5 | N10: France
A11: Spain | B11: 0.7 | C11: 2.4 | D11: Chile | E11: =VLOOKUP(A11, KOCoeffs!A$2:B$33, 2, FALSE) -> 6 | F11: =VLOOKUP(D11, KOCoeffs!A$2:B$33, 2, FALSE) -> 40.6 | G11: 0.1477832512 | H11: 0.7 | I11: 2.4 | L11: Costa Rica | M11: 3.5 | N11: Italy
A12: Australia | B12: 8 | C12: 4 | D12: Spain | E12: =VLOOKUP(A12, KOCoeffs!A$2:B$33, 2, FALSE) -> 850 | F12: =VLOOKUP(D12, KOCoeffs!A$2:B$33, 2, FALSE) -> 6 | G12: 141.6666667 | H12: 8 | I12: 4 | L12: Costa Rica | M12: 3.2 | N12: Uruguay
A13: Netherlands | B13: 1.2 | C13: 2.3 | D13: Chile | E13: =VLOOKUP(A13, KOCoeffs!A$2:B$33, 2, FALSE) -> 28.4 | F13: =VLOOKUP(D13, KOCoeffs!A$2:B$33, 2, FALSE) -> 40.6 | G13: 0.6995073892 | H13: 1.2 | I13: 2.3 | L13: Algeria | M13: 3 | N13: Belgium
A14: Colombia | B14: 0.7 | C14: 2.4 | D14: Greece | E14: =VLOOKUP(A14, KOCoeffs!A$2:B$33, 2, FALSE) -> 27 | F14: =VLOOKUP(D14, KOCoeffs!A$2:B$33, 2, FALSE) -> 270 | G14: 0.1 | H14: 0.7 | I14: 2.4 | L14: Costa Rica | M14: 2.8 | N14: England
A15: Ivory Coast | B15: 1.5 | C15: 2 | D15: Japan | E15: =VLOOKUP(A15, KOCoeffs!A$2:B$33, 2, FALSE) -> 140 | F15: =VLOOKUP(D15, KOCoeffs!A$2:B$33, 2, FALSE) -> 155 | G15: 0.9032258065 | H15: 1.5 | I15: 2 | L15: Nigeria | M15: 3.2 | N15: Argentina
A16: Colombia | B16: 1 | C16: 2.25 | D16: Ivory Coast | E16: =VLOOKUP(A16, KOCoeffs!A$2:B$33, 2, FALSE) -> 27 | F16: =VLOOKUP(D16, KOCoeffs!A$2:B$33, 2, FALSE) -> 140 | G16: 0.1928571429 | H16: 1 | I16: 2.25 | L16: Mexico | M16: 3.333 | N16: Brazil
A17: Japan | B17: 1.3 | C17: 2 | D17: Greece | E17: =VLOOKUP(A17, KOCoeffs!A$2:B$33, 2, FALSE) -> 155 | F17: =VLOOKUP(D17, KOCoeffs!A$2:B$33, 2, FALSE) -> 270 | G17: 0.5740740741 | H17: 1.3 | I17: 2 | L17: Ghana | M17: 3.333 | N17: Germany
A18: Japan | B18: 2.75 | C18: 2.5 | D18: Colombia | E18: =VLOOKUP(A18, KOCoeffs!A$2:B$33, 2, FALSE) -> 155 | F18: =VLOOKUP(D18, KOCoeffs!A$2:B$33, 2, FALSE) -> 27 | G18: 5.740740741 | H18: 2.75 | I18: 2.5 | L18: Bosnia & Herzegovina | M18: 3.333 | N18: Argentina
A19: Greece | B19: 1.8 | C19: 2.25 | D19: Ivory Coast | E19: =VLOOKUP(A19, KOCoeffs!A$2:B$33, 2, FALSE) -> 270 | F19: =VLOOKUP(D19, KOCoeffs!A$2:B$33, 2, FALSE) -> 140 | G19: 1.928571429 | H19: 1.8 | I19: 2.25 | L19: USA | M19: 3 | N19: Germany
A20: Uruguay | B20: 0.33 | C20: 3.2 | D20: Costa Rica | E20: =VLOOKUP(A20, KOCoeffs!A$2:B$33, 2, FALSE) -> 26.2 | F20: =VLOOKUP(D20, KOCoeffs!A$2:B$33, 2, FALSE) -> 2200 | G20: 0.01190909091 | H20: 0.33 | I20: 3.2 | L20: Australia | M20: 3.5 | N20: Netherlands
A21: England | B21: 2 | C21: 1.8 | D21: Italy | E21: =VLOOKUP(A21, KOCoeffs!A$2:B$33, 2, FALSE) -> 31 | F21: =VLOOKUP(D21, KOCoeffs!A$2:B$33, 2, FALSE) -> 23.4 | G21: 1.324786325 | H21: 2 | I21: 1.8 | L21: South Korea | M21: 2.5 | N21: Belgium
A22: Uruguay | B22: 1.6 | C22: 2.1 | D22: England | E22: =VLOOKUP(A22, KOCoeffs!A$2:B$33, 2, FALSE) -> 26.2 | F22: =VLOOKUP(D22, KOCoeffs!A$2:B$33, 2, FALSE) -> 31 | G22: 0.8451612903 | H22: 1.6 | I22: 2.1 | L22: Australia | M22: 2.75 | N22: Chile
A23: Italy | B23: 0.333 | C23: 3.5 | D23: Costa Rica | E23: =VLOOKUP(A23, KOCoeffs!A$2:B$33, 2, FALSE) -> 23.4 | F23: =VLOOKUP(D23, KOCoeffs!A$2:B$33, 2, FALSE) -> 2200 | G23: 0.01063636364 | H23: 0.333 | I23: 3.5 | L23: Honduras | M23: 2.5 | N23: Switzerland
A24: Italy | B24: 1.375 | C24: 2.25 | D24: Uruguay | E24: =VLOOKUP(A24, KOCoeffs!A$2:B$33, 2, FALSE) -> 23.4 | F24: =VLOOKUP(D24, KOCoeffs!A$2:B$33, 2, FALSE) -> 26.2 | G24: 0.893129771 | H24: 1.375 | I24: 2.25 | L24: Algeria | M24: 2.5 | N24: Russia
A25: Costa Rica | B25: 5 | C25: 2.75 | D25: England | E25: =VLOOKUP(A25, KOCoeffs!A$2:B$33, 2, FALSE) -> 2200 | F25: =VLOOKUP(D25, KOCoeffs!A$2:B$33, 2, FALSE) -> 31 | G25: 70.96774194 | H25: 5 | I25: 2.75 | L25: Honduras | M25: 2.3 | N25: Ecuador
A26: Switzerland | B26: 1.3 | C26: 2 | D26: Ecuador | E26: =VLOOKUP(A26, KOCoeffs!A$2:B$33, 2, FALSE) -> 105 | F26: =VLOOKUP(D26, KOCoeffs!A$2:B$33, 2, FALSE) -> 145 | G26: 0.724137931 | H26: 1.3 | I26: 2 | L26: Greece | M26: 2.4 | N26: Colombia
A27: France | B27: 0.3 | C27: 3.5 | D27: Honduras | E27: =VLOOKUP(A27, KOCoeffs!A$2:B$33, 2, FALSE) -> 21 | F27: =VLOOKUP(D27, KOCoeffs!A$2:B$33, 2, FALSE) -> 2100 | G27: 0.01 | H27: 0.3 | I27: 3.5 | L27: Iran | M27: 2.4 | N27: Bosnia & Herzegovina
A28: Switzerland | B28: 3 | C28: 2.1 | D28: France | E28: =VLOOKUP(A28, KOCoeffs!A$2:B$33, 2, FALSE) -> 105 | F28: =VLOOKUP(D28, KOCoeffs!A$2:B$33, 2, FALSE) -> 21 | G28: 5 | H28: 3 | I28: 2.1 | L28: Ghana | M28: 2.5 | N28: Portugal
A29: Honduras | B29: 4 | C29: 2.3 | D29: Ecuador | E29: =VLOOKUP(A29, KOCoeffs!A$2:B$33, 2, FALSE) -> 2100 | F29: =VLOOKUP(D29, KOCoeffs!A$2:B$33, 2, FALSE) -> 145 | G29: 14.48275862 | H29: 4 | I29: 2.3 | L29: Ecuador | M29: 2.3 | N29: France
A30: Honduras | B30: 4.5 | C30: 2.5 | D30: Switzerland | E30: =VLOOKUP(A30, KOCoeffs!A$2:B$33, 2, FALSE) -> 2100 | F30: =VLOOKUP(D30, KOCoeffs!A$2:B$33, 2, FALSE) -> 105 | G30: 20 | H30: 4.5 | I30: 2.5 | L30: Chile | M30: 2.4 | N30: Spain
A31: Ecuador | B31: 2.1 | C31: 2.3 | D31: France | E31: =VLOOKUP(A31, KOCoeffs!A$2:B$33, 2, FALSE) -> 145 | F31: =VLOOKUP(D31, KOCoeffs!A$2:B$33, 2, FALSE) -> 21 | G31: 6.904761905 | H31: 2.1 | I31: 2.3 | L31: Iran | M31: 2 | N31: Nigeria
A32: Argentina | B32: 0.364 | C32: 3.333 | D32: Bosnia & Herzegovina | E32: =VLOOKUP(A32, KOCoeffs!A$2:B$33, 2, FALSE) -> 4.5 | F32: =VLOOKUP(D32, KOCoeffs!A$2:B$33, 2, FALSE) -> 170 | G32: 0.02647058824 | H32: 0.364 | I32: 3.333 | L32: USA | M32: 2.3 | N32: Portugal
A33: Iran | B33: 2.6 | C33: 2 | D33: Nigeria | E33: =VLOOKUP(A33, KOCoeffs!A$2:B$33, 2, FALSE) -> 1450 | F33: =VLOOKUP(D33, KOCoeffs!A$2:B$33, 2, FALSE) -> 230 | G33: 6.304347826 | H33: 2.6 | I33: 2 | L33: Japan | M33: 2.5 | N33: Colombia
A34: Argentina | B34: 0.167 | C34: 5 | D34: Iran | E34: =VLOOKUP(A34, KOCoeffs!A$2:B$33, 2, FALSE) -> 4.5 | F34: =VLOOKUP(D34, KOCoeffs!A$2:B$33, 2, FALSE) -> 1450 | G34: 0.003103448276 | H34: 0.167 | I34: 5 | L34: Cameroon | M34: 2 | N34: Mexico
A35: Nigeria | B35: 1.625 | C35: 2 | D35: Bosnia & Herzegovina | E35: =VLOOKUP(A35, KOCoeffs!A$2:B$33, 2, FALSE) -> 230 | F35: =VLOOKUP(D35, KOCoeffs!A$2:B$33, 2, FALSE) -> 170 | G35: 1.352941176 | H35: 1.625 | I35: 2 | L35: Portugal | M35: 2.25 | N35: Germany
A36: Nigeria | B36: 6.5 | C36: 3.2 | D36: Argentina | E36: =VLOOKUP(A36, KOCoeffs!A$2:B$33, 2, FALSE) -> 230 | F36: =VLOOKUP(D36, KOCoeffs!A$2:B$33, 2, FALSE) -> 4.5 | G36: 51.11111111 | H36: 6.5 | I36: 3.2 | L36: Ivory Coast | M36: 2.25 | N36: Colombia
A37: Bosnia & Herzegovina | B37: 0.667 | C37: 2.4 | D37: Iran | E37: =VLOOKUP(A37, KOCoeffs!A$2:B$33, 2, FALSE) -> 170 | F37: =VLOOKUP(D37, KOCoeffs!A$2:B$33, 2, FALSE) -> 1450 | G37: 0.1172413793 | H37: 0.667 | I37: 2.4 | L37: South Korea | M37: 2.1 | N37: Russia
A38: Germany | B38: 0.833 | C38: 2.25 | D38: Portugal | E38: =VLOOKUP(A38, KOCoeffs!A$2:B$33, 2, FALSE) -> 5.2 | F38: =VLOOKUP(D38, KOCoeffs!A$2:B$33, 2, FALSE) -> 28.8 | G38: 0.1805555556 | H38: 0.833 | I38: 2.25 | L38: Switzerland | M38: 2.1 | N38: France
A39: Ghana | B39: 1.4 | C39: 2.2 | D39: USA | E39: =VLOOKUP(A39, KOCoeffs!A$2:B$33, 2, FALSE) -> 230 | F39: =VLOOKUP(D39, KOCoeffs!A$2:B$33, 2, FALSE) -> 180 | G39: 1.277777778 | H39: 1.4 | I39: 2.2 | L39: Cameroon | M39: 2 | N39: Croatia
A40: Germany | B40: 0.364 | C40: 3.333 | D40: Ghana | E40: =VLOOKUP(A40, KOCoeffs!A$2:B$33, 2, FALSE) -> 5.2 | F40: =VLOOKUP(D40, KOCoeffs!A$2:B$33, 2, FALSE) -> 230 | G40: 0.02260869565 | H40: 0.364 | I40: 3.333 | L40: Netherlands | M40: 2.1 | N40: Spain
A41: USA | B41: 4 | C41: 2.3 | D41: Portugal | E41: =VLOOKUP(A41, KOCoeffs!A$2:B$33, 2, FALSE) -> 180 | F41: =VLOOKUP(D41, KOCoeffs!A$2:B$33, 2, FALSE) -> 28.8 | G41: 6.25 | H41: 4 | I41: 2.3 | L41: Russia | M41: 2.2 | N41: Belgium
A42: USA | B42: 6 | C42: 3 | D42: Germany | E42: =VLOOKUP(A42, KOCoeffs!A$2:B$33, 2, FALSE) -> 180 | F42: =VLOOKUP(D42, KOCoeffs!A$2:B$33, 2, FALSE) -> 5.2 | G42: 34.61538462 | H42: 6 | I42: 3 | L42: Algeria | M42: 2 | N42: South Korea
A43: Portugal | B43: 0.75 | C43: 2.5 | D43: Ghana | E43: =VLOOKUP(A43, KOCoeffs!A$2:B$33, 2, FALSE) -> 28.8 | F43: =VLOOKUP(D43, KOCoeffs!A$2:B$33, 2, FALSE) -> 230 | G43: 0.1252173913 | H43: 0.75 | I43: 2.5 | L43: Greece | M43: 2.3 | N43: Ivory Coast
A44: Belgium | B44: 0.4 | C44: 3 | D44: Algeria | E44: =VLOOKUP(A44, KOCoeffs!A$2:B$33, 2, FALSE) -> 16.8 | F44: =VLOOKUP(D44, KOCoeffs!A$2:B$33, 2, FALSE) -> 1400 | G44: 0.012 | H44: 0.4 | I44: 3 | L44: Greece | M44: 2 | N44: Japan
A45: Russia | B45: 1 | C45: 2.1 | D45: South Korea | E45: =VLOOKUP(A45, KOCoeffs!A$2:B$33, 2, FALSE) -> 77.2 | F45: =VLOOKUP(D45, KOCoeffs!A$2:B$33, 2, FALSE) -> 390 | G45: 0.1979487179 | H45: 1 | I45: 2.1 | L45: Chile | M45: 2.3 | N45: Netherlands
A46: Belgium | B46: 1.05 | C46: 2.2 | D46: Russia | E46: =VLOOKUP(A46, KOCoeffs!A$2:B$33, 2, FALSE) -> 16.8 | F46: =VLOOKUP(D46, KOCoeffs!A$2:B$33, 2, FALSE) -> 77.2 | G46: 0.2176165803 | H46: 1.05 | I46: 2.2 | L46: Ecuador | M46: 2 | N46: Switzerland
A47: South Korea | B47: 1.15 | C47: 2 | D47: Algeria | E47: =VLOOKUP(A47, KOCoeffs!A$2:B$33, 2, FALSE) -> 390 | F47: =VLOOKUP(D47, KOCoeffs!A$2:B$33, 2, FALSE) -> 1400 | G47: 0.2785714286 | H47: 1.15 | I47: 2 | L47: Nigeria | M47: 2 | N47: Bosnia & Herzegovina
A48: South Korea | B48: 4 | C48: 2.5 | D48: Belgium | E48: =VLOOKUP(A48, KOCoeffs!A$2:B$33, 2, FALSE) -> 390 | F48: =VLOOKUP(D48, KOCoeffs!A$2:B$33, 2, FALSE) -> 16.8 | G48: 23.21428571 | H48: 4 | I48: 2.5 | L48: England | M48: 1.8 | N48: Italy
A49: Algeria | B49: 4 | C49: 2.5 | D49: Russia | E49: =VLOOKUP(A49, KOCoeffs!A$2:B$33, 2, FALSE) -> 1400 | F49: =VLOOKUP(D49, KOCoeffs!A$2:B$33, 2, FALSE) -> 77.2 | G49: 18.13471503 | H49: 4 | I49: 2.5 | L49: Ghana | M49: 2.2 | N49: USA
A50: Croatia | B50: 9 | D50: Brazil | E50: =VLOOKUP(A50, KOCoeffs!A$2:B$33, 2, FALSE) -> 165 | F50: =VLOOKUP(D50, KOCoeffs!A$2:B$33, 2, FALSE) -> 2.9 | G50: 56.89655172 | H50: 9 | L50: England | M50: 2.1 | N50: Uruguay
A51: Cameroon | B51: 2.5 | D51: Mexico | E51: =VLOOKUP(A51, KOCoeffs!A$2:B$33, 2, FALSE) -> 800 | F51: =VLOOKUP(D51, KOCoeffs!A$2:B$33, 2, FALSE) -> 140 | G51: 5.714285714 | H51: 2.5 | L51: Croatia | M51: 2.3 | N51: Mexico
A52: Mexico | B52: 6 | D52: Brazil | E52: =VLOOKUP(A52, KOCoeffs!A$2:B$33, 2, FALSE) -> 140 | F52: =VLOOKUP(D52, KOCoeffs!A$2:B$33, 2, FALSE) -> 2.9 | G52: 48.27586207 | H52: 6 | L52: Uruguay | M52: 2.25 | N52: Italy
A53: Croatia | B53: 1.05 | D53: Cameroon | E53: =VLOOKUP(A53, KOCoeffs!A$2:B$33, 2, FALSE) -> 165 | F53: =VLOOKUP(D53, KOCoeffs!A$2:B$33, 2, FALSE) -> 800 | G53: 0.20625 | H53: 1.05 | L53: Japan | M53: 2 | N53: Ivory Coast
A54: Brazil | B54: 0.2 | D54: Cameroon | E54: =VLOOKUP(A54, KOCoeffs!A$2:B$33, 2, FALSE) -> 2.9 | F54: =VLOOKUP(D54, KOCoeffs!A$2:B$33, 2, FALSE) -> 800 | G54: 0.003625 | H54: 0.2
A55: Mexico | B55: 1.45 | D55: Croatia | E55: =VLOOKUP(A55, KOCoeffs!A$2:B$33, 2, FALSE) -> 140 | F55: =VLOOKUP(D55, KOCoeffs!A$2:B$33, 2, FALSE) -> 165 | G55: 0.8484848485 | H55: 1.45
A56: Netherlands | B56: 3 | D56: Spain | E56: =VLOOKUP(A56, KOCoeffs!A$2:B$33, 2, FALSE) -> 28.4 | F56: =VLOOKUP(D56, KOCoeffs!A$2:B$33, 2, FALSE) -> 6 | G56: 4.733333333 | H56: 3
A57: Australia | B57: 5.5 | D57: Chile | E57: =VLOOKUP(A57, KOCoeffs!A$2:B$33, 2, FALSE) -> 850 | F57: =VLOOKUP(D57, KOCoeffs!A$2:B$33, 2, FALSE) -> 40.6 | G57: 20.93596059 | H57: 5.5
A58: Netherlands | B58: 0.364 | D58: Australia | E58: =VLOOKUP(A58, KOCoeffs!A$2:B$33, 2, FALSE) -> 28.4 | F58: =VLOOKUP(D58, KOCoeffs!A$2:B$33, 2, FALSE) -> 850 | G58: 0.03341176471 | H58: 0.364
A59: Chile | B59: 3.333 | D59: Spain | E59: =VLOOKUP(A59, KOCoeffs!A$2:B$33, 2, FALSE) -> 40.6 | F59: =VLOOKUP(D59, KOCoeffs!A$2:B$33, 2, FALSE) -> 6 | G59: 6.766666667 | H59: 3.333
A60: Spain | B60: 0.25 | D60: Australia | E60: =VLOOKUP(A60, KOCoeffs!A$2:B$33, 2, FALSE) -> 6 | F60: =VLOOKUP(D60, KOCoeffs!A$2:B$33, 2, FALSE) -> 850 | G60: 0.007058823529 | H60: 0.25
A61: Chile | B61: 1.9 | D61: Netherlands | E61: =VLOOKUP(A61, KOCoeffs!A$2:B$33, 2, FALSE) -> 40.6 | F61: =VLOOKUP(D61, KOCoeffs!A$2:B$33, 2, FALSE) -> 28.4 | G61: 1.429577465 | H61: 1.9
A62: Greece | B62: 4 | D62: Colombia | E62: =VLOOKUP(A62, KOCoeffs!A$2:B$33, 2, FALSE) -> 270 | F62: =VLOOKUP(D62, KOCoeffs!A$2:B$33, 2, FALSE) -> 27 | G62: 10 | H62: 4
A63: Japan | B63: 1.625 | D63: Ivory Coast | E63: =VLOOKUP(A63, KOCoeffs!A$2:B$33, 2, FALSE) -> 155 | F63: =VLOOKUP(D63, KOCoeffs!A$2:B$33, 2, FALSE) -> 140 | G63: 1.107142857 | H63: 1.625
A64: Ivory Coast | B64: 2.4 | D64: Colombia | E64: =VLOOKUP(A64, KOCoeffs!A$2:B$33, 2, FALSE) -> 140 | F64: =VLOOKUP(D64, KOCoeffs!A$2:B$33, 2, FALSE) -> 27 | G64: 5.185185185 | H64: 2.4
A65: Greece | B65: 1.9 | D65: Japan | E65: =VLOOKUP(A65, KOCoeffs!A$2:B$33, 2, FALSE) -> 270 | F65: =VLOOKUP(D65, KOCoeffs!A$2:B$33, 2, FALSE) -> 155 | G65: 1.741935484 | H65: 1.9
A66: Colombia | B66: 0.833 | D66: Japan | E66: =VLOOKUP(A66, KOCoeffs!A$2:B$33, 2, FALSE) -> 27 | F66: =VLOOKUP(D66, KOCoeffs!A$2:B$33, 2, FALSE) -> 155 | G66: 0.1741935484 | H66: 0.833
A67: Ivory Coast | B67: 1.25 | D67: Greece | E67: =VLOOKUP(A67, KOCoeffs!A$2:B$33, 2, FALSE) -> 140 | F67: =VLOOKUP(D67, KOCoeffs!A$2:B$33, 2, FALSE) -> 270 | G67: =E67/F67 -> 0.5185185185 | H67: =B67 -> 1.25
A68: Costa Rica | B68: 9 | D68: Uruguay | E68: =VLOOKUP(A68, KOCoeffs!A$2:B$33, 2, FALSE) -> 2200 | F68: =VLOOKUP(D68, KOCoeffs!A$2:B$33, 2, FALSE) -> 26.2 | G68: 83.96946565 | H68: 9
A69: Italy | B69: 1.5 | D69: England | E69: =VLOOKUP(A69, KOCoeffs!A$2:B$33, 2, FALSE) -> 23.4 | F69: =VLOOKUP(D69, KOCoeffs!A$2:B$33, 2, FALSE) -> 31 | G69: 0.7548387097 | H69: 1.5
A70: England | B70: 1.625 | D70: Uruguay | E70: =VLOOKUP(A70, KOCoeffs!A$2:B$33, 2, FALSE) -> 31 | F70: =VLOOKUP(D70, KOCoeffs!A$2:B$33, 2, FALSE) -> 26.2 | G70: 1.183206107 | H70: 1.625
A71: Costa Rica | B71: 6.5 | D71: Italy | E71: =VLOOKUP(A71, KOCoeffs!A$2:B$33, 2, FALSE) -> 2200 | F71: =VLOOKUP(D71, KOCoeffs!A$2:B$33, 2, FALSE) -> 23.4 | G71: 94.01709402 | H71: 6.5
A72: Uruguay | B72: 1.625 | D72: Italy | E72: =VLOOKUP(A72, KOCoeffs!A$2:B$33, 2, FALSE) -> 26.2 | F72: =VLOOKUP(D72, KOCoeffs!A$2:B$33, 2, FALSE) -> 23.4 | G72: 1.11965812 | H72: 1.625
A73: England | B73: 0.533 | D73: Costa Rica | E73: =VLOOKUP(A73, KOCoeffs!A$2:B$33, 2, FALSE) -> 31 | F73: =VLOOKUP(D73, KOCoeffs!A$2:B$33, 2, FALSE) -> 2200 | G73: 0.01409090909 | H73: 0.533
A74: Ecuador | B74: 2.1 | D74: Switzerland | E74: =VLOOKUP(A74, KOCoeffs!A$2:B$33, 2, FALSE) -> 145 | F74: =VLOOKUP(D74, KOCoeffs!A$2:B$33, 2, FALSE) -> 105 | G74: 1.380952381 | H74: 2.1
A75: Honduras | B75: 7.5 | D75: France | E75: =VLOOKUP(A75, KOCoeffs!A$2:B$33, 2, FALSE) -> 2100 | F75: =VLOOKUP(D75, KOCoeffs!A$2:B$33, 2, FALSE) -> 21 | G75: 100 | H75: 7.5
A76: France | B76: 0.833 | D76: Switzerland | E76: =VLOOKUP(A76, KOCoeffs!A$2:B$33, 2, FALSE) -> 21 | F76: =VLOOKUP(D76, KOCoeffs!A$2:B$33, 2, FALSE) -> 105 | G76: 0.2 | H76: 0.833
A77: Ecuador | B77: 0.667 | D77: Honduras | E77: =VLOOKUP(A77, KOCoeffs!A$2:B$33, 2, FALSE) -> 145 | F77: =VLOOKUP(D77, KOCoeffs!A$2:B$33, 2, FALSE) -> 2100 | G77: 0.06904761905 | H77: 0.667
A78: Switzerland | B78: 0.571 | D78: Honduras | E78: =VLOOKUP(A78, KOCoeffs!A$2:B$33, 2, FALSE) -> 105 | F78: =VLOOKUP(D78, KOCoeffs!A$2:B$33, 2, FALSE) -> 2100 | G78: 0.05 | H78: 0.571
A79: France | B79: 1.05 | D79: Ecuador | E79: =VLOOKUP(A79, KOCoeffs!A$2:B$33, 2, FALSE) -> 21 | F79: =VLOOKUP(D79, KOCoeffs!A$2:B$33, 2, FALSE) -> 145 | G79: 0.1448275862 | H79: 1.05
A80: Bosnia & Herzegovina | B80: 6 | D80: Argentina | E80: =VLOOKUP(A80, KOCoeffs!A$2:B$33, 2, FALSE) -> 170 | F80: =VLOOKUP(D80, KOCoeffs!A$2:B$33, 2, FALSE) -> 4.5 | G80: 37.77777778 | H80: 6
A81: Nigeria | B81: 1 | D81: Iran | E81: =VLOOKUP(A81, KOCoeffs!A$2:B$33, 2, FALSE) -> 230 | F81: =VLOOKUP(D81, KOCoeffs!A$2:B$33, 2, FALSE) -> 1450 | G81: 0.1586206897 | H81: 1
A82: Iran | B82: 12 | D82: Argentina | E82: =VLOOKUP(A82, KOCoeffs!A$2:B$33, 2, FALSE) -> 1450 | F82: =VLOOKUP(D82, KOCoeffs!A$2:B$33, 2, FALSE) -> 4.5 | G82: 322.2222222 | H82: 12
A83: Bosnia & Herzegovina | B83: 1.5 | D83: Nigeria | E83: =VLOOKUP(A83, KOCoeffs!A$2:B$33, 2, FALSE) -> 170 | F83: =VLOOKUP(D83, KOCoeffs!A$2:B$33, 2, FALSE) -> 230 | G83: 0.7391304348 | H83: 1.5
A84: Argentina | B84: 0.364 | D84: Nigeria | E84: =VLOOKUP(A84, KOCoeffs!A$2:B$33, 2, FALSE) -> 4.5 | F84: =VLOOKUP(D84, KOCoeffs!A$2:B$33, 2, FALSE) -> 230 | G84: 0.01956521739 | H84: 0.364
A85: Iran | B85: 3.5 | D85: Bosnia & Herzegovina | E85: =VLOOKUP(A85, KOCoeffs!A$2:B$33, 2, FALSE) -> 1450 | F85: =VLOOKUP(D85, KOCoeffs!A$2:B$33, 2, FALSE) -> 170 | G85: 8.529411765 | H85: 3.5
A86: Portugal | B86: 3 | D86: Germany | E86: =VLOOKUP(A86, KOCoeffs!A$2:B$33, 2, FALSE) -> 28.8 | F86: =VLOOKUP(D86, KOCoeffs!A$2:B$33, 2, FALSE) -> 5.2 | G86: 5.538461538 | H86: 3
A87: USA | B87: 1.7 | D87: Ghana | E87: =VLOOKUP(A87, KOCoeffs!A$2:B$33, 2, FALSE) -> 180 | F87: =VLOOKUP(D87, KOCoeffs!A$2:B$33, 2, FALSE) -> 230 | G87: 0.7826086957 | H87: 1.7
A88: Ghana | B88: 6 | D88: Germany | E88: =VLOOKUP(A88, KOCoeffs!A$2:B$33, 2, FALSE) -> 230 | F88: =VLOOKUP(D88, KOCoeffs!A$2:B$33, 2, FALSE) -> 5.2 | G88: 44.23076923 | H88: 6
A89: Portugal | B89: 0.667 | D89: USA | E89: =VLOOKUP(A89, KOCoeffs!A$2:B$33, 2, FALSE) -> 28.8 | F89: =VLOOKUP(D89, KOCoeffs!A$2:B$33, 2, FALSE) -> 180 | G89: 0.16 | H89: 0.667
A90: Germany | B90: 0.4 | D90: USA | E90: =VLOOKUP(A90, KOCoeffs!A$2:B$33, 2, FALSE) -> 5.2 | F90: =VLOOKUP(D90, KOCoeffs!A$2:B$33, 2, FALSE) -> 180 | G90: 0.02888888889 | H90: 0.4
A91: Ghana | B91: 3 | D91: Portugal | E91: =VLOOKUP(A91, KOCoeffs!A$2:B$33, 2, FALSE) -> 230 | F91: =VLOOKUP(D91, KOCoeffs!A$2:B$33, 2, FALSE) -> 28.8 | G91: 7.986111111 | H91: 3
A92: Algeria | B92: 5.5 | D92: Belgium | E92: =VLOOKUP(A92, KOCoeffs!A$2:B$33, 2, FALSE) -> 1400 | F92: =VLOOKUP(D92, KOCoeffs!A$2:B$33, 2, FALSE) -> 16.8 | G92: 83.33333333 | H92: 5.5
A93: South Korea | B93: 2.5 | D93: Russia | E93: =VLOOKUP(A93, KOCoeffs!A$2:B$33, 2, FALSE) -> 390 | F93: =VLOOKUP(D93, KOCoeffs!A$2:B$33, 2, FALSE) -> 77.2 | G93: 5.051813472 | H93: 2.5
A94: Russia | B94: 2.2 | D94: Belgium | E94: =VLOOKUP(A94, KOCoeffs!A$2:B$33, 2, FALSE) -> 77.2 | F94: =VLOOKUP(D94, KOCoeffs!A$2:B$33, 2, FALSE) -> 16.8 | G94: 4.595238095 | H94: 2.2
A95: Algeria | B95: 2.3 | D95: South Korea | E95: =VLOOKUP(A95, KOCoeffs!A$2:B$33, 2, FALSE) -> 1400 | F95: =VLOOKUP(D95, KOCoeffs!A$2:B$33, 2, FALSE) -> 390 | G95: 3.58974359 | H95: 2.3
A96: Belgium | B96: 0.615 | D96: South Korea | E96: =VLOOKUP(A96, KOCoeffs!A$2:B$33, 2, FALSE) -> 16.8 | F96: =VLOOKUP(D96, KOCoeffs!A$2:B$33, 2, FALSE) -> 390 | G96: 0.04307692308 | H96: 0.615
A97: Russia | B97: 0.615 | D97: Algeria | E97: =VLOOKUP(A97, KOCoeffs!A$2:B$33, 2, FALSE) -> 77.2 | F97: =VLOOKUP(D97, KOCoeffs!A$2:B$33, 2, FALSE) -> 1400 | G97: 0.05514285714 | H97: 0.615

Sheet OddsCreation (2) (hidden)
E1: T1C | F1: T2C | G1: T1/T2 | H1: W | I1: D
A2: Australia | B2: 8 | C2: 4 | D2: Spain | E2: =VLOOKUP(A2, KOCoeffs!A$2:B$33, 2, FALSE) -> 850 | F2: =VLOOKUP(D2, KOCoeffs!A$2:B$33, 2, FALSE) -> 6 | G2: =E2/F2 -> 141.6666667 | H2: =B2 -> 8 | I2: =C2 -> 4
A3: Honduras | B3: 7.5 | C3: 3.5 | D3: France | E3: =VLOOKUP(A3, KOCoeffs!A$2:B$33, 2, FALSE) -> 2100 | F3: =VLOOKUP(D3, KOCoeffs!A$2:B$33, 2, FALSE) -> 21 | G3: 100 | H3: =B3 -> 7.5 | I3: =C3 -> 3.5
A4: Costa Rica | B4: 6.5 | C4: 3.5 | D4: Italy | E4: =VLOOKUP(A4, KOCoeffs!A$2:B$33, 2, FALSE) -> 2200 | F4: =VLOOKUP(D4, KOCoeffs!A$2:B$33, 2, FALSE) -> 23.4 | G4: 94.01709402 | H4: =B4 -> 6.5 | I4: =C4 -> 3.5
A5: Costa Rica | B5: 9 | C5: 3.2 | D5: Uruguay | E5: =VLOOKUP(A5, KOCoeffs!A$2:B$33, 2, FALSE) -> 2200 | F5: =VLOOKUP(D5, KOCoeffs!A$2:B$33, 2, FALSE) -> 26.2 | G5: 83.96946565 | H5: 9 | I5: 3.2
A6: Algeria | B6: 5.5 | C6: 3 | D6: Belgium | E6: =VLOOKUP(A6, KOCoeffs!A$2:B$33, 2, FALSE) -> 1400 | F6: =VLOOKUP(D6, KOCoeffs!A$2:B$33, 2, FALSE) -> 16.8 | G6: 83.33333333 | H6: 5.5 | I6: 3
A7: Costa Rica | B7: 5 | C7: 2.75 | D7: England | E7: =VLOOKUP(A7, KOCoeffs!A$2:B$33, 2, FALSE) -> 2200 | F7: =VLOOKUP(D7, KOCoeffs!A$2:B$33, 2, FALSE) -> 31 | G7: 70.96774194 | H7: 5 | I7: 2.75
A8: Croatia | B8: 9 | C8: 3.6 | D8: Brazil | E8: =VLOOKUP(A8, KOCoeffs!A$2:B$33, 2, FALSE) -> 165 | F8: =VLOOKUP(D8, KOCoeffs!A$2:B$33, 2, FALSE) -> 2.9 | G8: 56.89655172 | H8: 9 | I8: 3.6
A9: Nigeria | B9: 6.5 | C9: 3.2 | D9: Argentina | E9: =VLOOKUP(A9, KOCoeffs!A$2:B$33, 2, FALSE) -> 230 | F9: =VLOOKUP(D9, KOCoeffs!A$2:B$33, 2, FALSE) -> 4.5 | G9: 51.11111111 | H9: 6.5 | I9: 3.2
A10: Mexico | B10: 6 | C10: 3.3 | D10: Brazil | E10: =VLOOKUP(A10, KOCoeffs!A$2:B$33, 2, FALSE) -> 140 | F10: =VLOOKUP(D10, KOCoeffs!A$2:B$33, 2, FALSE) -> 2.9 | G10: 48.27586207 | H10: 6 | I10: 3.3
A11: Ghana | B11: 6 | C11: 3.3 | D11: Germany | E11: =VLOOKUP(A11, KOCoeffs!A$2:B$33, 2, FALSE) -> 230 | F11: =VLOOKUP(D11, KOCoeffs!A$2:B$33, 2, FALSE) -> 5.2 | G11: 44.23076923 | H11: 6 | I11: 3.3
A12: Bosnia & Herzegovina | B12: 6 | C12: 3.3 | D12: Argentina | E12: =VLOOKUP(A12, KOCoeffs!A$2:B$33, 2, FALSE) -> 170 | F12: =VLOOKUP(D12, KOCoeffs!A$2:B$33, 2, FALSE) -> 4.5 | G12: 37.77777778 | H12: 6 | I12: 3.3
A13: USA | B13: 6 | C13: 3 | D13: Germany | E13: =VLOOKUP(A13, KOCoeffs!A$2:B$33, 2, FALSE) -> 180 | F13: =VLOOKUP(D13, KOCoeffs!A$2:B$33, 2, FALSE) -> 5.2 | G13: 34.61538462 | H13: 6 | I13: 3
A14: Australia | B14: 5.5 | C14: 3.5 | D14: Netherlands | E14: =VLOOKUP(A14, KOCoeffs!A$2:B$33, 2, FALSE) -> 850 | F14: =VLOOKUP(D14, KOCoeffs!A$2:B$33, 2, FALSE) -> 28.4 | G14: 29.92957746 | H14: 5.5 | I14: 3.5
A15: South Korea | B15: 4 | C15: 2.5 | D15: Belgium | E15: =VLOOKUP(A15, KOCoeffs!A$2:B$33, 2, FALSE) -> 390 | F15: =VLOOKUP(D15, KOCoeffs!A$2:B$33, 2, FALSE) -> 16.8 | G15: 23.21428571 | H15: 4 | I15: 2.5
A16: Australia | B16: 5.5 | C16: 2.8 | D16: Chile | E16: =VLOOKUP(A16, KOCoeffs!A$2:B$33, 2, FALSE) -> 850 | F16: =VLOOKUP(D16, KOCoeffs!A$2:B$33, 2, FALSE) -> 40.6 | G16: 20.93596059 | H16: 5.5 | I16: 2.8
A17: Honduras | B17: 4.5 | C17: 2.5 | D17: Switzerland | E17: =VLOOKUP(A17, KOCoeffs!A$2:B$33, 2, FALSE) -> 2100 | F17: =VLOOKUP(D17, KOCoeffs!A$2:B$33, 2, FALSE) -> 105 | G17: 20 | H17: 4.5 | I17: 2.5
A18: Algeria | B18: 4 | C18: 2.5 | D18: Russia | E18: =VLOOKUP(A18, KOCoeffs!A$2:B$33, 2, FALSE) -> 1400 | F18: =VLOOKUP(D18, KOCoeffs!A$2:B$33, 2, FALSE) -> 77.2 | G18: 18.13471503 | H18: 4 | I18: 2.5
A19: Honduras | B19: 4 | C19: 2.3 | D19: Ecuador | E19: =VLOOKUP(A19, KOCoeffs!A$2:B$33, 2, FALSE) -> 2100 | F19: =VLOOKUP(D19, KOCoeffs!A$2:B$33, 2, FALSE) -> 145 | G19: 14.48275862 | H19: 4 | I19: 2.3
A20: Greece | B20: 4 | C20: 2.4 | D20: Colombia | E20: =VLOOKUP(A20, KOCoeffs!A$2:B$33, 2, FALSE) -> 270 | F20: =VLOOKUP(D20, KOCoeffs!A$2:B$33, 2, FALSE) -> 27 | G20: 10 | H20: 4 | I20: 2.4

Sheet OddsCreation (3) (hidden)
E1: T1C | F1: T2C | G1: T1/T2 | H1: W | I1: D
A2: Japan | B2: 1.625 | C2: 2 | D2: Ivory Coast | E2: =VLOOKUP(A2, KOCoeffs!A$2:B$33, 2, FALSE) -> 155 | F2: =VLOOKUP(D2, KOCoeffs!A$2:B$33, 2, FALSE) -> 140 | G2: =E2/F2 -> 1.107142857 | H2: =B2 -> 1.625 | I2: =C2 -> 2
A3: Uruguay | B3: 1.625 | C3: 2.3 | D3: Italy | E3: =VLOOKUP(A3, KOCoeffs!A$2:B$33, 2, FALSE) -> 26.2 | F3: =VLOOKUP(D3, KOCoeffs!A$2:B$33, 2, FALSE) -> 23.4 | G3: 1.11965812 | H3: =B3 -> 1.625 | I3: =C3 -> 2.3
A4: Croatia | B4: 1.5 | C4: 2.3 | D4: Mexico | E4: =VLOOKUP(A4, KOCoeffs!A$2:B$33, 2, FALSE) -> 165 | F4: =VLOOKUP(D4, KOCoeffs!A$2:B$33, 2, FALSE) -> 140 | G4: 1.178571429 | H4: 1.5 | I4: 2.3
A5: England | B5: 1.625 | C5: 2.1 | D5: Uruguay | E5: =VLOOKUP(A5, KOCoeffs!A$2:B$33, 2, FALSE) -> 31 | F5: =VLOOKUP(D5, KOCoeffs!A$2:B$33, 2, FALSE) -> 26.2 | G5: 1.183206107 | H5: 1.625 | I5: 2.1
A6: Ghana | B6: 1.4 | C6: 2.2 | D6: USA | E6: =VLOOKUP(A6, KOCoeffs!A$2:B$33, 2, FALSE) -> 230 | F6: =VLOOKUP(D6, KOCoeffs!A$2:B$33, 2, FALSE) -> 180 | G6: 1.277777778 | H6: 1.4 | I6: 2.2
A7: England | B7: 2 | C7: 1.8 | D7: Italy | E7: =VLOOKUP(A7, KOCoeffs!A$2:B$33, 2, FALSE) -> 31 | F7: =VLOOKUP(D7, KOCoeffs!A$2:B$33, 2, FALSE) -> 23.4 | G7: 1.324786325 | H7: 2 | I7: 1.8
A8: Nigeria | B8: 1.625 | C8: 2 | D8: Bosnia & Herzegovina | E8: =VLOOKUP(A8, KOCoeffs!A$2:B$33, 2, FALSE) -> 230 | F8: =VLOOKUP(D8, KOCoeffs!A$2:B$33, 2, FALSE) -> 170 | G8: 1.352941176 | H8: 1.625 | I8: 2
A9: Ecuador | B9: 2.1 | C9: 2 | D9: Switzerland | E9: =VLOOKUP(A9, KOCoeffs!A$2:B$33, 2, FALSE) -> 145 | F9: =VLOOKUP(D9, KOCoeffs!A$2:B$33, 2, FALSE) -> 105 | G9: 1.380952381 | H9: 2.1 | I9: 2
A10: Chile | B10: 1.9 | C10: 2.3 | D10: Netherlands | E10: =VLOOKUP(A10, KOCoeffs!A$2:B$33, 2, FALSE) -> 40.6 | F10: =VLOOKUP(D10, KOCoeffs!A$2:B$33, 2, FALSE) -> 28.4 | G10: 1.429577465 | H10: 1.9 | I10: 2.3
A11: Greece | B11: 1.9 | C11: 2 | D11: Japan | E11: =VLOOKUP(A11, KOCoeffs!A$2:B$33, 2, FALSE) -> 270 | F11: =VLOOKUP(D11, KOCoeffs!A$2:B$33, 2, FALSE) -> 155 | G11: 1.741935484 | H11: 1.9 | I11: 2
A12: Greece | B12: 1.8 | C12: 2.25 | D12: Ivory Coast | E12: =VLOOKUP(A12, KOCoeffs!A$2:B$33, 2, FALSE) -> 270 | F12: =VLOOKUP(D12, KOCoeffs!A$2:B$33, 2, FALSE) -> 140 | G12: 1.928571429 | H12: 1.8 | I12: 2.25
A13: Algeria | B13: 2.3 | C13: 2 | D13: South Korea | E13: =VLOOKUP(A13, KOCoeffs!A$2:B$33, 2, FALSE) -> 1400 | F13: =VLOOKUP(D13, KOCoeffs!A$2:B$33, 2, FALSE) -> 390 | G13: 3.58974359 | H13: 2.3 | I13: 2
A14: Russia | B14: 2.2 | C14: 2.2 | D14: Belgium | E14: =VLOOKUP(A14, KOCoeffs!A$2:B$33, 2, FALSE) -> 77.2 | F14: =VLOOKUP(D14, KOCoeffs!A$2:B$33, 2, FALSE) -> 16.8 | G14: 4.595238095 | H14: 2.2 | I14: 2.2
A15: Netherlands | B15: 3 | C15: 2.1 | D15: Spain | E15: =VLOOKUP(A15, KOCoeffs!A$2:B$33, 2, FALSE) -> 28.4 | F15: =VLOOKUP(D15, KOCoeffs!A$2:B$33, 2, FALSE) -> 6 | G15: 4.733333333 | H15: 3 | I15: 2.1
A16: Cameroon | B16: 2.4 | C16: 2 | D16: Croatia | E16: =VLOOKUP(A16, KOCoeffs!A$2:B$33, 2, FALSE) -> 800 | F16: =VLOOKUP(D16, KOCoeffs!A$2:B$33, 2, FALSE) -> 165 | G16: 4.848484848 | H16: 2.4 | I16: 2
A17: Switzerland | B17: 3 | C17: 2.1 | D17: France | E17: =VLOOKUP(A17, KOCoeffs!A$2:B$33, 2, FALSE) -> 105 | F17: =VLOOKUP(D17, KOCoeffs!A$2:B$33, 2, FALSE) -> 21 | G17: 5 | H17: 3 | I17: 2.1
A18: South Korea | B18: 2.5 | C18: 2.1 | D18: Russia | E18: =VLOOKUP(A18, KOCoeffs!A$2:B$33, 2, FALSE) -> 390 | F18: =VLOOKUP(D18, KOCoeffs!A$2:B$33, 2, FALSE) -> 77.2 | G18: 5.051813472 | H18: 2.5 | I18: 2.1
A19: Ivory Coast | B19: 2.4 | C19: 2.3 | D19: Colombia | E19: =VLOOKUP(A19, KOCoeffs!A$2:B$33, 2, FALSE) -> 140 | F19: =VLOOKUP(D19, KOCoeffs!A$2:B$33, 2, FALSE) -> 27 | G19: 5.185185185 | H19: 2.4 | I19: 2.3
A20: Portugal | B20: 3 | C20: 2.3 | D20: Germany | E20: =VLOOKUP(A20, KOCoeffs!A$2:B$33, 2, FALSE) -> 28.8 | F20: =VLOOKUP(D20, KOCoeffs!A$2:B$33, 2, FALSE) -> 5.2 | G20: 5.538461538 | H20: 3 | I20: 2.3
A21: Cameroon | B21: 2.5 | C21: 2 | D21: Mexico | E21: =VLOOKUP(A21, KOCoeffs!A$2:B$33, 2, FALSE) -> 800 | F21: =VLOOKUP(D21, KOCoeffs!A$2:B$33, 2, FALSE) -> 140 | G21: 5.714285714 | H21: 2.5 | I21: 2
A22: Japan | B22: 2.75 | C22: 2.5 | D22: Colombia | E22: =VLOOKUP(A22, KOCoeffs!A$2:B$33, 2, FALSE) -> 155 | F22: =VLOOKUP(D22, KOCoeffs!A$2:B$33, 2, FALSE) -> 27 | G22: 5.740740741 | H22: 2.75 | I22: 2.5
A23: USA | B23: 4 | C23: 2.3 | D23: Portugal | E23: =VLOOKUP(A23, KOCoeffs!A$2:B$33, 2, FALSE) -> 180 | F23: =VLOOKUP(D23, KOCoeffs!A$2:B$33, 2, FALSE) -> 28.8 | G23: 6.25 | H23: 4 | I23: 2.3
A24: Iran | B24: 2.6 | C24: 2 | D24: Nigeria | E24: =VLOOKUP(A24, KOCoeffs!A$2:B$33, 2, FALSE) -> 1450 | F24: =VLOOKUP(D24, KOCoeffs!A$2:B$33, 2, FALSE) -> 230 | G24: 6.304347826 | H24: 2.6 | I24: 2
A25: Chile | B25: 3.333 | C25: 2.4 | D25: Spain | E25: =VLOOKUP(A25, KOCoeffs!A$2:B$33, 2, FALSE) -> 40.6 | F25: =VLOOKUP(D25, KOCoeffs!A$2:B$33, 2, FALSE) -> 6 | G25: 6.766666667 | H25: 3.333 | I25: 2.4
A26: Ecuador | B26: 2.1 | C26: 2.3 | D26: France | E26: =VLOOKUP(A26, KOCoeffs!A$2:B$33, 2, FALSE) -> 145 | F26: =VLOOKUP(D26, KOCoeffs!A$2:B$33, 2, FALSE) -> 21 | G26: 6.904761905 | H26: 2.1 | I26: 2.3
A27: Ghana | B27: 3 | C27: 2.5 | D27: Portugal | E27: =VLOOKUP(A27, KOCoeffs!A$2:B$33, 2, FALSE) -> 230 | F27: =VLOOKUP(D27, KOCoeffs!A$2:B$33, 2, FALSE) -> 28.8 | G27: 7.986111111 | H27: 3 | I27: 2.5
A28: Iran | B28: 3.5 | C28: 2.4 | D28: Bosnia & Herzegovina | E28: =VLOOKUP(A28, KOCoeffs!A$2:B$33, 2, FALSE) -> 1450 | F28: =VLOOKUP(D28, KOCoeffs!A$2:B$33, 2, FALSE) -> 170 | G28: 8.529411765 | H28: 3.5 | I28: 2.4
A29: Greece | B29: 4 | C29: 2.4 | D29: Colombia | E29: =VLOOKUP(A29, KOCoeffs!A$2:B$33, 2, FALSE) -> 270 | F29: =VLOOKUP(D29, KOCoeffs!A$2:B$33, 2, FALSE) -> 27 | G29: 10 | H29: 4 | I29: 2.4

Sheet OddsCreation (4) (hidden)
E1: T1C | F1: T2C | G1: T1/T2 | H1: W | I1: D
A2: Brazil | B2: 0.3 | C2: 3.6 | D2: Croatia | E2: =VLOOKUP(A2, KOCoeffs!A$2:B$33, 2, FALSE) -> 2.9 | F2: =VLOOKUP(D2, KOCoeffs!A$2:B$33, 2, FALSE) -> 165 | G2: =E2/F2 -> 0.01757575758 | H2: =B2 -> 0.3 | I2: =C2 -> 3.6
A3: Argentina | B3: 0.167 | C3: 5 | D3: Iran | E3: =VLOOKUP(A3, KOCoeffs!A$2:B$33, 2, FALSE) -> 4.5 | F3: =VLOOKUP(D3, KOCoeffs!A$2:B$33, 2, FALSE) -> 1450 | G3: 0.003103448276 | H3: =B3 -> 0.167 | I3: =C3 -> 5
A4: Brazil | B4: 0.2 | C4: 4 | D4: Cameroon | E4: =VLOOKUP(A4, KOCoeffs!A$2:B$33, 2, FALSE) -> 2.9 | F4: =VLOOKUP(D4, KOCoeffs!A$2:B$33, 2, FALSE) -> 800 | G4: 0.003625 | H4: 0.2 | I4: 4
A5: Spain | B5: 0.25 | C5: 4 | D5: Australia | E5: =VLOOKUP(A5, KOCoeffs!A$2:B$33, 2, FALSE) -> 6 | F5: =VLOOKUP(D5, KOCoeffs!A$2:B$33, 2, FALSE) -> 850 | G5: 0.007058823529 | H5: 0.25 | I5: 4
A6: France | B6: 0.3 | C6: 3.5 | D6: Honduras | E6: =VLOOKUP(A6, KOCoeffs!A$2:B$33, 2, FALSE) -> 21 | F6: =VLOOKUP(D6, KOCoeffs!A$2:B$33, 2, FALSE) -> 2100 | G6: 0.01 | H6: 0.3 | I6: 3.5
A7: Italy | B7: 0.333 | C7: 3.5 | D7: Costa Rica | E7: =VLOOKUP(A7, KOCoeffs!A$2:B$33, 2, FALSE) -> 23.4 | F7: =VLOOKUP(D7, KOCoeffs!A$2:B$33, 2, FALSE) -> 2200 | G7: 0.01063636364 | H7: 0.333 | I7: 3.5
A8: Uruguay | B8: 0.33 | C8: 3.2 | D8: Costa Rica | E8: =VLOOKUP(A8, KOCoeffs!A$2:B$33, 2, FALSE) -> 26.2 | F8: =VLOOKUP(D8, KOCoeffs!A$2:B$33, 2, FALSE) -> 2200 | G8: 0.01190909091 | H8: 0.33 | I8: 3.2
A9: Belgium | B9: 0.4 | C9: 3 | D9: Algeria | E9: =VLOOKUP(A9, KOCoeffs!A$2:B$33, 2, FALSE) -> 16.8 | F9: =VLOOKUP(D9, KOCoeffs!A$2:B$33, 2, FALSE) -> 1400 | G9: 0.012 | H9: 0.4 | I9: 3
A10: England | B10: 0.533 | C10: 2.8 | D10: Costa Rica | E10: =VLOOKUP(A10, KOCoeffs!A$2:B$33, 2, FALSE) -> 31 | F10: =VLOOKUP(D10, KOCoeffs!A$2:B$33, 2, FALSE) -> 2200 | G10: 0.01409090909 | H10: 0.533 | I10: 2.8
A11: Argentina | B11: 0.364 | C11: 3.2 | D11: Nigeria | E11: =VLOOKUP(A11, KOCoeffs!A$2:B$33, 2, FALSE) -> 4.5 | F11: =VLOOKUP(D11, KOCoeffs!A$2:B$33, 2, FALSE) -> 230 | G11: 0.01956521739 | H11: 0.364 | I11: 3.2
A12: Brazil | B12: 0.364 | C12: 3.333 | D12: Mexico | E12: =VLOOKUP(A12, KOCoeffs!A$2:B$33, 2, FALSE) -> 2.9 | F12: =VLOOKUP(D12, KOCoeffs!A$2:B$33, 2, FALSE) -> 140 | G12: 0.02071428571 | H12: 0.364 | I12: 3.333
A13: Germany | B13: 0.364 | C13: 3.333 | D13: Ghana | E13: =VLOOKUP(A13, KOCoeffs!A$2:B$33, 2, FALSE) -> 5.2 | F13: =VLOOKUP(D13, KOCoeffs!A$2:B$33, 2, FALSE) -> 230 | G13: 0.02260869565 | H13: 0.364 | I13: 3.333
A14: Argentina | B14: 0.364 | C14: 3.333 | D14: Bosnia & Herzegovina | E14: =VLOOKUP(A14, KOCoeffs!A$2:B$33, 2, FALSE) -> 4.5 | F14: =VLOOKUP(D14, KOCoeffs!A$2:B$33, 2, FALSE) -> 170 | G14: 0.02647058824 | H14: 0.364 | I14: 3.333
A15: Germany | B15: 0.4 | C15: 3 | D15: USA | E15: =VLOOKUP(A15, KOCoeffs!A$2:B$33, 2, FALSE) -> 5.2 | F15: =VLOOKUP(D15, KOCoeffs!A$2:B$33, 2, FALSE) -> 180 | G15: 0.02888888889 | H15: 0.4 | I15: 3
A16: Netherlands | B16: 0.364 | C16: 3.5 | D16: Australia | E16: =VLOOKUP(A16, KOCoeffs!A$2:B$33, 2, FALSE) -> 28.4 | F16: =VLOOKUP(D16, KOCoeffs!A$2:B$33, 2, FALSE) -> 850 | G16: 0.03341176471 | H16: 0.364 | I16: 3.5
A17: Belgium | B17: 0.615 | C17: 2.5 | D17: South Korea | E17: =VLOOKUP(A17, KOCoeffs!A$2:B$33, 2, FALSE) -> 16.8 | F17: =VLOOKUP(D17, KOCoeffs!A$2:B$33, 2, FALSE) -> 390 | G17: 0.04307692308 | H17: 0.615 | I17: 2.5
A18: Chile | B18: 0.5 | C18: 2.75 | D18: Australia | E18: =VLOOKUP(A18, KOCoeffs!A$2:B$33, 2, FALSE) -> 40.6 | F18: =VLOOKUP(D18, KOCoeffs!A$2:B$33, 2, FALSE) -> 850 | G18: 0.04776470588 | H18: 0.5 | I18: 2.75
A19: Switzerland | B19: 0.571 | C19: 2.5 | D19: Honduras | E19: =VLOOKUP(A19, KOCoeffs!A$2:B$33, 2, FALSE) -> 105 | F19: =VLOOKUP(D19, KOCoeffs!A$2:B$33, 2, FALSE) -> 2100 | G19: 0.05 | H19: 0.571 | I19: 2.5
A20: Russia | B20: 0.615 | C20: 2.5 | D20: Algeria | E20: =VLOOKUP(A20, KOCoeffs!A$2:B$33, 2, FALSE) -> 77.2 | F20: =VLOOKUP(D20, KOCoeffs!A$2:B$33, 2, FALSE) -> 1400 | G20: 0.05514285714 | H20: 0.615 | I20: 2.5
A21: Ecuador | B21: 0.667 | C21: 2.3 | D21: Honduras | E21: =VLOOKUP(A21, KOCoeffs!A$2:B$33, 2, FALSE) -> 145 | F21: =VLOOKUP(D21, KOCoeffs!A$2:B$33, 2, FALSE) -> 2100 | G21: 0.06904761905 | H21: 0.667 | I21: 2.3
A22: Colombia | B22: 0.7 | C22: 2.4 | D22: Greece | E22: =VLOOKUP(A22, KOCoeffs!A$2:B$33, 2, FALSE) -> 27 | F22: =VLOOKUP(D22, KOCoeffs!A$2:B$33, 2, FALSE) -> 270 | G22: 0.1 | H22: 0.7 | I22: 2.4
A23: Bosnia & Herzegovina | B23: 0.667 | C23: 2.4 | D23: Iran | E23: =VLOOKUP(A23, KOCoeffs!A$2:B$33, 2, FALSE) -> 170 | F23: =VLOOKUP(D23, KOCoeffs!A$2:B$33, 2, FALSE) -> 1450 | G23: 0.1172413793 | H23: 0.667 | I23: 2.4
A24: Portugal | B24: 0.75 | C24: 2.5 | D24: Ghana | E24: =VLOOKUP(A24, KOCoeffs!A$2:B$33, 2, FALSE) -> 28.8 | F24: =VLOOKUP(D24, KOCoeffs!A$2:B$33, 2, FALSE) -> 230 | G24: 0.1252173913 | H24: 0.75 | I24: 2.5
A25: France | B25: 1.05 | C25: 2.3 | D25: Ecuador | E25: =VLOOKUP(A25, KOCoeffs!A$2:B$33, 2, FALSE) -> 21 | F25: =VLOOKUP(D25, KOCoeffs!A$2:B$33, 2, FALSE) -> 145 | G25: 0.1448275862 | H25: 1.05 | I25: 2.3
A26: Spain | B26: 0.7 | C26: 2.4 | D26: Chile | E26: =VLOOKUP(A26, KOCoeffs!A$2:B$33, 2, FALSE) -> 6 | F26: =VLOOKUP(D26, KOCoeffs!A$2:B$33, 2, FALSE) -> 40.6 | G26: 0.1477832512 | H26: 0.7 | I26: 2.4
A27: Nigeria | B27: 1 | C27: 2 | D27: Iran | E27: =VLOOKUP(A27, KOCoeffs!A$2:B$33, 2, FALSE) -> 230 | F27: =VLOOKUP(D27, KOCoeffs!A$2:B$33, 2, FALSE) -> 1450 | G27: 0.1586206897 | H27: 1 | I27: 2
A28: Portugal | B28: 0.667 | C28: 2.3 | D28: USA | E28: =VLOOKUP(A28, KOCoeffs!A$2:B$33, 2, FALSE) -> 28.8 | F28: =VLOOKUP(D28, KOCoeffs!A$2:B$33, 2, FALSE) -> 180 | G28: 0.16 | H28: 0.667 | I28: 2.3
A29: Colombia | B29: 0.833 | C29: 2.5 | D29: Japan | E29: =VLOOKUP(A29, KOCoeffs!A$2:B$33, 2, FALSE) -> 27 | F29: =VLOOKUP(D29, KOCoeffs!A$2:B$33, 2, FALSE) -> 155 | G29: 0.1741935484 | H29: 0.833 | I29: 2.5
A30: Mexico | B30: 1.15 | C30: 2 | D30: Cameroon | E30: =VLOOKUP(A30, KOCoeffs!A$2:B$33, 2, FALSE) -> 140 | F30: =VLOOKUP(D30, KOCoeffs!A$2:B$33, 2, FALSE) -> 800 | G30: 0.175 | H30: 1.15 | I30: 2
A31: Germany | B31: 0.833 | C31: 2.25 | D31: Portugal | E31: =VLOOKUP(A31, KOCoeffs!A$2:B$33, 2, FALSE) -> 5.2 | F31: =VLOOKUP(D31, KOCoeffs!A$2:B$33, 2, FALSE) -> 28.8 | G31: 0.1805555556 | H31: 0.833 | I31: 2.25
A32: Colombia | B32: 1 | C32: 2.25 | D32: Ivory Coast | E32: =VLOOKUP(A32, KOCoeffs!A$2:B$33, 2, FALSE) -> 27 | F32: =VLOOKUP(D32, KOCoeffs!A$2:B$33, 2, FALSE) -> 140 | G32: 0.1928571429 | H32: 1 | I32: 2.25
A33: Russia | B33: 1 | C33: 2.1 | D33: South Korea | E33: =VLOOKUP(A33, KOCoeffs!A$2:B$33, 2, FALSE) -> 77.2 | F33: =VLOOKUP(D33, KOCoeffs!A$2:B$33, 2, FALSE) -> 390 | G33: 0.1979487179 | H33: 1 | I33: 2.1
A34: France | B34: 0.833 | C34: 2.1 | D34: Switzerland | E34: =VLOOKUP(A34, KOCoeffs!A$2:B$33, 2, FALSE) -> 21 | F34: =VLOOKUP(D34, KOCoeffs!A$2:B$33, 2, FALSE) -> 105 | G34: 0.2 | H34: 0.833 | I34: 2.1
A35: Croatia | B35: 1.05 | C35: 2 | D35: Cameroon | E35: =VLOOKUP(A35, KOCoeffs!A$2:B$33, 2, FALSE) -> 165 | F35: =VLOOKUP(D35, KOCoeffs!A$2:B$33, 2, FALSE) -> 800 | G35: 0.20625 | H35: 1.05 | I35: 2
A36: Spain | B36: 1 | C36: 2.1 | D36: Netherlands | E36: =VLOOKUP(A36, KOCoeffs!A$2:B$33, 2, FALSE) -> 6 | F36: =VLOOKUP(D36, KOCoeffs!A$2:B$33, 2, FALSE) -> 28.4 | G36: 0.2112676056 | H36: 1 | I36: 2.1
A37: Belgium | B37: 1.05 | C37: 2.2 | D37: Russia | E37: =VLOOKUP(A37, KOCoeffs!A$2:B$33, 2, FALSE) -> 16.8 | F37: =VLOOKUP(D37, KOCoeffs!A$2:B$33, 2, FALSE) -> 77.2 | G37: 0.2176165803 | H37: 1.05 | I37: 2.2
A38: South Korea | B38: 1.15 | C38: 2 | D38: Algeria | E38: =VLOOKUP(A38, KOCoeffs!A$2:B$33, 2, FALSE) -> 390 | F38: =VLOOKUP(D38, KOCoeffs!A$2:B$33, 2, FALSE) -> 1400 | G38: 0.2785714286 | H38: 1.15 | I38: 2
A39: Ivory Coast | B39: 1.25 | C39: 2.3 | D39: Greece | E39: =VLOOKUP(A39, KOCoeffs!A$2:B$33, 2, FALSE) -> 140 | F39: =VLOOKUP(D39, KOCoeffs!A$2:B$33, 2, FALSE) -> 270 | G39: 0.5185185185 | H39: 1.25 | I39: 2.3
A40: Japan | B40: 1.3 | C40: 2 | D40: Greece | E40: =VLOOKUP(A40, KOCoeffs!A$2:B$33, 2, FALSE) -> 155 | F40: =VLOOKUP(D40, KOCoeffs!A$2:B$33, 2, FALSE) -> 270 | G40: 0.5740740741 | H40: 1.3 | I40: 2
A41: Netherlands | B41: 1.2 | C41: 2.3 | D41: Chile | E41: =VLOOKUP(A41, KOCoeffs!A$2:B$33, 2, FALSE) -> 28.4 | F41: =VLOOKUP(D41, KOCoeffs!A$2:B$33, 2, FALSE) -> 40.6 | G41: 0.6995073892 | H41: 1.2 | I41: 2.3
A42: Switzerland | B42: 1.3 | C42: 2 | D42: Ecuador | E42: =VLOOKUP(A42, KOCoeffs!A$2:B$33, 2, FALSE) -> 105 | F42: =VLOOKUP(D42, KOCoeffs!A$2:B$33, 2, FALSE) -> 145 | G42: 0.724137931 | H42: 1.3 | I42: 2
A43: Bosnia & Herzegovina | B43: 1.5 | C43: 2 | D43: Nigeria | E43: =VLOOKUP(A43, KOCoeffs!A$2:B$33, 2, FALSE) -> 170 | F43: =VLOOKUP(D43, KOCoeffs!A$2:B$33, 2, FALSE) -> 230 | G43: 0.7391304348 | H43: 1.5 | I43: 2
A44: Italy | B44: 1.5 | C44: 1.8 | D44: England | E44: =VLOOKUP(A44, KOCoeffs!A$2:B$33, 2, FALSE) -> 23.4 | F44: =VLOOKUP(D44, KOCoeffs!A$2:B$33, 2, FALSE) -> 31 | G44: 0.7548387097 | H44: 1.5 | I44: 1.8
A45: USA | B45: 1.7 | C45: 2.2 | D45: Ghana | E45: =VLOOKUP(A45, KOCoeffs!A$2:B$33, 2, FALSE) -> 180 | F45: =VLOOKUP(D45, KOCoeffs!A$2:B$33, 2, FALSE) -> 230 | G45: 0.7826086957 | H45: 1.7 | I45: 2.2
A46: Uruguay | B46: 1.6 | C46: 2.1 | D46: England | E46: =VLOOKUP(A46, KOCoeffs!A$2:B$33, 2, FALSE) -> 26.2 | F46: =VLOOKUP(D46, KOCoeffs!A$2:B$33, 2, FALSE) -> 31 | G46: 0.8451612903 | H46: 1.6 | I46: 2.1
A47: Mexico | B47: 1.45 | C47: 2.3 | D47: Croatia | E47: =VLOOKUP(A47, KOCoeffs!A$2:B$33, 2, FALSE) -> 140 | F47: =VLOOKUP(D47, KOCoeffs!A$2:B$33, 2, FALSE) -> 165 | G47: 0.8484848485 | H47: 1.45 | I47: 2.3
A48: Italy | B48: 1.375 | C48: 2.25 | D48: Uruguay | E48: =VLOOKUP(A48, KOCoeffs!A$2:B$33, 2, FALSE) -> 23.4 | F48: =VLOOKUP(D48, KOCoeffs!A$2:B$33, 2, FALSE) -> 26.2 | G48: 0.893129771 | H48: 1.375 | I48: 2.25
A49: Ivory Coast | B49: 1.5 | C49: 2 | D49: Japan | E49: =VLOOKUP(A49, KOCoeffs!A$2:B$33, 2, FALSE) -> 140 | F49: =VLOOKUP(D49, KOCoeffs!A$2:B$33, 2, FALSE) -> 155 | G49: 0.9032258065 | H49: 1.5 | I49: 2

Sheet KOCoeffs (hidden)
A1: TEAM | B1: Ave | C1: bet365 | D1: Betfair | E1: Ladbrokes | F1: SkyBet | G1: Will Hill
A2: Algeria | B2: =AVERAGE(C2:G2) -> 1400 | C2: 1500 | D2: 2000 | E2: 1000 | F2: 1500 | G2: 1000
A3: Argentina | B3: 4.5 | C3: 4.5 | D3: 4.5 | E3: 4.5 | F3: 4.5 | G3: 4.5
A4: Australia | B4: 850 | C4: 500 | D4: 1000 | E4: 1000 | F4: 1000 | G4: 750
A5: Belgium | B5: 16.8 | C5: 18 | D5: 20 | E5: 16 | F5: 16 | G5: 14
A6: Bosnia & Herzegovina | B6: 170 | C6: 150 | D6: 200 | E6: 200 | F6: 150 | G6: 150
A7: Brazil | B7: 2.9 | C7: 2.75 | D7: 2.75 | E7: 3 | F7: 3 | G7: 3
A8: Cameroon | B8: 800 | C8: 500 | D8: 1000 | E8: 750 | F8: 1000 | G8: 750
A9: Chile | B9: 40.6 | C9: 40 | D9: 40 | E9: 33 | F9: 50 | G9: 40
A10: Colombia | B10: 27 | C10: 33 | D10: 33 | E10: 22 | F10: 25 | G10: 22
A11: Costa Rica | B11: 2200 | C11: 2500 | D11: 2500 | E11: 2000 | F11: 1500 | G11: 2500
A12: Croatia | B12: 165 | C12: 150 | D12: 200 | E12: 150 | F12: 175 | G12: 150
A13: Ecuador | B13: 145 | C13: 125 | D13: 150 | E13: 150 | F13: 150 | G13: 150 | J13: O1/O2 | K13: WC | L13: WE | M13: DC | N13: DE | U13: W | V13: D | W13: L
A14: England | B14: 31 | C14: 33 | D14: 28 | E14: 33 | F14: 28 | G14: 33 | J14: 0 | K14: 1.65 | L14: 0.3697 | M14: 1.87 | N14: -0.131 | P14: =VLOOKUP(R14,J14:K17, 2) -> 12 | Q14: =VLOOKUP(R14,J14:L17, 3) -> 0 | R14: =S14/Y14 -> 724.137931 | S14: =VLOOKUP(T14, A2:B33, 2, FALSE) -> 2100 | T14: Honduras | U14: =P14*(R14^Q14) -> 12 | V14: =AVERAGE(U16, W16) -> 4.465379847 | W14: =AA14*(Z14^AB14) -> 0.1446132248 | X14: Brazil | Y14: =VLOOKUP(X14, A2:B33, 2, FALSE) -> 2.9 | Z14: =Y14/S14 -> 0.001380952381 | AA14: =VLOOKUP(Z14,J14:K17, 2) -> 1.65 | AB14: =VLOOKUP(Z14,J14:L17, 3) -> 0.3697
A15: France | B15: 21 | C15: 22 | D15: 18 | E15: 20 | F15: 25 | G15: 20 | J15: 1 | K15: 1.55 | L15: 0.3407 | M15: 2.05 | N15: 0.0467
A16: Germany | B16: 5.2 | C16: 5.5 | D16: 5 | E16: 5 | F16: 5 | G16: 5.5 | J16: 10 | K16: 2 | L16: 0.2834 | M16: 1.58 | N16: 0.175 | P16: =VLOOKUP(R14,J14:M17, 4) -> 4.5 | Q16: =VLOOKUP(R14,J14:N17, 5) -> 0 | U16: =P16*(R14^Q16) -> 4.5 | W16: =AA16*(Z14^AB16) -> 4.430759695 | AA16: =VLOOKUP(Z14,J14:M17, 4) -> 1.87 | AB16: =VLOOKUP(Z14,J14:N17, 5) -> -0.131
A17: Ghana | B17: 230 | C17: 250 | D17: 250 | E17: 200 | F17: 250 | G17: 200 | J17: 250 | K17: 12 | L17: 0 | M17: 4.5 | N17: 0
A18: Greece | B18: 270 | C18: 300 | D18: 300 | E18: 250 | F18: 250 | G18: 250
A19: Honduras | B19: 2100 | C19: 2000 | D19: 2000 | E19: 2000 | F19: 2000 | G19: 2500
A20: Iran | B20: 1450 | C20: 1500 | D20: 1500 | E20: 1500 | F20: 2000 | G20: 750
A21: Italy | B21: 23.4 | C21: 25 | D21: 20 | E21: 22 | F21: 25 | G21: 25
A22: Ivory Coast | B22: 140 | C22: 125 | D22: 125 | E22: 150 | F22: 150 | G22: 150
A23: Japan | B23: 155 | C23: 150 | D23: 200 | E23: 150 | F23: 150 | G23: 125
A24: Mexico | B24: 140 | C24: 150 | D24: 150 | E24: 125 | F24: 125 | G24: 150
A25: Netherlands | B25: 28.4 | C25: 28 | D25: 33 | E25: 28 | F25: 25 | G25: 28
A26: Nigeria | B26: 230 | C26: 250 | D26: 250 | E26: 200 | F26: 200 | G26: 250
A27: Portugal | B27: 28.8 | C27: 28 | D27: 33 | E27: 22 | F27: 28 | G27: 33
A28: Russia | B28: 77.2 | C28: 80 | D28: 80 | E28: 80 | F28: 80 | G28: 66
A29: South Korea | B29: 390 | C29: 300 | D29: 500 | E29: 400 | F29: 500 | G29: 250
A30: Spain | B30: 6 | C30: 6.5 | D30: 5.5 | E30: 6 | F30: 6 | G30: 6
A31: Switzerland | B31: 105 | C31: 100 | D31: 100 | E31: 100 | F31: 125 | G31: 100
A32: Uruguay | B32: 26.2 | C32: 25 | D32: 28 | E32: 28 | F32: 22 | G32: 28
A33: USA | B33: 180 | C33: 225 | D33: 200 | E33: 200 | F33: 125 | G33: 150

Sheet OddsTesting (hidden)
B1: ActWin | C1: ActDraw | D1: ActLoss | F1: PreWin | G1: PreDraw | H1: PreLoss
A2: Brazil | B2: 0.3 | C2: 3.6 | D2: 9 | E2: Croatia | F2: 0.3703639181 | G2: 3.189937636 | H2: 6.286679972 | I2: =ABS(B2-F2) -> 0.07036391809 | J2: =ABS(C2-G2) -> 0.4100623644 | K2: 2.713320028 | L2: Yes
A3: Mexico | B3: 1.15 | C3: 2 | D3: 2.5 | E3: Cameroon | F3: 0.8662337704 | G3: 2.286747352 | H3: 2.806910952 | I3: =ABS(B3-F3) -> 0.2837662296 | J3: =ABS(C3-G3) -> 0.2867473523 | K3: =ABS(D3-H3) -> 0.3069109515
A4: Brazil | B4: 0.364 | C4: 3.333 | D4: 6 | E4: Mexico | F4: 0.3935581852 | G4: 3.110715373 | H4: 6.000660943 | I4: 0.02955818519 | J4: 0.2222846271 | K4: 0.0006609426154
A5: Cameroon | B5: 2.4 | C5: 2 | D5: 1.05 | E5: Croatia | F5: 2.654102414 | G5: 2.253231864 | H5: 0.9204821905 | I5: 0.2541024137 | J5: 0.2532318645 | K5: 0.1295178095
A6: Cameroon | B6: 12 | C6: 4 | D6: 0.2 | E6: Brazil | F6: 12 | G6: 4.202280702 | H6: 0.2066141761 | I6: 0 | J6: 0.2022807023 | K6: 0.00661417613
A7: Croatia | B7: 1.5 | C7: 2.3 | D7: 1.45 | E7: Mexico | F7: 1.639240427 | G7: 1.988237827 | H7: 1.552757604 | I7: 0.1392404274 | J7: 0.3117621733 | K7: 0.1027576044
A8: Spain | B8: 1 | C8: 2.1 | D8: 3 | E8: Netherlands | F8: 0.9286983441 | G8: 2.248379142 | H8: 2.632456028 | I8: 0.07130165595 | J8: 0.1483791417 | K8: 0.3675439716
A9: Chile | B9: 0.5 | C9: 2.75 | D9: 5.5 | E9: Australia | F9: 0.5359815521 | G9: 2.737860277 | H9: 4.735556704 | I9: 0.03598155208 | J9: 0.01213972346 | K9: 0.7644432956
A10: Australia | B10: 5.5 | C10: 3.5 | D10: 0.364 | E10: Netherlands | F10: 5.240309064 | G10: 2.891427186 | H10: 0.4696448428 | I10: 0.2596909361 | J10: 0.6085728142 | K10: 0.1056448428
A11: Spain | B11: 0.7 | C11: 2.4 | D11: 3.333 | E11: Chile | F11: 0.8137563431 | G11: 2.321865454 | H11: 2.973311337 | I11: 0.1137563431 | J11: 0.07813454642 | K11: 0.3596886629
A12: Australia | B12: 8 | C12: 4 | D12: 0.25 | E12: Spain | F12: 8.141403037 | G12: 3.668816397 | H12: 0.2643384169 | I12: 0.141403037 | J12: 0.3311836035 | K12: 0.01433841686
A13: Netherlands | B13: 1.2 | C13: 2.3 | D13: 1.9 | E13: Chile | F13: 1.445784818 | G13: 2.022064788 | H13: 1.750696886 | I13: 0.2457848178 | J13: 0.2779352119 | K13: 0.1493031136
A14: Colombia | B14: 0.7 | C14: 2.4 | D14: 4 | E14: Greece | F14: 0.7043425806 | G14: 2.446214015 | H14: 3.840873428 | I14: 0.004342580633 | J14: 0.0462140149 | K14: 0.1591265721
A15: Ivory Coast | B15: 1.5 | C15: 2 | D15: 1.625 | E15: Japan | F15: 1.589065688 | G15: 1.977434018 | H15: 1.604692733 | I15: 0.08906568787 | J15: 0.02256598185 | K15: 0.02030726661
A16: Colombia | B16: 1 | C16: 2.25 | D16: 2.4 | E16: Ivory Coast | F16: 0.8979157575 | G16: 2.266854436 | H16: 2.715512995 | I16: 0.1020842425 | J16: 0.01685443575 | K16: 0.3155129953
A17: Japan | B17: 1.3 | C17: 2 | D17: 1.9 | E17: Greece | F17: 1.343923009 | G17: 2.057424549 | H17: 1.872627182 | I17: 0.04392300887 | J17: 0.05742454902 | K17: 0.02737281807
A18: Japan | B18: 2.75 | C18: 2.5 | D18: 0.833 | E18: Colombia | F18: 2.811331594 | G18: 2.287698306 | H18: 0.8647558308 | I18: 0.06133159414 | J18: 0.212301694 | K18: 0.03175583078
A19: Greece | B19: 1.8 | C19: 2.25 | D19: 1.25 | E19: Ivory Coast | F19: 1.93870402 | G19: 2.075933255 | H19: 1.294292085 | I19: 0.1387040201 | J19: 0.1740667452 | K19: 0.04429208518
A20: Uruguay | B20: 0.33 | C20: 3.2 | D20: 9 | E20: Costa Rica | F20: 0.3207275498 | G20: 3.385928863 | H20: 7.019820343 | I20: 0.009272450177 | J20: 0.1859288633 | K20: 1.980179657 | L20: Yes
A21: England | B21: 2 | C21: 1.8 | D21: 1.5 | E21: Italy | F21: 1.705873351 | G21: 2.008643128 | H21: 1.48705362 | I21: 0.2941266494 | J21: 0.2086431285 | K21: 0.01294638019
A22: Uruguay | B22: 1.6 | C22: 2.1 | D22: 1.625 | E22: England | F22: 1.550506222 | G22: 1.988918466 | H22: 1.64143382 | I22: 0.04949377781 | J22: 0.1110815339 | K22: 0.01643381982
A23: Italy | B23: 0.333 | C23: 3.5 | D23: 6.5 | E23: Costa Rica | F23: 0.3076021606 | G23: 3.445113315 | H23: 7.248310838 | I23: 0.02539783942 | J23: 0.05488668515 | K23: 0.7483108377
A24: Italy | B24: 1.375 | C24: 2.25 | D24: 1.625 | E24: Uruguay | F24: 1.582475734 | G24: 1.979371113 | H24: 1.610850015 | I24: 0.2074757344 | J24: 0.2706288874 | K24: 0.01414998491
A25: Costa Rica | B25: 5 | C25: 2.75 | D25: 0.533 | E25: England | F25: 6.692997756 | G25: 3.299752186 | H25: 0.3413081803 | I25: 1.692997756 | J25: 0.5497521859 | K25: 0.1916918197 | L25: No
A26: Switzerland | B26: 1.3 | C26: 2 | D26: 2.1 | E26: Ecuador | F26: 1.464400531 | G26: 2.015950027 | H26: 1.730177191 | I26: 0.1644005309 | J26: 0.01595002667 | K26: 0.3698228092
A27: France | B27: 0.3 | C27: 3.5 | D27: 7.5 | E27: Honduras | F27: 0.3006657399 | G27: 3.477863402 | H27: 7.376154345 | I27: 0.0006657399353 | J27: 0.02213659844 | K27: 0.1238456555
A28: Switzerland | B28: 3 | C28: 2.1 | D28: 0.833 | E28: France | F28: 2.682074139 | G28: 2.259463 | H28: 0.9100698644 | I28: 0.3179258609 | J28: 0.1594630003 | K28: 0.07706986443
A29: Honduras | B29: 4 | C29: 2.3 | D29: 0.667 | E29: Ecuador | F29: 4.265945001 | G29: 2.588214375 | H29: 0.6142104786 | I29: 0.2659450008 | J29: 0.2882143745 | K29: 0.05278952137
A30: Honduras | B30: 4.5 | C30: 2.5 | D30: 0.571 | E30: Switzerland | F30: 4.674572463 | G30: 2.718817495 | H30: 0.5451213036 | I30: 0.1745724634 | J30: 0.2188174945 | K30: 0.02587869637
A31: Ecuador | B31: 2.1 | C31: 2.3 | D31: 1.05 | E31: France | F31: 2.993847419 | G31: 2.326106399 | H31: 0.8077010864 | I31: 0.893847419 | J31: 0.0261063985 | K31: 0.2422989136
A32: Argentina | B32: 0.364 | C32: 3.333 | D32: 6 | E32: Bosnia & Herzegovina | F32: 0.4309031256 | G32: 2.996198919 | H32: 5.597818249 | I32: 0.06690312562 | J32: 0.3368010813 | K32: 0.4021817513
A33: Iran | B33: 2.6 | C33: 2 | D33: 1 | E33: Nigeria | F33: 2.902479111 | G33: 2.307083704 | H33: 0.8353278763 | I33: 0.3024791108 | J33: 0.3070837036 | K33: 0.1646721237
A34: Argentina | B34: 0.167 | C34: 5 | D34: 12 | E34: Iran | F34: 0.195082746 | G34: 4.242415813 | H34: 12 | I34: 0.028082746 | J34: 0.7575841872 | K34: 0
A35: Nigeria | B35: 1.625 | C35: 2 | D35: 1.5 | E35: Bosnia & Herzegovina | F35: 1.718139508 | G35: 2.012339756 | H35: 1.475537086 | I35: 0.09313950798 | J35: 0.01233975641 | K35: 0.02446291405
A36: Nigeria | B36: 6.5 | C36: 3.2 | D36: 0.364 | E36: Argentina | F36: 6.098502947 | G36: 3.138002831 | H36: 0.3853415408 | I36: 0.4014970534 | J36: 0.06199716917 | K36: 0.02134154079
A37: Bosnia & Herzegovina | B37: 0.667 | C37: 2.4 | D37: 3.5 | E37: Iran | F37: 0.7470044002 | G37: 2.371034122 | H37: 3.217331633 | I37: 0.08000440021 | J37: 0.02896587842 | K37: 0.2826683668
A38: Germany | B38: 0.833 | C38: 2.25 | D38: 3 | E38: Portugal | F38: 0.8763003348 | G38: 2.28032569 | H38: 2.777182242 | I38: 0.04330033482 | J38: 0.03032569022 | K38: 0.2228177582
A39: Ghana | B39: 1.4 | C39: 2.2 | D39: 1.7 | E39: USA | F39: 1.685004362 | G39: 2.002311887 | H39: 1.507049122 | I39: 0.2850043618 | J39: 0.1976881126 | K39: 0.1929508777
A40: Germany | B40: 0.364 | C40: 3.333 | D40: 6 | E40: Ghana | F40: 0.4064991103 | G40: 3.069342592 | H40: 5.853671096 | I40: 0.04249911029 | J40: 0.2636574083 | K40: 0.1463289039
A41: USA | B41: 4 | C41: 2.3 | D41: 0.667 | E41: Portugal | F41: 2.893929988 | G41: 2.305283147 | H41: 0.8380059492 | I41: 1.106070012 | J41: 0.005283147448 | K41: 0.1710059492
A42: USA | B42: 6 | C42: 3 | D42: 0.4 | E42: Germany | F42: 5.460832756 | G42: 2.956419774 | H42: 0.4450575114 | I42: 0.5391672436 | J42: 0.04358022582 | K42: 0.04505751144
A43: Portugal | B43: 0.75 | C43: 2.5 | D43: 3 | E43: Ghana | F43: 0.7654037153 | G43: 2.356928189 | H43: 3.145990098 | I43: 0.01540371528 | J43: 0.1430718106 | K43: 0.1459900978
A44: Belgium | B44: 0.4 | C44: 3 | D44: 5.5 | E44: Algeria | F44: 0.3216305185 | G44: 3.381984185 | H44: 7.004707914 | I44: 0.07836948149 | J44: 0.3819841851 | K44: 1.504707914 | L44: No
A45: Russia | B45: 1 | C45: 2.1 | D45: 2.5 | E45: South Korea | F45: 0.9066078496 | G45: 2.261555307 | H45: 2.691511226 | I45: 0.09339215044 | J45: 0.1615553075 | K45: 0.1915112261
A46: Belgium | B46: 1.05 | C46: 2.2 | D46: 2.2 | E46: Russia | F46: 0.9389201722 | G46: 2.242418913 | H46: 2.606033776 | I46: 0.1110798278 | J46: 0.04241891334 | K46: 0.4060337756
A47: South Korea | B47: 1.15 | C47: 2 | D47: 2.3 | E47: Algeria | F47: 1.02867218 | G47: 2.193455064 | H47: 2.395751718 | I47: 0.1213278201 | J47: 0.1934550635 | K47: 0.09575171832
A48: South Korea | B48: 4 | C48: 2.5 | D48: 0.615 | E48: Belgium | F48: 4.8762398 | G48: 2.781373018 | H48: 0.5158984232 | I48: 0.8762397998 | J48: 0.2813730181 | K48: 0.09910157685
A49: Algeria | B49: 4 | C49: 2.5 | D49: 0.615 | E49: Russia | F49: 4.546654339 | G49: 2.678506963 | H49: 0.5652134987 | I49: 0.5466543389 | J49: 0.1785069631 | K49: 0.04978650126

Sheet GroupQuals (hidden)
B1: Gr | C1: Tm | D1: Odds (WH) | E1: Sim | F1: Sim% | H1: Odd-1 | I1: Tcoeff | J1: 1 | K1: 2 | L1: 3 | M1: 4 | N1: Prob
A2: Brazil | B2: A | C2: 1 | D2: 0.025 | E2: 990 | F2: =E2/1000 -> 0.99 | H2: =1/D2 -> 40 | I2: =H2/(SUM(H2:H5)) -> 0.9454125617 | J2: =IF(J$1=$C2, $I2, VLOOKUP(J$1, $C$2:$I$5, 7, FALSE)*($I2/(SUM($I$2:$I$5)-VLOOKUP(J$1, $C$2:$I$5, 7, FALSE)))) -> 0.9454125617 | K2: 0.004490250254 | L2: 0.02760822554 | M2: 0.02075980668 | N2: =J2+K2+L2+M2 -> 0.9982708442 | O2: =F2-N2 -> -0.008270844195
A3: Cameroon | B3: A | C3: 2 | D3: 5 | E3: 185 | F3: =E3/1000 -> 0.185 | H3: =1/D3 -> 0.2 | I3: =H3/(SUM(H2:H5)) -> 0.004727062809 | J3: 0.08186910212 | K3: 0.004727062809 | L3: 0.0001380411277 | M3: 0.0001037990334 | N3: =J3+K3+L3+M3 -> 0.08683800509 | O3: =F3-N3 -> 0.09816199491
A4: Croatia | B4: A | C4: 3 | D4: 0.833 | E4: 388 | F4: 0.388 | H4: 1.200480192 | I4: =H4/(SUM(H2:H5)) -> 0.02837372634 | J4: 0.4914111772 | K4: 0.0001347614122 | L4: 0.02837372634 | M4: 0.0006230434177 | N4: 0.5205427084 | O4: -0.1325427084
A5: Mexico | B5: A | C5: 4 | D5: 1.1 | E5: 437 | F5: 0.437 | H5: 0.9090909091 | I5: =H5/(SUM(H2:H5)) -> 0.02148664913 | J5: 0.3721322824 | K5: 0.0001020511421 | L5: 0.0006274596714 | M5: 0.02148664913 | N5: 0.3943484423 | O5: 0.04265155768
A6: Australia | B6: B | C6: 1 | D6: 9 | E6: 31 | F6: 0.031 | H6: 0.1111111111 | I6: =H6/(SUM(H6:H9)) -> 0.01227621102 | J6: =IF(J$1=$C6, $I6, VLOOKUP(J$1, $C$6:$I$9, 7, FALSE)*($I6/(SUM($I$6:$I$9)-VLOOKUP(J$1, $C$6:$I$9, 7, FALSE)))) -> 0.01227621102 | K6: 0.001877261926 | L6: 0.002945291381 | M6: 0.02400017326 | N6: =J6+K6+L6+M6 -> 0.04109893759 | O6: -0.01009893759
A7: Chile | B7: B | C7: 2 | D7: 0.833 | E7: 459 | F7: 0.459 | H7: 1.200480192 | I7: =H7/(SUM(H6:H9)) -> 0.1326361334 | J7: 0.001648506577 | K7: 0.1326361334 | L7: 0.03182187567 | M7: 0.2593055935 | N7: =J7+K7+L7+M7 -> 0.4254121092 | O7: 0.03358789085
A8: Netherlands | B8: B | C8: 3 | D8: 0.571 | E8: 631 | F8: 0.631 | H8: 1.751313485 | I8: =H8/(SUM(H6:H9)) -> 0.1934954451 | J8: 0.002404914148 | K8: 0.02958906713 | L8: 0.1934954451 | M8: 0.3782864437 | N8: 0.6037758701 | O8: 0.02722412991
A9: Spain | B9: B | C9: 4 | D9: 0.167 | E9: 879 | F9: 0.879 | H9: 5.988023952 | I9: =H9/(SUM(H6:H9)) -> 0.6615922105 | J9: 0.008222790291 | K9: 0.1011698044 | L9: 0.158728278 | M9: 0.6615922105 | N9: 0.9297130832 | O9: -0.05071308317
A10: Colombia | B10: C | C10: 1 | D10: 0.289 | E10: 812 | F10: 0.812 | H10: 3.460207612 | I10: =H10/(SUM(H10:H13)) -> 0.5764378495 | J10: =IF(J$1=$C10, $I10, VLOOKUP(J$1, $C$10:$I$13, 7, FALSE)*($I10/(SUM($I$10:$I$13)-VLOOKUP(J$1, $C$10:$I$13, 7, FALSE)))) -> 0.5764378495 | K10: 0.05620964642 | L10: 0.1293478825 | M10: 0.1028799211 | N10: 0.8648752996 | O10: -0.05287529955
A11: Greece | B11: C | C11: 2 | D11: 1.875 | E11: 309 | F11: 0.309 | H11: 0.5333333333 | I11: =H11/(SUM(H10:H13)) -> 0.08884828721 | J11: 0.1209161762 | K11: 0.08884828721 | L11: 0.01993682029 | M11: 0.01585722518 | N11: 0.2455585089 | O11: 0.06344149114
A12: Ivory Coast | B12: C | C12: 3 | D12: 0.909 | E12: 455 | F12: 0.455 | H12: 1.100110011 | I12: =H12/(SUM(H10:H13)) -> 0.1832679192 | J12: 0.2494145548 | K12: 0.01787083368 | L12: 0.1832679192 | M12: 0.0327087978 | N12: 0.4832621055 | O12: -0.02826210549
A13: Japan | B13: C | C13: 4 | D13: 1.1 | E13: 424 | F13: 0.424 | H13: 0.9090909091 | I13: =H13/(SUM(H10:H13)) -> 0.1514459441 | J13: 0.2061071185 | K13: 0.01476780711 | L13: 0.0339832164 | M13: 0.1514459441 | N13: 0.4063040861 | O13: 0.01769591389
A14: Costa Rica | B14: D | C14: 1 | D14: 8 | E14: 31 | F14: 0.031 | H14: 0.125 | I14: =H14/(SUM(H14:H17)) -> 0.01816991027 | J14: =IF(J$1=$C14, $I14, VLOOKUP(J$1, $C$14:$I$17, 7, FALSE)*($I14/(SUM($I$14:$I$17)-VLOOKUP(J$1, $C$14:$I$17, 7, FALSE)))) -> 0.01816991027 | K14: 0.005063188174 | L14: 0.01407565023 | M14: 0.008843955147 | N14: 0.04615270382 | O14: -0.01515270382
A15: England | B15: D | C15: 2 | D15: 0.667 | E15: 587 | F15: 0.587 | H15: 1.499250375 | I15: =H15/(SUM(H14:H17)) -> 0.2179299583 | J15: 0.004033047905 | K15: 0.2179299583 | L15: 0.1688233911 | M15: 0.1060744246 | N15: 0.4968608218 | O15: 0.09013917818
A16: Italy | B16: D | C16: 3 | D16: 0.333 | E16: 718 | F16: 0.718 | H16: 3.003003003 | I16: =H16/(SUM(H14:H17)) -> 0.4365143608 | J16: 0.008078207066 | K16: 0.1216381543 | L16: 0.4365143608 | M16: 0.2124673909 | N16: 0.7786981132 | O16: -0.06069811317
A17: Uruguay | B17: D | C17: 4 | D17: 0.444 | E17: 664 | F17: 0.664 | H17: 2.252252252 | I17: =H17/(SUM(H14:H17)) -> 0.3273857706 | J17: 0.006058655299 | K17: 0.09122861575 | L17: 0.2536153195 | M17: 0.3273857706 | N17: 0.6782883612 | O17: -0.01428836119
A18: Ecuador | B18: E | C18: 1 | D18: 0.909 | E18: 530 | F18: 0.53 | H18: 1.100110011 | I18: =H18/(SUM(H18:H21)) -> 0.1376121331 | J18: =IF(J$1=$C18, $I18, VLOOKUP(J$1, $C$18:$I$21, 7, FALSE)*($I18/(SUM($I$18:$I$21)-VLOOKUP(J$1, $C$18:$I$21, 7, FALSE)))) -> 0.1376121331 | K18: 0.2297916422 | L18: 0.00250386139 | M18: 0.03860375658 | N18: 0.4085113932 | O18: 0.1214886068
A19: France | B19: E | C19: 2 | D19: 0.2 | E19: 842 | F19: 0.842 | H19: 5 | I19: =H19/(SUM(H18:H21)) -> 0.6254471448 | J19: 0.09980325443 | K19: 0.6254471448 | L19: 0.01138005002 | M19: 0.1754540737 | N19: 0.9120845229 | O19: -0.07008452286
A20: Honduras | B20: E | C20: 3 | D20: 7 | E20: 55 | F20: 0.055 | H20: 0.1428571429 | I20: =H20/(SUM(H18:H21)) -> 0.01786991842 | J20: 0.002851521555 | K20: 0.02984008611 | L20: 0.01786991842 | M20: 0.005012973533 | N20: 0.05557449962 | O20: -0.0005744996208
A21: Switzerland | B21: E | C21: 4 | D21: 0.571 | E21: 573 | F21: 0.573 | H21: 1.751313485 | I21: =H21/(SUM(H18:H21)) -> 0.2190708038 | J21: 0.03495735707 | K21: 0.3658154164 | L21: 0.003986007012 | M21: 0.2190708038 | N21: 0.6238295843 | O21: -0.05082958427
A22: Argentina | B22: F | C22: 1 | D22: 0.071 | E22: 991 | F22: 0.991 | H22: 14.08450704 | I22: =H22/(SUM(H22:H25)) -> 0.8492952886 | J22: =IF(J$1=$C22, $I22, VLOOKUP(J$1, $C$22:$I$25, 7, FALSE)*($I22/(SUM($I$22:$I$25)-VLOOKUP(J$1, $C$22:$I$25, 7, FALSE)))) -> 0.8492952886 | K22: 0.08441152742 | L22: 0.01036752763 | M22: 0.04304654544 | N22: 0.9871208891 | O22: 0.003879110866
A23: Bosnia & Herzegovina | B23: F | C23: 2 | D23: 0.667 | E23: 516 | F23: 0.516 | H23: 1.499250375 | I23: =H23/(SUM(H22:H25)) -> 0.09040474587 | J23: 0.5094752781 | K23: 0.09040474587 | L23: 0.001103589898 | M23: 0.004582166007 | N23: 0.6055657799 | O23: -0.0895657799
A24: Iran | B24: F | C24: 3 | D24: 5 | E24: 114 | F24: 0.114 | H24: 0.2 | I24: =H24/(SUM(H22:H25)) -> 0.0120599931 | J24: 0.0679640021 | K24: 0.001198643689 | L24: 0.0120599931 | M24: 0.0006112609453 | N24: 0.08183389984 | O24: 0.03216610016
A25: Nigeria | B25: F | C25: 4 | D25: 1.25 | E25: 379 | F25: 0.379 | H25: 0.8 | I25: =H25/(SUM(H22:H25)) -> 0.04823997239 | J25: 0.2718560084 | K25: 0.004794574757 | L25: 0.0005888755695 | M25: 0.04823997239 | N25: 0.3254794311 | O25: 0.05352056887
A26: Germany | B26: G | C26: 1 | D26: 0.143 | E26: 950 | F26: 0.95 | H26: 6.993006993 | I26: =H26/(SUM(H26:H29)) -> 0.670006062 | J26: =IF(J$1=$C26, $I26, VLOOKUP(J$1, $C$26:$I$29, 7, FALSE)*($I26/(SUM($I$26:$I$29)-VLOOKUP(J$1, $C$26:$I$29, 7, FALSE)))) -> 0.670006062 | K26: 0.02418586558 | L26: 0.2393604127 | M26: 0.02210388465 | N26: 0.9556562249 | O26: -0.005656224918
A27: Ghana | B27: G | C27: 2 | D27: 2.75 | E27: 197 | F27: 0.197 | H27: 0.3636363636 | I27: =H27/(SUM(H26:H29)) -> 0.03484031522 | J27: 0.07073833701 | K27: 0.03484031522 | L27: 0.01244674146 | M27: 0.001149402002 | N27: 0.1191747957 | O27: 0.07782520431
A28: Portugal | B28: G | C28: 3 | D28: 0.364 | E28: 719 | F28: 0.719 | H28: 2.747252747 | I28: =H28/(SUM(H26:H29)) -> 0.2632166672 | J28: 0.5344242494 | K28: 0.009501590049 | L28: 0.2632166672 | M28: 0.008683668969 | N28: 0.8158261756 | O28: -0.09682617558
A29: USA | B29: G | C29: 4 | D29: 3 | E29: 134 | F29: 0.134 | H29: 0.3333333333 | I29: =H29/(SUM(H26:H29)) -> 0.03193695562 | J29: 0.06484347559 | K29: 0.001152859593 | L29: 0.01140951301 | M29: 0.03193695562 | N29: 0.1093428038 | O29: 0.02465719619
A30: Algeria | B30: H | C30: 1 | D30: 4 | E30: 116 | F30: 0.116 | H30: 0.25 | I30: =H30/(SUM(H30:H33)) -> 0.02696476819 | J30: =IF(J$1=$C30, $I30, VLOOKUP(J$1, $C$30:$I$33, 7, FALSE)*($I30/(SUM($I$30:$I$33)-VLOOKUP(J$1, $C$30:$I$33, 7, FALSE)))) -> 0.02696476819 | K30: 0.04917736379 | L30: 0.009955451711 | M30: 0.001645819442 | N30: 0.08774340313 | O30: 0.02825659687
A31: Belgium | B31: H | C31: 2 | D31: 0.167 | E31: 885 | F31: 0.885 | H31: 5.988023952 | I31: =H31/(SUM(H30:H33)) -> 0.6458627111 | J31: 0.01789815797 | K31: 0.6458627111 | L31: 0.2384539332 | M31: 0.03942082495 | N31: 0.9416356272 | O31: -0.05663562723
A32: Russia | B32: H | C32: 3 | D32: 0.4 | E32: 698 | F32: 0.698 | H32: 2.5 | I32: =H32/(SUM(H30:H33)) -> 0.2696476819 | J32: 0.007472480952 | K32: 0.4917736379 | L32: 0.2696476819 | M32: 0.01645819442 | N32: 0.7853519952 | O32: -0.08735199516
A33: South Korea | B33: H | C33: 4 | D33: 1.875 | E33: 301 | F33: 0.301 | H33: 0.5333333333 | I33: =H33/(SUM(H30:H33)) -> 0.0575248388 | J33: 0.00159412927 | K33: 0.1049117094 | L33: 0.02123829698 | M33: 0.0575248388 | N33: 0.1852689745 | O33: 0.1157310255

Sheet GroupQuals (2) (hidden)
B1: Gr | C1: Tm | D1: Odds (WH) | E1: Sim | F1: Sim% | H1: Odd-1 | I1: Tcoeff | J1: 1 | K1: 2 | L1: 3 | M1: 4 | N1: Prob
A2: Brazil | B2: A | C2: 1 | D2: 0.025 | E2: 25 | F2: =E2/25 -> 1 | H2: =1/D2 -> 40 | I2: =H2/(SUM(H2:H5)) -> 0.9454125617 | J2: =IF(J$1=$C2, $I2, VLOOKUP(J$1, $C$2:$I$5, 7, FALSE)*($I2/(SUM($I$2:$I$5)-VLOOKUP(J$1, $C$2:$I$5, 7, FALSE)))) -> 0.9454125617 | K2: 0.004490250254 | L2: 0.02760822554 | M2: 0.02075980668 | N2: =J2+K2+L2+M2 -> 0.9982708442
A3: Cameroon | B3: A | C3: 2 | D3: 5 | E3: 1 | F3: 0.04 | H3: =1/D3 -> 0.2 | I3: =H3/(SUM(H2:H5)) -> 0.004727062809 | J3: 0.08186910212 | K3: 0.004727062809 | L3: 0.0001380411277 | M3: 0.0001037990334 | N3: =J3+K3+L3+M3 -> 0.08683800509
A4: Croatia | B4: A | C4: 3 | D4: 0.833 | E4: 16 | F4: 0.64 | H4: 1.200480192 | I4: =H4/(SUM(H2:H5)) -> 0.02837372634 | J4: 0.4914111772 | K4: 0.0001347614122 | L4: 0.02837372634 | M4: 0.0006230434177 | N4: 0.5205427084
A5: Mexico | B5: A | C5: 4 | D5: 1.1 | E5: 8 | F5: 0.32 | H5: 0.9090909091 | I5: =H5/(SUM(H2:H5)) -> 0.02148664913 | J5: 0.3721322824 | K5: 0.0001020511421 | L5: 0.0006274596714 | M5: 0.02148664913 | N5: 0.3943484423
A6: Australia | B6: B | C6: 1 | D6: 9 | E6: 1 | F6: 0.04 | H6: 0.1111111111 | I6: =H6/(SUM(H6:H9)) -> 0.01227621102 | J6: =IF(J$1=$C6, $I6, VLOOKUP(J$1, $C$6:$I$9, 7, FALSE)*($I6/(SUM($I$6:$I$9)-VLOOKUP(J$1, $C$6:$I$9, 7, FALSE)))) -> 0.01227621102 | K6: 0.001877261926 | L6: 0.002945291381 | M6: 0.02400017326 | N6: =J6+K6+L6+M6 -> 0.04109893759
A7: Chile | B7: B | C7: 2 | D7: 0.833 | E7: 13 | F7: 0.52 | H7: 1.200480192 | I7: =H7/(SUM(H6:H9)) -> 0.1326361334 | J7: 0.001648506577 | K7: 0.1326361334 | L7: 0.03182187567 | M7: 0.2593055935 | N7: =J7+K7+L7+M7 -> 0.4254121092
A8: Netherlands | B8: B | C8: 3 | D8: 0.571 | E8: 11 | F8: 0.44 | H8: 1.751313485 | I8: =H8/(SUM(H6:H9)) -> 0.1934954451 | J8: 0.002404914148 | K8: 0.02958906713 | L8: 0.1934954451 | M8: 0.3782864437 | N8: 0.6037758701
A9: Spain | B9: B | C9: 4 | D9: 0.167 | E9: 25 | F9: 1 | H9: 5.988023952 | I9: =H9/(SUM(H6:H9)) -> 0.6615922105 | J9: 0.008222790291 | K9: 0.1011698044 | L9: 0.158728278 | M9: 0.6615922105 | N9: 0.9297130832
A10: Colombia | B10: C | C10: 1 | D10: 0.289 | E10: 19 | F10: 0.76 | H10: 3.460207612 | I10: =H10/(SUM(H10:H13)) -> 0.5764378495 | J10: =IF(J$1=$C10, $I10, VLOOKUP(J$1, $C$10:$I$13, 7, FALSE)*($I10/(SUM($I$10:$I$13)-VLOOKUP(J$1, $C$10:$I$13, 7, FALSE)))) -> 0.5764378495 | K10: 0.05620964642 | L10: 0.1293478825 | M10: 0.1028799211 | N10: 0.8648752996
A11: Greece | B11: C | C11: 2 | D11: 1.875 | E11: 8 | F11: 0.32 | H11: 0.5333333333 | I11: =H11/(SUM(H10:H13)) -> 0.08884828721 | J11: 0.1209161762 | K11: 0.08884828721 | L11: 0.01993682029 | M11: 0.01585722518 | N11: 0.2455585089
A12: Ivory Coast | B12: C | C12: 3 | D12: 0.909 | E12: 7 | F12: 0.28 | H12: 1.100110011 | I12: =H12/(SUM(H10:H13)) -> 0.1832679192 | J12: 0.2494145548 | K12: 0.01787083368 | L12: 0.1832679192 | M12: 0.0327087978 | N12: 0.4832621055
A13: Japan | B13: C | C13: 4 | D13: 1.1 | E13: 16 | F13: 0.64 | H13: 0.9090909091 | I13: =H13/(SUM(H10:H13)) -> 0.1514459441 | J13: 0.2061071185 | K13: 0.01476780711 | L13: 0.0339832164 | M13: 0.1514459441 | N13: 0.4063040861
A14: Costa Rica | B14: D | C14: 1 | D14: 8 | E14: 2 | F14: 0.08 | H14: 0.125 | I14: =H14/(SUM(H14:H17)) -> 0.01816991027 | J14: =IF(J$1=$C14, $I14, VLOOKUP(J$1, $C$14:$I$17, 7, FALSE)*($I14/(SUM($I$14:$I$17)-VLOOKUP(J$1, $C$14:$I$17, 7, FALSE)))) -> 0.01816991027 | K14: 0.005063188174 | L14: 0.01407565023 | M14: 0.008843955147 | N14: 0.04615270382
A15: England | B15: D | C15: 2 | D15: 0.667 | E15: 9 | F15: 0.36 | H15: 1.499250375 | I15: =H15/(SUM(H14:H17)) -> 0.2179299583 | J15: 0.004033047905 | K15: 0.2179299583 | L15: 0.1688233911 | M15: 0.1060744246 | N15: 0.4968608218
A16: Italy | B16: D | C16: 3 | D16: 0.333 | E16: 20 | F16: 0.8 | H16: 3.003003003 | I16: =H16/(SUM(H14:H17)) -> 0.4365143608 | J16: 0.008078207066 | K16: 0.1216381543 | L16: 0.4365143608 | M16: 0.2124673909 | N16: 0.7786981132
A17: Uruguay | B17: D | C17: 4 | D17: 0.444 | E17: 19 | F17: 0.76 | H17: 2.252252252 | I17: =H17/(SUM(H14:H17)) -> 0.3273857706 | J17: 0.006058655299 | K17: 0.09122861575 | L17: 0.2536153195 | M17: 0.3273857706 | N17: 0.6782883612
A18: Ecuador | B18: E | C18: 1 | D18: 0.909 | E18: 14 | F18: 0.56 | H18: 1.100110011 | I18: =H18/(SUM(H18:H21)) -> 0.1376121331 | J18: =IF(J$1=$C18, $I18, VLOOKUP(J$1, $C$18:$I$21, 7, FALSE)*($I18/(SUM($I$18:$I$21)-VLOOKUP(J$1, $C$18:$I$21, 7, FALSE)))) -> 0.1376121331 | K18: 0.2297916422 | L18: 0.00250386139 | M18: 0.03860375658 | N18: 0.4085113932
A19: France | B19: E | C19: 2 | D19: 0.2 | E19: 22 | F19: 0.88 | H19: 5 | I19: =H19/(SUM(H18:H21)) -> 0.6254471448 | J19: 0.09980325443 | K19: 0.6254471448 | L19: 0.01138005002 | M19: 0.1754540737 | N19: 0.9120845229
A20: Honduras | B20: E | C20: 3 | D20: 7 | E20: 1 | F20: 0.04 | H20: 0.1428571429 | I20: =H20/(SUM(H18:H21)) -> 0.01786991842 | J20: 0.002851521555 | K20: 0.02984008611 | L20: 0.01786991842 | M20: 0.005012973533 | N20: 0.05557449962
A21: Switzerland | B21: E | C21: 4 | D21: 0.571 | E21: 13 | F21: 0.52 | H21: 1.751313485 | I21: =H21/(SUM(H18:H21)) -> 0.2190708038 | J21: 0.03495735707 | K21: 0.3658154164 | L21: 0.003986007012 | M21: 0.2190708038 | N21: 0.6238295843
A22: Argentina | B22: F | C22: 1 | D22: 0.071 | E22: 24 | F22: 0.96 | H22: 14.08450704 | I22: =H22/(SUM(H22:H25)) -> 0.8492952886 | J22: =IF(J$1=$C22, $I22, VLOOKUP(J$1, $C$22:$I$25, 7, FALSE)*($I22/(SUM($I$22:$I$25)-VLOOKUP(J$1, $C$22:$I$25, 7, FALSE)))) -> 0.8492952886 | K22: 0.08441152742 | L22: 0.01036752763 | M22: 0.04304654544 | N22: 0.9871208891
A23: Bosnia & Herzegovina | B23: F | C23: 2 | D23: 0.667 | E23: 10 | F23: 0.4 | H23: 1.499250375 | I23: =H23/(SUM(H22:H25)) -> 0.09040474587 | J23: 0.5094752781 | K23: 0.09040474587 | L23: 0.001103589898 | M23: 0.004582166007 | N23: 0.6055657799
A24: Iran | B24: F | C24: 3 | D24: 5 | E24: 2 | F24: 0.08 | H24: 0.2 | I24: =H24/(SUM(H22:H25)) -> 0.0120599931 | J24: 0.0679640021 | K24: 0.001198643689 | L24: 0.0120599931 | M24: 0.0006112609453 | N24: 0.08183389984
A25: Nigeria | B25: F | C25: 4 | D25: 1.25 | E25: 14 | F25: 0.56 | H25: 0.8 | I25: =H25/(SUM(H22:H25)) -> 0.04823997239 | J25: 0.2718560084 | K25: 0.004794574757 | L25: 0.0005888755695 | M25: 0.04823997239 | N25: 0.3254794311
A26: Germany | B26: G | C26: 1 | D26: 0.143 | E26: 24 | F26: 0.96 | H26: 6.993006993 | I26: =H26/(SUM(H26:H29)) -> 0.670006062 | J26: =IF(J$1=$C26, $I26, VLOOKUP(J$1, $C$26:$I$29, 7, FALSE)*($I26/(SUM($I$26:$I$29)-VLOOKUP(J$1, $C$26:$I$29, 7, FALSE)))) -> 0.670006062 | K26: 0.02418586558 | L26: 0.2393604127 | M26: 0.02210388465 | N26: 0.9556562249
A27: Ghana | B27: G | C27: 2 | D27: 2.75 | E27: 1 | F27: 0.04 | H27: 0.3636363636 | I27: =H27/(SUM(H26:H29)) -> 0.03484031522 | J27: 0.07073833701 | K27: 0.03484031522 | L27: 0.01244674146 | M27: 0.001149402002 | N27: 0.1191747957
A28: Portugal | B28: G | C28: 3 | D28: 0.364 | E28: 22 | F28: 0.88 | H28: 2.747252747 | I28: =H28/(SUM(H26:H29)) -> 0.2632166672 | J28: 0.5344242494 | K28: 0.009501590049 | L28: 0.2632166672 | M28: 0.008683668969 | N28: 0.8158261756
A29: USA | B29: G | C29: 4 | D29: 3 | E29: 3 | F29: 0.12 | H29: 0.3333333333 | I29: =H29/(SUM(H26:H29)) -> 0.03193695562 | J29: 0.06484347559 | K29: 0.001152859593 | L29: 0.01140951301 | M29: 0.03193695562 | N29: 0.1093428038
A30: Algeria | B30: H | C30: 1 | D30: 4 | E30: 2 | F30: 0.08 | H30: 0.25 | I30: =H30/(SUM(H30:H33)) -> 0.02696476819 | J30: =IF(J$1=$C30, $I30, VLOOKUP(J$1, $C$30:$I$33, 7, FALSE)*($I30/(SUM($I$30:$I$33)-VLOOKUP(J$1, $C$30:$I$33, 7, FALSE)))) -> 0.02696476819 | K30: 0.04917736379 | L30: 0.009955451711 | M30: 0.001645819442 | N30: 0.08774340313
A31: Belgium | B31: H | C31: 2 | D31: 0.167 | E31: 23 | F31: 0.92 | H31: 5.988023952 | I31: =H31/(SUM(H30:H33)) -> 0.6458627111 | J31: 0.01789815797 | K31: 0.6458627111 | L31: 0.2384539332 | M31: 0.03942082495 | N31: 0.9416356272
A32: Russia | B32: H | C32: 3 | D32: 0.4 | E32: 13 | F32: 0.52 | H32: 2.5 | I32: =H32/(SUM(H30:H33)) -> 0.2696476819 | J32: 0.007472480952 | K32: 0.4917736379 | L32: 0.2696476819 | M32: 0.01645819442 | N32: 0.7853519952
A33: South Korea | B33: H | C33: 4 | D33: 1.875 | E33: 12 | F33: 0.48 | H33: 0.5333333333 | I33: =H33/(SUM(H30:H33)) -> 0.0575248388 | J33: 0.00159412927 | K33: 0.1049117094 | L33: 0.02123829698 | M33: 0.0575248388 | N33: 0.1852689745

Sheet Simulations (hidden)
A1: TEAM | B1: Overall | I1: 1st simulation | P1: 2nd simulation | W1: 3rd simulation | AD1: 4th simulation | AK1: 5th simulation | AR1: 6th simulation | AY1: 7th simulation | BF1: 8th simulation | BM1: 9th simulation | BT1: 10th simulation
B2: 1st | C2: 2nd | D2: 3rd | E2: 4th | F2: QF | G2: KO | H2: GS | I2: 1st | J2: 2nd | K2: 3rd | L2: 4th | M2: QF | N2: KO | O2: GS | P2: 1st | Q2: 2nd | R2: 3rd | S2: 4th | T2: QF | U2: KO | V2: GS | W2: 1st | X2: 2nd | Y2: 3rd | Z2: 4th | AA2: QF | AB2: KO | AC2: GS | AD2: 1st | AE2: 2nd | AF2: 3rd | AG2: 4th | AH2: QF | AI2: KO | AJ2: GS | AK2: 1st | AL2: 2nd | AM2: 3rd | AN2: 4th | AO2: QF | AP2: KO | AQ2: GS | AR2: 1st | AS2: 2nd | AT2: 3rd | AU2: 4th | AV2: QF | AW2: KO | AX2: GS | AY2: 1st | AZ2: 2nd | BA2: 3rd | BB2: 4th | BC2: QF | BD2: KO | BE2: GS | BF2: 1st | BG2: 2nd | BH2: 3rd | BI2: 4th | BJ2: QF | BK2: KO | BL2: GS | BM2: 1st | BN2: 2nd | BO2: 3rd | BP2: 4th | BQ2: QF | BR2: KO | BS2: GS | BT2: 1st | BU2: 2nd | BV2: 3rd | BW2: 4th | BX2: QF | BY2: KO | BZ2: GS
A3: Algeria | B3: =I3+P3+W3+AD3+AK3+AR3+AY3+BF3+BM3+BT3 -> 0 | C3: =J3+Q3+X3+AE3+AL3+AS3+AZ3+BG3+BN3+BU3 -> 0 | D3: 1 | E3: 1 | F3: 4 | G3: 110 | H3: 884 | I3: 0 | J3: 0 | K3: 0 | L3: 0 | M3: 0 | N3: 9 | O3: 91 | P3: 0 | Q3: 0 | R3: 0 | S3: 0 | T3: 0 | U3: 10 | V3: 90 | W3: 0 | X3: 0 | Y3: 0 | Z3: 0 | AA3: 0 | AB3: 11 | AC3: 89 | AD3: 0 | AE3: 0 | AF3: 0 | AG3: 0 | AH3: 0 | AI3: 8 | AJ3: 92 | AK3: 0 | AL3: 0 | AM3: 0 | AN3: 0 | AO3: 1 | AP3: 10 | AQ3: 89 | AR3: 0 | AS3: 0 | AT3: 1 | AU3: 0 | AV3: 1 | AW3: 10 | AX3: 88 | AY3: 0 | AZ3: 0 | BA3: 0 | BB3: 0 | BC3: 1 | BD3: 11 | BE3: 88 | BF3: 0 | BG3: 0 | BH3: 0 | BI3: 1 | BJ3: 1 | BK3: 13 | BL3: 85 | BM3: 0 | BN3: 0 | BO3: 0 | BP3: 0 | BQ3: 0 | BR3: 14 | BS3: 86 | BT3: 0 | BU3: 0 | BV3: 0 | BW3: 0 | BX3: 0 | BY3: 14 | BZ3: 86
A4: Argentina | B4: =I4+P4+W4+AD4+AK4+AR4+AY4+BF4+BM4+BT4 -> 217 | C4: 146 | D4: 154 | E4: 51 | F4: 245 | G4: 178 | H4: 9 | I4: 23 | J4: 17 | K4: 17 | L4: 6 | M4: 24 | N4: 12 | O4: 1 | P4: 18 | Q4: 16 | R4: 13 | S4: 6 | T4: 26 | U4: 21 | V4: 0 | W4: 27 | X4: 16 | Y4: 10 | Z4: 7 | AA4: 21 | AB4: 19 | AC4: 0 | AD4: 18 | AE4: 17 | AF4: 14 | AG4: 6 | AH4: 25 | AI4: 18 | AJ4: 2 | AK4: 29 | AL4: 10 | AM4: 14 | AN4: 3 | AO4: 28 | AP4: 15 | AQ4: 1 | AR4: 23 | AS4: 20 | AT4: 15 | AU4: 4 | AV4: 19 | AW4: 19 | AX4: 0 | AY4: 20 | AZ4: 16 | BA4: 18 | BB4: 5 | BC4: 19 | BD4: 20 | BE4: 2 | BF4: 22 | BG4: 9 | BH4: 18 | BI4: 2 | BJ4: 37 | BK4: 12 | BL4: 0 | BM4: 17 | BN4: 13 | BO4: 15 | BP4: 4 | BQ4: 28 | BR4: 21 | BS4: 2 | BT4: 20 | BU4: 12 | BV4: 20 | BW4: 8 | BX4: 18 | BY4: 21 | BZ4: 1
A5: Australia | B5: 0 | C5: 0 | D5: 0 | E5: 0 | F5: 3 | G5: 28 | H5: 969 | I5: 0 | J5: 0 | K5: 0 | L5: 0 | M5: 0 | N5: 4 | O5: 96 | P5: 0 | Q5: 0 | R5: 0 | S5: 0 | T5: 0 | U5: 1 | V5: 99 | W5: 0 | X5: 0 | Y5: 0 | Z5: 0 | AA5: 2 | AB5: 3 | AC5: 95 | AD5: 0 | AE5: 0 | AF5: 0 | AG5: 0 | AH5: 0 | AI5: 4 | AJ5: 96 | AK5: 0 | AL5: 0 | AM5: 0 | AN5: 0 | AO5: 0 | AP5: 2 | AQ5: 98 | AR5: 0 | AS5: 0 | AT5: 0 | AU5: 0 | AV5: 1 | AW5: 4 | AX5: 95 | AY5: 0 | AZ5: 0 | BA5: 0 | BB5: 0 | BC5: 0 | BD5: 4 | BE5: 96 | BF5: 0 | BG5: 0 | BH5: 0 | BI5: 0 | BJ5: 0 | BK5: 2 | BL5: 98 | BM5: 0 | BN5: 0 | BO5: 0 | BP5: 0 | BQ5: 0 | BR5: 1 | BS5: 99 | BT5: 0 | BU5: 0 | BV5: 0 | BW5: 0 | BX5: 0 | BY5: 3 | BZ5: 97
A6: Belgium | B6: 35 | C6: 58 | D6: 53 | E6: 60 | F6: 274 | G6: 405 | H6: 115 | I6: 2 | J6: 6 | K6: 4 | L6: 8 | M6: 32 | N6: 40 | O6: 8 | P6: 5 | Q6: 11 | R6: 7 | S6: 7 | T6: 19 | U6: 39 | V6: 12 | W6: 2 | X6: 3 | Y6: 5 | Z6: 7 | AA6: 30 | AB6: 43 | AC6: 10 | AD6: 8 | AE6: 4 | AF6: 2 | AG6: 7 | AH6: 31 | AI6: 35 | AJ6: 13 | AK6: 5 | AL6: 5 | AM6: 7 | AN6: 2 | AO6: 28 | AP6: 42 | AQ6: 11 | AR6: 0 | AS6: 4 | AT6: 6 | AU6: 6 | AV6: 34 | AW6: 38 | AX6: 12 | AY6: 4 | AZ6: 5 | BA6: 3 | BB6: 5 | BC6: 26 | BD6: 44 | BE6: 13 | BF6: 2 | BG6: 6 | BH6: 6 | BI6: 10 | BJ6: 24 | BK6: 40 | BL6: 12 | BM6: 3 | BN6: 5 | BO6: 9 | BP6: 1 | BQ6: 23 | BR6: 45 | BS6: 14 | BT6: 4 | BU6: 9 | BV6: 4 | BW6: 7 | BX6: 27 | BY6: 39 | BZ6: 10
A7: Bosnia & Herzegovina | B7: 0 | C7: 4 | D7: 7 | E7: 37 | F7: 151 | G7: 317 | H7: 484 | I7: 0 | J7: 0 | K7: 0 | L7: 6 | M7: 14 | N7: 28 | O7: 52 | P7: 0 | Q7: 0 | R7: 1 | S7: 3 | T7: 17 | U7: 34 | V7: 45 | W7: 0 | X7: 2 | Y7: 0 | Z7: 5 | AA7: 13 | AB7: 34 | AC7: 46 | AD7: 0 | AE7: 1 | AF7: 0 | AG7: 5 | AH7: 16 | AI7: 31 | AJ7: 47 | AK7: 0 | AL7: 0 | AM7: 1 | AN7: 4 | AO7: 17 | AP7: 34 | AQ7: 44 | AR7: 0 | AS7: 0 | AT7: 1 | AU7: 1 | AV7: 17 | AW7: 27 | AX7: 54 | AY7: 0 | AZ7: 0 | BA7: 0 | BB7: 5 | BC7: 14 | BD7: 37 | BE7: 44 | BF7: 0 | BG7: 0 | BH7: 2 | BI7: 1 | BJ7: 14 | BK7: 35 | BL7: 48 | BM7: 0 | BN7: 0 | BO7: 1 | BP7: 3 | BQ7: 16 | BR7: 29 | BS7: 51 | BT7: 0 | BU7: 1 | BV7: 1 | BW7: 4 | BX7: 13 | BY7: 28 | BZ7: 53
A8: Brazil | B8: 249 | C8: 128 | D8: 110 | E8: 57 | F8: 172 | G8: 274 | H8: 10 | I8: 27 | J8: 17 | K8: 5 | L8: 3 | M8: 17 | N8: 31 | O8: 0 | P8: 26 | Q8: 10 | R8: 11 | S8: 5 | T8: 21 | U8: 26 | V8: 1 | W8: 28 | X8: 7 | Y8: 14 | Z8: 6 | AA8: 15 | AB8: 29 | AC8: 1 | AD8: 26 | AE8: 15 | AF8: 11 | AG8: 6 | AH8: 13 | AI8: 28 | AJ8: 1 | AK8: 22 | AL8: 14 | AM8: 10 | AN8: 1 | AO8: 24 | AP8: 26 | AQ8: 3 | AR8: 25 | AS8: 13 | AT8: 13 | AU8: 4 | AV8: 16 | AW8: 29 | AX8: 0 | AY8: 19 | AZ8: 12 | BA8: 15 | BB8: 5 | BC8: 19 | BD8: 28 | BE8: 2 | BF8: 22 | BG8: 22 | BH8: 9 | BI8: 12 | BJ8: 12 | BK8: 23 | BL8: 0 | BM8: 30 | BN8: 12 | BO8: 9 | BP8: 6 | BQ8: 16 | BR8: 25 | BS8: 2 | BT8: 24 | BU8: 6 | BV8: 13 | BW8: 9 | BX8: 19 | BY8: 29 | BZ8: 0
A9: Cameroon | B9: 0 | C9: 0 | D9: 1 | E9: 2 | F9: 21 | G9: 161 | H9: 815 | I9: 0 | J9: 0 | K9: 1 | L9: 0 | M9: 2 | N9: 18 | O9: 79 | P9: 0 | Q9: 0 | R9: 0 | S9: 0 | T9: 3 | U9: 22 | V9: 75 | W9: 0 | X9: 0 | Y9: 0 | Z9: 0 | AA9: 2 | AB9: 13 | AC9: 85 | AD9: 0 | AE9: 0 | AF9: 0 | AG9: 0 | AH9: 0 | AI9: 13 | AJ9: 87 | AK9: 0 | AL9: 0 | AM9: 0 | AN9: 1 | AO9: 3 | AP9: 16 | AQ9: 80 | AR9: 0 | AS9: 0 | AT9: 0 | AU9: 1 | AV9: 2 | AW9: 24 | AX9: 73 | AY9: 0 | AZ9: 0 | BA9: 0 | BB9: 0 | BC9: 2 | BD9: 14 | BE9: 84 | BF9: 0 | BG9: 0 | BH9: 0 | BI9: 0 | BJ9: 4 | BK9: 13 | BL9: 83 | BM9: 0 | BN9: 0 | BO9: 0 | BP9: 0 | BQ9: 0 | BR9: 11 | BS9: 89 | BT9: 0 | BU9: 0 | BV9: 0 | BW9: 0 | BX9: 3 | BY9: 17 | BZ9: 80
A10: Chile | B10: 12 | C10: 17 | D10: 23 | E10: 20 | F10: 83 | G10: 304 | H10: 541 | I10: 3 | J10: 2 | K10: 2 | L10: 1 | M10: 6 | N10: 39 | O10: 47 | P10: 0 | Q10: 2 | R10: 1 | S10: 5 | T10: 7 | U10: 28 | V10: 57 | W10: 1 | X10: 1 | Y10: 4 | Z10: 1 | AA10: 6 | AB10: 35 | AC10: 52 | AD10: 1 | AE10: 4 | AF10: 3 | AG10: 2 | AH10: 10 | AI10: 28 | AJ10: 52 | AK10: 2 | AL10: 1 | AM10: 3 | AN10: 2 | AO10: 8 | AP10: 24 | AQ10: 60 | AR10: 2 | AS10: 0 | AT10: 4 | AU10: 1 | AV10: 8 | AW10: 31 | AX10: 54 | AY10: 3 | AZ10: 2 | BA10: 4 | BB10: 2 | BC10: 17 | BD10: 26 | BE10: 46 | BF10: 0 | BG10: 2 | BH10: 0 | BI10: 3 | BJ10: 9 | BK10: 30 | BL10: 56 | BM10: 0 | BN10: 3 | BO10: 1 | BP10: 3 | BQ10: 5 | BR10: 30 | BS10: 58 | BT10: 0 | BU10: 0 | BV10: 1 | BW10: 0 | BX10: 7 | BY10: 33 | BZ10: 59
A11: Colombia | B11: 21 | C11: 48 | D11: 35 | E11: 59 | F11: 261 | G11: 388 | H11: 188 | I11: 0 | J11: 3 | K11: 2 | L11: 5 | M11: 26 | N11: 45 | O11: 19 | P11: 4 | Q11: 5 | R11: 6 | S11: 5 | T11: 23 | U11: 36 | V11: 21 | W11: 2 | X11: 5 | Y11: 2 | Z11: 3 | AA11: 28 | AB11: 43 | AC11: 17 | AD11: 2 | AE11: 4 | AF11: 3 | AG11: 5 | AH11: 29 | AI11: 36 | AJ11: 21 | AK11: 2 | AL11: 7 | AM11: 5 | AN11: 9 | AO11: 24 | AP11: 37 | AQ11: 16 | AR11: 2 | AS11: 3 | AT11: 3 | AU11: 5 | AV11: 33 | AW11: 39 | AX11: 15 | AY11: 4 | AZ11: 6 | BA11: 0 | BB11: 10 | BC11: 21 | BD11: 40 | BE11: 19 | BF11: 0 | BG11: 5 | BH11: 4 | BI11: 7 | BJ11: 21 | BK11: 40 | BL11: 23 | BM11: 2 | BN11: 6 | BO11: 3 | BP11: 6 | BQ11: 29 | BR11: 37 | BS11: 17 | BT11: 3 | BU11: 4 | BV11: 7 | BW11: 4 | BX11: 27 | BY11: 35 | BZ11: 20
A12: Costa Rica | B12: 0 | C12: 0 | D12: 0 | E12: 0 | F12: 2 | G12: 29 | H12: 969 | I12: 0 | J12: 0 | K12: 0 | L12: 0 | M12: 0 | N12: 4 | O12: 96 | P12: 0 | Q12: 0 | R12: 0 | S12: 0 | T12: 0 | U12: 2 | V12: 98 | W12: 0 | X12: 0 | Y12: 0 | Z12: 0 | AA12: 0 | AB12: 1 | AC12: 99 | AD12: 0 | AE12: 0 | AF12: 0 | AG12: 0 | AH12: 0 | AI12: 4 | AJ12: 96 | AK12: 0 | AL12: 0 | AM12: 0 | AN12: 0 | AO12: 0 | AP12: 4 | AQ12: 96 | AR12: 0 | AS12: 0 | AT12: 0 | AU12: 0 | AV12: 0 | AW12: 3 | AX12: 97 | AY12: 0 | AZ12: 0 | BA12: 0 | BB12: 0 | BC12: 0 | BD12: 1 | BE12: 99 | BF12: 0 | BG12: 0 | BH12: 0 | BI12: 0 | BJ12: 1 | BK12: 2 | BL12: 97 | BM12: 0 | BN12: 0 | BO12: 0 | BP12: 0 | BQ12: 0 | BR12: 4 | BS12: 96 | BT12: 0 | BU12: 0 | BV12: 0 | BW12: 0 | BX12: 1 | BY12: 4 | BZ12: 95
A13: Croatia | B13: 0 | C13: 2 | D13: 8 | E13: 20 | F13: 42 | G13: 316 | H13: 612 | I13: 0 | J13: 0 | K13: 1 | L13: 1 | M13: 5 | N13: 27 | O13: 66 | P13: 0 | Q13: 1 | R13: 2 | S13: 0 | T13: 4 | U13: 33 | V13: 60 | W13: 0 | X13: 1 | Y13: 0 | Z13: 5 | AA13: 5 | AB13: 29 | AC13: 60 | AD13: 0 | AE13: 0 | AF13: 0 | AG13: 2 | AH13: 5 | AI13: 34 | AJ13: 59 | AK13: 0 | AL13: 0 | AM13: 1 | AN13: 1 | AO13: 6 | AP13: 32 | AQ13: 60 | AR13: 0 | AS13: 0 | AT13: 1 | AU13: 3 | AV13: 3 | AW13: 21 | AX13: 72 | AY13: 0 | AZ13: 0 | BA13: 1 | BB13: 2 | BC13: 4 | BD13: 38 | BE13: 55 | BF13: 0 | BG13: 0 | BH13: 0 | BI13: 2 | BJ13: 2 | BK13: 40 | BL13: 56 | BM13: 0 | BN13: 0 | BO13: 1 | BP13: 2 | BQ13: 5 | BR13: 32 | BS13: 60 | BT13: 0 | BU13: 0 | BV13: 1 | BW13: 2 | BX13: 3 | BY13: 30 | BZ13: 64
A14: Ecuador | B14: 1 | C14: 9 | D14: 7 | E14: 25 | F14: 120 | G14: 368 | H14: 470 | I14: 0 | J14: 1 | K14: 1 | L14: 1 | M14: 9 | N14: 33 | O14: 55 | P14: 0 | Q14: 0 | R14: 0 | S14: 0 | T14: 11 | U14: 35 | V14: 54 | W14: 0 | X14: 1 | Y14: 0 | Z14: 5 | AA14: 10 | AB14: 41 | AC14: 43 | AD14: 0 | AE14: 0 | AF14: 0 | AG14: 4 | AH14: 17 | AI14: 42 | AJ14: 37 | AK14: 1 | AL14: 3 | AM14: 2 | AN14: 2 | AO14: 10 | AP14: 40 | AQ14: 42 | AR14: 0 | AS14: 0 | AT14: 1 | AU14: 4 | AV14: 14 | AW14: 32 | AX14: 49 | AY14: 0 | AZ14: 0 | BA14: 0 | BB14: 2 | BC14: 13 | BD14: 39 | BE14: 46 | BF14: 0 | BG14: 2 | BH14: 0 | BI14: 1 | BJ14: 13 | BK14: 41 | BL14: 43 | BM14: 0 | BN14: 1 | BO14: 1 | BP14: 3 | BQ14: 11 | BR14: 37 | BS14: 47 | BT14: 0 | BU14: 1 | BV14: 2 | BW14: 3 | BX14: 12 | BY14: 28 | BZ14: 54
A15: England | B15: 13 | C15: 34 | D15: 34 | E15: 42 | F15: 224 | G15: 240 | H15: 413 | I15: 1 | J15: 3 | K15: 3 | L15: 3 | M15: 27 | N15: 23 | O15: 40 | P15: 0 | Q15: 2 | R15: 3 | S15: 9 | T15: 23 | U15: 27 | V15: 36 | W15: 1 | X15: 4 | Y15: 1 | Z15: 1 | AA15: 16 | AB15: 26 | AC15: 51 | AD15: 1 | AE15: 4 | AF15: 5 | AG15: 4 | AH15: 20 | AI15: 22 | AJ15: 44 | AK15: 2 | AL15: 4 | AM15: 3 | AN15: 4 | AO15: 23 | AP15: 27 | AQ15: 37 | AR15: 2 | AS15: 3 | AT15: 5 | AU15: 6 | AV15: 22 | AW15: 22 | AX15: 40 | AY15: 0 | AZ15: 5 | BA15: 5 | BB15: 3 | BC15: 24 | BD15: 23 | BE15: 40 | BF15: 4 | BG15: 0 | BH15: 4 | BI15: 6 | BJ15: 35 | BK15: 16 | BL15: 35 | BM15: 0 | BN15: 4 | BO15: 3 | BP15: 3 | BQ15: 15 | BR15: 33 | BS15: 42 | BT15: 2 | BU15: 5 | BV15: 2 | BW15: 3 | BX15: 19 | BY15: 21 | BZ15: 48
A16: France | B16: 34 | C16: 59 | D16: 63 | E16: 75 | F16: 270 | G16: 341 | H16: 158 | I16: 3 | J16: 3 | K16: 6 | L16: 9 | M16: 34 | N16: 31 | O16: 14 | P16: 2 | Q16: 5 | R16: 5 | S16: 9 | T16: 26 | U16: 36 | V16: 17 | W16: 2 | X16: 10 | Y16: 8 | Z16: 3 | AA16: 26 | AB16: 34 | AC16: 17 | AD16: 2 | AE16: 4 | AF16: 10 | AG16: 2 | AH16: 29 | AI16: 36 | AJ16: 17 | AK16: 3 | AL16: 7 | AM16: 9 | AN16: 9 | AO16: 18 | AP16: 38 | AQ16: 16 | AR16: 3 | AS16: 7 | AT16: 6 | AU16: 7 | AV16: 27 | AW16: 38 | AX16: 12 | AY16: 8 | AZ16: 8 | BA16: 3 | BB16: 13 | BC16: 25 | BD16: 31 | BE16: 12 | BF16: 5 | BG16: 6 | BH16: 3 | BI16: 11 | BJ16: 29 | BK16: 28 | BL16: 18 | BM16: 4 | BN16: 3 | BO16: 8 | BP16: 7 | BQ16: 25 | BR16: 36 | BS16: 17 | BT16: 2 | BU16: 6 | BV16: 5 | BW16: 5 | BX16: 31 | BY16: 33 | BZ16: 18
A17: Germany | B17: 170 | C17: 147 | D17: 138 | E17: 88 | F17: 197 | G17: 210 | H17: 50 | I17: 17 | J17: 11 | K17: 20 | L17: 12 | M17: 17 | N17: 21 | O17: 2 | P17: 16 | Q17: 13 | R17: 17 | S17: 9 | T17: 18 | U17: 22 | V17: 5 | W17: 16 | X17: 20 | Y17: 10 | Z17: 8 | AA17: 24 | AB17: 19 | AC17: 3 | AD17: 14 | AE17: 15 | AF17: 18 | AG17: 6 | AH17: 17 | AI17: 23 | AJ17: 7 | AK17: 11 | AL17: 17 | AM17: 14 | AN17: 9 | AO17: 21 | AP17: 21 | AQ17: 7 | AR17: 21 | AS17: 14 | AT17: 12 | AU17: 10 | AV17: 18 | AW17: 23 | AX17: 2 | AY17: 17 | AZ17: 13 | BA17: 12 | BB17: 5 | BC17: 23 | BD17: 21 | BE17: 9 | BF17: 20 | BG17: 16 | BH17: 9 | BI17: 9 | BJ17: 20 | BK17: 20 | BL17: 6 | BM17: 20 | BN17: 13 | BO17: 14 | BP17: 9 | BQ17: 19 | BR17: 17 | BS17: 8 | BT17: 18 | BU17: 15 | BV17: 12 | BW17: 11 | BX17: 20 | BY17: 23 | BZ17: 1
A18: Ghana | B18: 1 | C18: 1 | D18: 3 | E18: 5 | F18: 46 | G18: 141 | H18: 803 | I18: 0 | J18: 0 | K18: 0 | L18: 0 | M18: 3 | N18: 16 | O18: 81 | P18: 0 | Q18: 0 | R18: 1 | S18: 0 | T18: 4 | U18: 13 | V18: 82 | W18: 0 | X18: 0 | Y18: 0 | Z18: 0 | AA18: 5 | AB18: 6 | AC18: 89 | AD18: 1 | AE18: 0 | AF18: 1 | AG18: 0 | AH18: 3 | AI18: 16 | AJ18: 79 | AK18: 0 | AL18: 1 | AM18: 0 | AN18: 1 | AO18: 6 | AP18: 20 | AQ18: 72 | AR18: 0 | AS18: 0 | AT18: 0 | AU18: 0 | AV18: 3 | AW18: 16 | AX18: 81 | AY18: 0 | AZ18: 0 | BA18: 0 | BB18: 0 | BC18: 7 | BD18: 13 | BE18: 80 | BF18: 0 | BG18: 0 | BH18: 0 | BI18: 1 | BJ18: 2 | BK18: 14 | BL18: 83 | BM18: 0 | BN18: 0 | BO18: 0 | BP18: 1 | BQ18: 7 | BR18: 16 | BS18: 76 | BT18: 0 | BU18: 0 | BV18: 1 | BW18: 2 | BX18: 6 | BY18: 11 | BZ18: 80
A19: Greece | B19: 0 | C19: =J19+Q19+X19+AE19+AL19+AS19+AZ19+BG19+BN19+BU19 -> 1 | D19: =K19+R19+Y19+AF19+AM19+AT19+BA19+BH19+BO19+BV19 -> 0 | E19: =L19+S19+Z19+AG19+AN19+AU19+BB19+BI19+BP19+BW19 -> 8 | F19: =M19+T19+AA19+AH19+AO19+AV19+BC19+BJ19+BQ19+BX19 -> 63 | G19: =N19+U19+AB19+AI19+AP19+AW19+BD19+BK19+BR19+BY19 -> 237 | H19: =O19+V19+AC19+AJ19+AQ19+AX19+BE19+BL19+BS19+BZ19 -> 691 | I19: 0 | J19: 0 | K19: 0 | L19: 1 | M19: 8 | N19: 24 | O19: 67 | P19: 0 | Q19: 0 | R19: 0 | S19: 3 | T19: 7 | U19: 31 | V19: 59 | W19: 0 | X19: 0 | Y19: 0 | Z19: 0 | AA19: 5 | AB19: 22 | AC19: 73 | AD19: 0 | AE19: 0 | AF19: 0 | AG19: 0 | AH19: 7 | AI19: 29 | AJ19: 64 | AK19: 0 | AL19: 0 | AM19: 0 | AN19: 2 | AO19: 10 | AP19: 18 | AQ19: 70 | AR19: 0 | AS19: 0 | AT19: 0 | AU19: 0 | AV19: 5 | AW19: 28 | AX19: 67 | AY19: 0 | AZ19: 0 | BA19: 0 | BB19: 0 | BC19: 6 | BD19: 26 | BE19: 68 | BF19: 0 | BG19: 0 | BH19: 0 | BI19: 0 | BJ19: 3 | BK19: 24 | BL19: 73 | BM19: 0 | BN19: 0 | BO19: 0 | BP19: 2 | BQ19: 6 | BR19: 16 | BS19: 76 | BT19: 0 | BU19: 1 | BV19: 0 | BW19: 0 | BX19: 6 | BY19: 19 | BZ19: 74
A20: Honduras | B20: 0 | C20: 0 | D20: 0 | E20: 0 | F20: 5 | G20: 50 | H20: 945 | I20: 0 | J20: 0 | K20: 0 | L20: 0 | M20: 0 | N20: 8 | O20: 92 | P20: 0 | Q20: 0 | R20: 0 | S20: 0 | T20: 2 | U20: 6 | V20: 92 | W20: 0 | X20: 0 | Y20: 0 | Z20: 0 | AA20: 1 | AB20: 4 | AC20: 95 | AD20: 0 | AE20: 0 | AF20: 0 | AG20: 0 | AH20: 1 | AI20: 6 | AJ20: 93 | AK20: 0 | AL20: 0 | AM20: 0 | AN20: 0 | AO20: 0 | AP20: 4 | AQ20: 96 | AR20: 0 | AS20: 0 | AT20: 0 | AU20: 0 | AV20: 0 | AW20: 9 | AX20: 91 | AY20: 0 | AZ20: 0 | BA20: 0 | BB20: 0 | BC20: 0 | BD20: 4 | BE20: 96 | BF20: 0 | BG20: 0 | BH20: 0 | BI20: 0 | BJ20: 0 | BK20: 2 | BL20: 98 | BM20: 0 | BN20: 0 | BO20: 0 | BP20: 0 | BQ20: 0 | BR20: 2 | BS20: 98 | BT20: 0 | BU20: 0 | BV20: 0 | BW20: 0 | BX20: 1 | BY20: 5 | BZ20: 94
A21: Iran | B21: 0 | C21: 0 | D21: 0 | E21: 0 | F21: 14 | G21: 100 | H21: 886 | I21: 0 | J21: 0 | K21: 0 | L21: 0 | M21: 2 | N21: 12 | O21: 86 | P21: 0 | Q21: 0 | R21: 0 | S21: 0 | T21: 3 | U21: 6 | V21: 91 | W21: 0 | X21: 0 | Y21: 0 | Z21: 0 | AA21: 0 | AB21: 5 | AC21: 95 | AD21: 0 | AE21: 0 | AF21: 0 | AG21: 0 | AH21: 1 | AI21: 12 | AJ21: 87 | AK21: 0 | AL21: 0 | AM21: 0 | AN21: 0 | AO21: 2 | AP21: 13 | AQ21: 85 | AR21: 0 | AS21: 0 | AT21: 0 | AU21: 0 | AV21: 1 | AW21: 9 | AX21: 90 | AY21: 0 | AZ21: 0 | BA21: 0 | BB21: 0 | BC21: 0 | BD21: 14 | BE21: 86 | BF21: 0 | BG21: 0 | BH21: 0 | BI21: 0 | BJ21: 0 | BK21: 5 | BL21: 95 | BM21: 0 | BN21: 0 | BO21: 0 | BP21: 0 | BQ21: 4 | BR21: 11 | BS21: 85 | BT21: 0 | BU21: 0 | BV21: 0 | BW21: 0 | BX21: 1 | BY21: 13 | BZ21: 86
A22: Italy | B22: 27 | C22: 62 | D22: 36 | E22: 56 | F22: 295 | G22: 242 | H22: 282 | I22: 5 | J22: 5 | K22: 5 | L22: 5 | M22: 27 | N22: 22 | O22: 31 | P22: 0 | Q22: 5 | R22: 5 | S22: 4 | T22: 31 | U22: 26 | V22: 29 | W22: 6 | X22: 5 | Y22: 2 | Z22: 6 | AA22: 40 | AB22: 25 | AC22: 16 | AD22: 5 | AE22: 4 | AF22: 4 | AG22: 6 | AH22: 29 | AI22: 25 | AJ22: 27 | AK22: 0 | AL22: 6 | AM22: 2 | AN22: 12 | AO22: 24 | AP22: 24 | AQ22: 32 | AR22: 1 | AS22: 9 | AT22: 3 | AU22: 4 | AV22: 25 | AW22: 28 | AX22: 30 | AY22: 3 | AZ22: 6 | BA22: 3 | BB22: 7 | BC22: 28 | BD22: 24 | BE22: 29 | BF22: 4 | BG22: 6 | BH22: 5 | BI22: 3 | BJ22: 34 | BK22: 20 | BL22: 28 | BM22: 1 | BN22: 5 | BO22: 4 | BP22: 5 | BQ22: 30 | BR22: 24 | BS22: 31 | BT22: 2 | BU22: 11 | BV22: 3 | BW22: 4 | BX22: 27 | BY22: 24 | BZ22: 29
A23: Ivory Coast | B23: 0 | C23: 7 | D23: 4 | E23: 17 | F23: 112 | G23: 315 | H23: 545 | I23: 0 | J23: 0 | K23: 1 | L23: 2 | M23: 12 | N23: 29 | O23: 56 | P23: 0 | Q23: 0 | R23: 0 | S23: 3 | T23: 8 | U23: 31 | V23: 58 | W23: 0 | X23: 2 | Y23: 1 | Z23: 2 | AA23: 13 | AB23: 28 | AC23: 54 | AD23: 0 | AE23: 0 | AF23: 1 | AG23: 3 | AH23: 9 | AI23: 28 | AJ23: 59 | AK23: 0 | AL23: 0 | AM23: 0 | AN23: 1 | AO23: 9 | AP23: 33 | AQ23: 57 | AR23: 0 | AS23: 1 | AT23: 0 | AU23: 3 | AV23: 14 | AW23: 19 | AX23: 63 | AY23: 0 | AZ23: 0 | BA23: 1 | BB23: 0 | BC23: 9 | BD23: 39 | BE23: 51 | BF23: 0 | BG23: 1 | BH23: 0 | BI23: 0 | BJ23: 9 | BK23: 44 | BL23: 46 | BM23: 0 | BN23: 0 | BO23: 0 | BP23: 0 | BQ23: 23 | BR23: 26 | BS23: 51 | BT23: 0 | BU23: 3 | BV23: 0 | BW23: 3 | BX23: 6 | BY23: 38 | BZ23: 50
A24: Japan | B24: 1 | C24: 4 | D24: 5 | E24: 11 | F24: 107 | G24: 296 | H24: 576 | I24: 0 | J24: 0 | K24: 0 | L24: 1 | M24: 14 | N24: 27 | O24: 58 | P24: 0 | Q24: 1 | R24: 0 | S24: 1 | T24: 10 | U24: 26 | V24: 62 | W24: 0 | X24: 0 | Y24: 2 | Z24: 2 | AA24: 8 | AB24: 32 | AC24: 56 | AD24: 0 | AE24: 1 | AF24: 1 | AG24: 1 | AH24: 10 | AI24: 31 | AJ24: 56 | AK24: 0 | AL24: 1 | AM24: 0 | AN24: 1 | AO24: 8 | AP24: 33 | AQ24: 57 | AR24: 0 | AS24: 1 | AT24: 1 | AU24: 1 | AV24: 9 | AW24: 33 | AX24: 55 | AY24: 0 | AZ24: 0 | BA24: 0 | BB24: 1 | BC24: 13 | BD24: 24 | BE24: 62 | BF24: 0 | BG24: 0 | BH24: 1 | BI24: 0 | BJ24: 8 | BK24: 33 | BL24: 58 | BM24: 0 | BN24: 0 | BO24: 0 | BP24: 2 | BQ24: 11 | BR24: 31 | BS24: 56 | BT24: 1 | BU24: 0 | BV24: 0 | BW24: 1 | BX24: 16 | BY24: 26 | BZ24: 56
A25: Mexico | B25: 1 | C25: 5 | D25: 12 | E25: 21 | F25: 62 | G25: 336 | H25: 563 | I25: 0 | J25: 1 | K25: 1 | L25: 4 | M25: 6 | N25: 33 | O25: 55 | P25: 0 | Q25: 1 | R25: 1 | S25: 1 | T25: 6 | U25: 27 | V25: 64 | W25: 0 | X25: 0 | Y25: 2 | Z25: 0 | AA25: 6 | AB25: 38 | AC25: 54 | AD25: 0 | AE25: 0 | AF25: 2 | AG25: 3 | AH25: 9 | AI25: 33 | AJ25: 53 | AK25: 0 | AL25: 0 | AM25: 1 | AN25: 2 | AO25: 7 | AP25: 33 | AQ25: 57 | AR25: 0 | AS25: 0 | AT25: 2 | AU25: 2 | AV25: 5 | AW25: 36 | AX25: 55 | AY25: 0 | AZ25: 2 | BA25: 1 | BB25: 2 | BC25: 5 | BD25: 31 | BE25: 59 | BF25: 0 | BG25: 0 | BH25: 1 | BI25: 1 | BJ25: 4 | BK25: 33 | BL25: 61 | BM25: 1 | BN25: 1 | BO25: 0 | BP25: 3 | BQ25: 9 | BR25: 37 | BS25: 49 | BT25: 0 | BU25: 0 | BV25: 1 | BW25: 3 | BX25: 5 | BY25: 35 | BZ25: 56
A26: Netherlands | B26: 23 | C26: 37 | D26: 44 | E26: 57 | F26: 110 | G26: 360 | H26: 369 | I26: 2 | J26: 6 | K26: 6 | L26: 4 | M26: 11 | N26: 28 | O26: 43 | P26: 2 | Q26: 2 | R26: 3 | S26: 8 | T26: 16 | U26: 36 | V26: 33 | W26: 2 | X26: 0 | Y26: 3 | Z26: 7 | AA26: 10 | AB26: 35 | AC26: 43 | AD26: 1 | AE26: 5 | AF26: 3 | AG26: 3 | AH26: 8 | AI26: 39 | AJ26: 41 | AK26: 3 | AL26: 6 | AM26: 6 | AN26: 7 | AO26: 16 | AP26: 39 | AQ26: 23 | AR26: 3 | AS26: 3 | AT26: 3 | AU26: 7 | AV26: 10 | AW26: 33 | AX26: 41 | AY26: 2 | AZ26: 4 | BA26: 5 | BB26: 5 | BC26: 6 | BD26: 33 | BE26: 45 | BF26: 3 | BG26: 1 | BH26: 4 | BI26: 6 | BJ26: 8 | BK26: 44 | BL26: 34 | BM26: 3 | BN26: 7 | BO26: 4 | BP26: 4 | BQ26: 11 | BR26: 38 | BS26: 33 | BT26: 2 | BU26: 3 | BV26: 7 | BW26: 6 | BX26: 14 | BY26: 35 | BZ26: 33
A27: Nigeria | B27: 0 | C27: 1 | D27: 5 | E27: 20 | F27: 105 | G27: 248 | H27: 621 | I27: 0 | J27: 0 | K27: 2 | L27: 1 | M27: 8 | N27: 28 | O27: 61 | P27: 0 | Q27: 1 | R27: 0 | S27: 0 | T27: 11 | U27: 24 | V27: 64 | W27: 0 | X27: 0 | Y27: 1 | Z27: 4 | AA27: 11 | AB27: 25 | AC27: 59 | AD27: 0 | AE27: 0 | AF27: 0 | AG27: 4 | AH27: 11 | AI27: 21 | AJ27: 64 | AK27: 0 | AL27: 0 | AM27: 2 | AN27: 1 | AO27: 7 | AP27: 20 | AQ27: 70 | AR27: 0 | AS27: 0 | AT27: 0 | AU27: 2 | AV27: 15 | AW27: 27 | AX27: 56 | AY27: 0 | AZ27: 0 | BA27: 0 | BB27: 1 | BC27: 9 | BD27: 22 | BE27: 68 | BF27: 0 | BG27: 0 | BH27: 0 | BI27: 2 | BJ27: 11 | BK27: 30 | BL27: 57 | BM27: 0 | BN27: 0 | BO27: 0 | BP27: 4 | BQ27: 9 | BR27: 25 | BS27: 62 | BT27: 0 | BU27: 0 | BV27: 0 | BW27: 1 | BX27: 13 | BY27: 26 | BZ27: 60
A28: Portugal | B28: 25 | C28: 42 | D28: 47 | E28: 61 | F28: 230 | G28: 314 | H28: 281 | I28: 0 | J28: 3 | K28: 1 | L28: 13 | M28: 29 | N28: 25 | O28: 29 | P28: 6 | Q28: 1 | R28: 5 | S28: 4 | T28: 26 | U28: 34 | V28: 24 | W28: 2 | X28: 2 | Y28: 5 | Z28: 6 | AA28: 20 | AB28: 44 | AC28: 21 | AD28: 2 | AE28: 3 | AF28: 5 | AG28: 12 | AH28: 19 | AI28: 34 | AJ28: 25 | AK28: 4 | AL28: 3 | AM28: 1 | AN28: 5 | AO28: 16 | AP28: 30 | AQ28: 41 | AR28: 4 | AS28: 7 | AT28: 4 | AU28: 2 | AV28: 25 | AW28: 31 | AX28: 27 | AY28: 2 | AZ28: 5 | BA28: 7 | BB28: 5 | BC28: 24 | BD28: 28 | BE28: 29 | BF28: 1 | BG28: 7 | BH28: 9 | BI28: 5 | BJ28: 20 | BK28: 32 | BL28: 26 | BM28: 4 | BN28: 5 | BO28: 5 | BP28: 6 | BQ28: 25 | BR28: 27 | BS28: 28 | BT28: 0 | BU28: 6 | BV28: 5 | BW28: 3 | BX28: 26 | BY28: 29 | BZ28: 31
A29: Russia | B29: 7 | C29: 13 | D29: 19 | E29: 42 | F29: 140 | G29: 477 | H29: 302 | I29: 0 | J29: 1 | K29: 1 | L29: 1 | M29: 14 | N29: 57 | O29: 26 | P29: 3 | Q29: 6 | R29: 0 | S29: 2 | T29: 14 | U29: 46 | V29: 29 | W29: 0 | X29: 0 | Y29: 2 | Z29: 2 | AA29: 14 | AB29: 42 | AC29: 40 | AD29: 0 | AE29: 1 | AF29: 3 | AG29: 8 | AH29: 15 | AI29: 45 | AJ29: 28 | AK29: 1 | AL29: 1 | AM29: 4 | AN29: 2 | AO29: 15 | AP29: 45 | AQ29: 32 | AR29: 1 | AS29: 0 | AT29: 3 | AU29: 5 | AV29: 15 | AW29: 46 | AX29: 30 | AY29: 1 | AZ29: 0 | BA29: 0 | BB29: 8 | BC29: 14 | BD29: 53 | BE29: 24 | BF29: 1 | BG29: 2 | BH29: 1 | BI29: 4 | BJ29: 12 | BK29: 48 | BL29: 32 | BM29: 0 | BN29: 2 | BO29: 3 | BP29: 7 | BQ29: 14 | BR29: 45 | BS29: 29 | BT29: 0 | BU29: 0 | BV29: 2 | BW29: 3 | BX29: 13 | BY29: 50 | BZ29: 32
A30: South Korea | B30: 0 | C30: 0 | D30: 2 | E30: 6 | F30: 43 | G30: 250 | H30: 699 | I30: 0 | J30: 0 | K30: 0 | L30: 1 | M30: 1 | N30: 23 | O30: 75 | P30: 0 | Q30: 0 | R30: 0 | S30: 0 | T30: 4 | U30: 27 | V30: 69 | W30: 0 | X30: 0 | Y30: 1 | Z30: 3 | AA30: 7 | AB30: 28 | AC30: 61 | AD30: 0 | AE30: 0 | AF30: 0 | AG30: 0 | AH30: 3 | AI30: 30 | AJ30: 67 | AK30: 0 | AL30: 0 | AM30: 0 | AN30: 1 | AO30: 9 | AP30: 22 | AQ30: 68 | AR30: 0 | AS30: 0 | AT30: 1 | AU30: 1 | AV30: 1 | AW30: 27 | AX30: 70 | AY30: 0 | AZ30: 0 | BA30: 0 | BB30: 0 | BC30: 9 | BD30: 16 | BE30: 75 | BF30: 0 | BG30: 0 | BH30: 0 | BI30: 0 | BJ30: 5 | BK30: 24 | BL30: 71 | BM30: 0 | BN30: 0 | BO30: 0 | BP30: 0 | BQ30: 1 | BR30: 28 | BS30: 71 | BT30: 0 | BU30: 0 | BV30: 0 | BW30: 0 | BX30: 3 | BY30: 25 | BZ30: 72
A31: Spain | B31: 146 | C31: 126 | D31: 123 | E31: 79 | F31: 184 | G31: 221 | H31: 121 | I31: 16 | J31: 15 | K31: 12 | L31: 7 | M31: 16 | N31: 20 | O31: 14 | P31: 17 | Q31: 14 | R31: 14 | S31: 5 | T31: 12 | U31: 27 | V31: 11 | W31: 10 | X31: 16 | Y31: 19 | Z31: 9 | AA31: 18 | AB31: 18 | AC31: 10 | AD31: 18 | AE31: 13 | AF31: 9 | AG31: 6 | AH31: 22 | AI31: 21 | AJ31: 11 | AK31: 13 | AL31: 6 | AM31: 7 | AN31: 12 | AO31: 15 | AP31: 28 | AQ31: 19 | AR31: 13 | AS31: 13 | AT31: 14 | AU31: 11 | AV31: 17 | AW31: 22 | AX31: 10 | AY31: 12 | AZ31: 14 | BA31: 14 | BB31: 5 | BC31: 16 | BD31: 26 | BE31: 13 | BF31: 15 | BG31: 9 | BH31: 15 | BI31: 6 | BJ31: 28 | BK31: 15 | BL31: 12 | BM31: 12 | BN31: 14 | BO31: 12 | BP31: 9 | BQ31: 17 | BR31: 26 | BS31: 10 | BT31: 20 | BU31: 12 | BV31: 7 | BW31: 9 | BX31: 23 | BY31: 18 | BZ31: 11
A32: Switzerland | B32: 1 | C32: 7 | D32: 18 | E32: 28 | F32: 121 | G32: 398 | H32: 427 | I32: 1 | J32: 0 | K32: 0 | L32: 1 | M32: 11 | N32: 48 | O32: 39 | P32: 0 | Q32: 0 | R32: 2 | S32: 6 | T32: 17 | U32: 38 | V32: 37 | W32: 0 | X32: 1 | Y32: 1 | Z32: 3 | AA32: 12 | AB32: 38 | AC32: 45 | AD32: 0 | AE32: 0 | AF32: 1 | AG32: 2 | AH32: 10 | AI32: 34 | AJ32: 53 | AK32: 0 | AL32: 2 | AM32: 1 | AN32: 3 | AO32: 12 | AP32: 36 | AQ32: 46 | AR32: 0 | AS32: 1 | AT32: 0 | AU32: 3 | AV32: 9 | AW32: 39 | AX32: 48 | AY32: 0 | AZ32: 1 | BA32: 5 | BB32: 3 | BC32: 12 | BD32: 33 | BE32: 46 | BF32: 0 | BG32: 0 | BH32: 2 | BI32: 2 | BJ32: 8 | BK32: 47 | BL32: 41 | BM32: 0 | BN32: 1 | BO32: 3 | BP32: 3 | BQ32: 16 | BR32: 39 | BS32: 38 | BT32: 0 | BU32: 1 | BV32: 3 | BW32: 2 | BX32: 14 | BY32: 46 | BZ32: 34
A33: Uruguay | B33: 16 | C33: 41 | D33: 46 | E33: 49 | F33: 259 | G33: 253 | H33: 336 | I33: 0 | J33: 6 | K33: 9 | L33: 3 | M33: 23 | N33: 26 | O33: 33 | P33: 1 | Q33: 4 | R33: 3 | S33: 5 | T33: 29 | U33: 21 | V33: 37 | W33: 1 | X33: 4 | Y33: 7 | Z33: 5 | AA33: 26 | AB33: 23 | AC33: 34 | AD33: 1 | AE33: 5 | AF33: 4 | AG33: 3 | AH33: 29 | AI33: 25 | AJ33: 33 | AK33: 2 | AL33: 6 | AM33: 7 | AN33: 3 | AO33: 23 | AP33: 24 | AQ33: 35 | AR33: 0 | AS33: 1 | AT33: 1 | AU33: 7 | AV33: 30 | AW33: 28 | AX33: 33 | AY33: 5 | AZ33: 1 | BA33: 3 | BB33: 6 | BC33: 30 | BD33: 23 | BE33: 32 | BF33: 1 | BG33: 5 | BH33: 6 | BI33: 5 | BJ33: 22 | BK33: 21 | BL33: 40 | BM33: 3 | BN33: 5 | BO33: 4 | BP33: 5 | BQ33: 23 | BR33: 29 | BS33: 31 | BT33: 2 | BU33: 4 | BV33: 2 | BW33: 7 | BX33: 24 | BY33: 33 | BZ33: 28
A34: USA | B34: 0 | C34: 1 | D34: 2 | E34: 3 | F34: 35 | G34: 93 | H34: 866 | I34: 0 | J34: 0 | K34: 0 | L34: 1 | M34: 2 | N34: 9 | O34: 88 | P34: 0 | Q34: 0 | R34: 0 | S34: 0 | T34: 2 | U34: 9 | V34: 89 | W34: 0 | X34: 0 | Y34: 0 | Z34: 0 | AA34: 6 | AB34: 7 | AC34: 87 | AD34: 0 | AE34: 0 | AF34: 0 | AG34: 0 | AH34: 2 | AI34: 9 | AJ34: 89 | AK34: 0 | AL34: 0 | AM34: 0 | AN34: 0 | AO34: 10 | AP34: 10 | AQ34: 80 | AR34: 0 | AS34: 0 | AT34: 0 | AU34: 0 | AV34: 1 | AW34: 9 | AX34: 90 | AY34: 0 | AZ34: 0 | BA34: 0 | BB34: 0 | BC34: 4 | BD34: 14 | BE34: 82 | BF34: 0 | BG34: 1 | BH34: 1 | BI34: 0 | BJ34: 4 | BK34: 9 | BL34: 85 | BM34: 0 | BN34: 0 | BO34: 0 | BP34: 2 | BQ34: 2 | BR34: 8 | BS34: 88 | BT34: 0 | BU34: 0 | BV34: 1 | BW34: 0 | BX34: 2 | BY34: 9 | BZ34: 88
A36: Qual
A37: Algeria | B37: =1000-H3 -> 116 | H37: Brazil | I37: =VLOOKUP(H37, A$37:B$68, 2, FALSE) -> 990 | X37: Brazil | Y37: 249
A38: Argentina | B38: =1000-H4 -> 991 | H38: Cameroon | I38: =VLOOKUP(H38, A$37:B$68, 2, FALSE) -> 185 | X38: Argentina | Y38: 217
A39: Australia | B39: 31 | H39: Croatia | I39: 388 | X39: Germany | Y39: 170
A40: Belgium | B40: 885 | H40: Mexico | I40: 437 | X40: Spain | Y40: 146
A41: Bosnia & Herzegovina | B41: 516 | H41: Australia | I41: 31 | X41: Belgium | Y41: 35
A42: Brazil | B42: 990 | H42: Chile | I42: 459 | X42: France | Y42: 34
A43: Cameroon | B43: 185 | H43: Netherlands | I43: 631 | X43: Italy | Y43: 27
A44: Chile | B44: 459 | H44: Spain | I44: 879 | X44: Portugal | Y44: 25
A45: Colombia | B45: 812 | H45: Colombia | I45: 812 | X45: Netherlands | Y45: 23
A46: Costa Rica | B46: 31 | H46: Greece | I46: 309 | X46: Colombia | Y46: 21
A47: Croatia | B47: 388 | H47: Ivory Coast | I47: 455 | X47: Uruguay | Y47: 16
A48: Ecuador | B48: 530 | H48: Japan | I48: 424 | X48: England | Y48: 13
A49: England | B49: 587 | H49: Costa Rica | I49: 31 | X49: Chile | Y49: 12
A50: France | B50: 842 | H50: England | I50: 587 | X50: Russia | Y50: 7
A51: Germany | B51: 950 | H51: Italy | I51: 718 | X51: Other | Y51: 5
A52: Ghana | B52: 197 | H52: Uruguay | I52: 664
A53: Greece | B53: 309 | H53: Ecuador | I53: 530
A54: Honduras | B54: 55 | H54: France | I54: 842
A55: Iran | B55: 114 | H55: Honduras | I55: 55
A56: Italy | B56: 718 | H56: Switzerland | I56: 573
A57: Ivory Coast | B57: 455 | H57: Argentina | I57: 991
A58: Japan | B58: 424 | H58: Bosnia & Herzegovina | I58: 516
A59: Mexico | B59: 437 | H59: Iran | I59: 114
A60: Netherlands | B60: 631 | H60: Nigeria | I60: 379
A61: Nigeria | B61: 379 | H61: Germany | I61: 950
A62: Portugal | B62: 719 | H62: Ghana | I62: 197
A63: Russia | B63: 698 | H63: Portugal | I63: 719
A64: South Korea | B64: 301 | H64: USA | I64: 134
A65: Spain | B65: 879 | H65: Algeria | I65: 116
A66: Switzerland | B66: 573 | H66: Belgium | I66: 885
A67: Uruguay | B67: 664 | H67: Russia | I67: 698
A68: USA | B68: 134 | H68: South Korea | I68: 301
